DATE OF TRANSACTION,LA DEPARTMENT INCURRING SPEND,BENEFICIARY,GROSS AMOUNT,SUMMARY OF PURPOSEOF SPEND,MERCHANT CATEGORY,,
28/06/2018,CLOSED LANDFILL,SAFETYSIGNSUP.COUK,61.69,EQUIPMENT,"COMMERCIAL ART, GRAPHICS, PHOTOGRAPHY",,
28/06/2018,NE CARE - CP & COURT LAC,PREMIER INN,116.50,INDEPENDENT LIVING PLACEMENTS,PREMIER INN,,
28/06/2018,NE CARE - CP & COURT LAC,PREMIER INN,117.50,INDEPENDENT LIVING PLACEMENTS,PREMIER INN,,
28/06/2018,BURBANK COMMUNITY HOME,PRIMARK,23.00,"CLOTHING, UNIFORM AND LAUNDRY",FAMILY CLOTHING STORES,,
28/06/2018,YSS YOUTH CENTRE IMPROVEMENTS,TVLICENSING.CO.UK,150.50,FEES,"CONSULTING, MANAGEMENT, AND PUBLIC RELATIONS SVCS",,
28/06/2018,MALLOW CRESCENT,TVLICENSING.CO.UK,150.50,EQUIPMENT,"CONSULTING, MANAGEMENT, AND PUBLIC RELATIONS SVCS",,
28/06/2018,MALLOW CRESCENT,TVLICENSING.CO.UK,150.50,EQUIPMENT,"CONSULTING, MANAGEMENT, AND PUBLIC RELATIONS SVCS",,
28/06/2018,MALLOW CRESCENT,TVLICENSING.CO.UK,150.50,EQUIPMENT,"CONSULTING, MANAGEMENT, AND PUBLIC RELATIONS SVCS",,
28/06/2018,HOPE SERVICE - WEST,HAMPTON COURT SERVICE,5.13,REFRESHMENT COSTS,SERVICE STATIONS WITH OR WITHOUT ANCILLARY SERVICE,,
28/06/2018,IMT CRITICAL ENVIRONMENTS,AMAZON SVCS EU-UK AMAZ,4.39,CLEANING MATERIALS,BOOK STORES,,
28/06/2018,FIRE SERVICES IT,AMAZON UK MARKETPLACE,22.46,COMPUTER HARDWARE,BOOK STORES,,
28/06/2018,RESTORATIVE PRACTICE TEAM,TRAVIS PERKINS,414.60,EQUIPMENT,"BUILDING MATERIALS, LUMBER STORES",,
28/06/2018,HOPE SERVICE - WEST,SAINSBURYS LOC 4409,1.45,PURCHASE OF FOOD (RAW MATERIALS),"GROCERY STORES, SUPERMARKETS",,
28/06/2018,SPEECH & LANGUAGE THERAPY,PARTICIPANT UK LTD,70.00,STAFF TRAINING,COMPUTER NETWORK/INFORMATION SERVICES,,
28/06/2018,SW SECTION 17 CARE,AIRBNB   HMCXHC34FE,479.75,OTHER COMMUNITY CARE VOL,"LODGING-HOTELS,MOTELS,RESORTS-NOT CLASSIFIED",,
28/06/2018,BUSINESS UNIT,AMAZON SVCS EU-UK AMAZ,49.98,TRAINING EXPENSES EXTERNAL GENERAL,BOOK STORES,,
28/06/2018,CS BUSINESS SUPPORT EAST,AMAZON SVCS EU-UK AMAZ,10.08,STATIONERY,BOOK STORES,,
28/06/2018,ACL CENTRAL EXPENDITURE,TESCO STORE 2160,40.12,REFRESHMENT COSTS,"GROCERY STORES, SUPERMARKETS",,
28/06/2018,HILLSIDE,THE PUMPKIN CATERING C,19.65,PURCHASE OF FOOD (RAW MATERIALS),"EATING PLACES, RESTAURANTS",,
28/06/2018,HILLSIDE,THE PUMPKIN CATERING C,6.30,PURCHASE OF FOOD (RAW MATERIALS),"EATING PLACES, RESTAURANTS",,
28/06/2018,SW CARE - CP & COURT LAC,ALTON TOWERS,246.00,OTHER COMMUNITY CARE VOL,TOURIST ATTRACTIONS AND EXHIBITS,,
28/06/2018,IMT CRITICAL ENVIRONMENTS,AMAZON EU,31.63,REFRESHMENT COSTS,DIRECT MARKETING-OTHER DIRECT MARKETERS/NOT ELSEW.,,
28/06/2018,IMT CRITICAL ENVIRONMENTS,AMAZON EU,229.99,EQUIPMENT,DIRECT MARKETING-OTHER DIRECT MARKETERS/NOT ELSEW.,,
28/06/2018,IMT CRITICAL ENVIRONMENTS,MILK&MORE,7.80,REFRESHMENT COSTS,DAIRY PRODUCTS STORES,,
28/06/2018,IMT CRITICAL ENVIRONMENTS,MILK&MORE,1.56,REFRESHMENT COSTS,DAIRY PRODUCTS STORES,,
28/06/2018,FAMILIES MOLE VALLEY,SAINSBURYS SACAT 0764,10.80,REFRESHMENT COSTS,"GROCERY STORES, SUPERMARKETS",,
28/06/2018,SURREY ARTS PROJECT,AMAZON SVCS EU-UK AMAZ,11.84,CLEANING AND DOMESTIC SUPPLIES,BOOK STORES,,
28/06/2018,REDHILL & BANSTEAD CMHRS CARE,HMCTS-SURREY125,75.00,LEGAL EXPENSES,FINES,,
28/06/2018,RUNNYMEDE CMHRS CARE,TRAVELODGE,344.75,OTHER COMMUNITY CARE PRIV,TRAVELODGE,,
28/06/2018,FARNHAM AEI WEST STREET,HOMEBASE LTD 290,33.00,DAY TO DAY MAINTENANCE,"BUILDING MATERIALS, LUMBER STORES",,
28/06/2018,HILLSIDE,SAINSBURYS 0675,7.40,PURCHASE OF FOOD (RAW MATERIALS),"GROCERY STORES, SUPERMARKETS",,
28/06/2018,HILLSIDE,SAINSBURYS 0675,54.45,PURCHASE OF FOOD (RAW MATERIALS),"GROCERY STORES, SUPERMARKETS",,
28/06/2018,HILLSIDE,WWW.SPINNAKERTOWER.CO.,47.70,EDUC VISITS/HOLS/CAMPS/TOYS,TOURIST ATTRACTIONS AND EXHIBITS,,
28/06/2018,COVEHAM,WILKO.COM,27.00,EQUIPMENT,MISCELLANEOUS GENERAL MERCHANDISE,,
28/06/2018,FAMILIES ELMBRIDGE,SAINSBURYS SACAT 2663,12.00,REFRESHMENT COSTS,"GROCERY STORES, SUPERMARKETS",,
28/06/2018,FAMILIES ELMBRIDGE,PIZZA HUT,20.00,REFRESHMENT COSTS,"EATING PLACES, RESTAURANTS",,
28/06/2018,CHEYNE WALK COMMUNITY HOME,TOP SHOP,14.00,PURCHASE OF FOOD (RAW MATERIALS),MEN'S AND WOMEN'S CLOTHING STORES,,
28/06/2018,CHEYNE WALK COMMUNITY HOME,PIZZA HUT 440,36.65,PURCHASE OF FOOD (RAW MATERIALS),"EATING PLACES, RESTAURANTS",,
28/06/2018,CHEYNE WALK COMMUNITY HOME,J D SPORTS 131,123.00,"CLOTHING, UNIFORM AND LAUNDRY",SPORTING GOODS STORES,,
28/06/2018,TS SERVICE MANAGEMENT,AMAZON UK MARKETPLACE,20.80,EQUIPMENT,BOOK STORES,,
28/06/2018,ARUNDEL,TESCO STORES 5999,50.98,REFRESHMENT COSTS,"GROCERY STORES, SUPERMARKETS",,
28/06/2018,DOWNLANDS COUNTRYSIDE PROJECT,NPORS.COM,30.00,TRAINING EXPENSES EXTERNAL GENERAL,"ASSOCIATIONS-CIVIC, SOCIAL, AND FRATERNAL",,
28/06/2018,FAMILIES MOLE VALLEY,TESCO STORES 6999,8.47,REFRESHMENT COSTS,"GROCERY STORES, SUPERMARKETS",,
28/06/2018,BURBANK COMMUNITY HOME,H&M,85.02,"CLOTHING, UNIFORM AND LAUNDRY",MEN'S AND WOMEN'S CLOTHING STORES,,
28/06/2018,HOPE SERVICE - WEST,SAINSBURYS TO YOU 0686,64.85,PURCHASE OF FOOD (RAW MATERIALS),"GROCERY STORES, SUPERMARKETS",,
28/06/2018,HOPE SERVICE - WEST,SAINSBURYS TO YOU 0686,-.90,PURCHASE OF FOOD (RAW MATERIALS),"GROCERY STORES, SUPERMARKETS",,
28/06/2018,ELMBRIDGE CMHRS CARE,HMCTS-SURREY125,75.00,FEES,FINES,,
28/06/2018,DITTONS & CLAYGATE CC,J K PAULL LIMITED,60.00,REFRESHMENT COSTS,"GROCERY STORES, SUPERMARKETS",,
28/06/2018,FAIRCROFT COMMUNITY HOME,THE HEAD OFFICE,25.00,EQUIPMENT,BARBER AND BEAUTY SHOPS,,
28/06/2018,TARGETED INTERVENTION,DOMINO'S,86.95,EDUC VISITS/HOLS/CAMPS/TOYS,FAST FOOD RESTAURANTS,,
28/06/2018,WOODLANDS COMMUNITY HOME,PENNYHILL TIMBER,380.88,EQUIPMENT,"BUILDING MATERIALS, LUMBER STORES",,
28/06/2018,SHELL UK LICENSING,BEXLEY CIVIC OFFICES,339.00,FEES,GOVERNMENT SERVICES-NOT ELSEWHERE CLASSIFIED,,
28/06/2018,SHELL UK LICENSING,CHESHIRE EAST CRIM ECO,904.00,FEES,GOVERNMENT SERVICES-NOT ELSEWHERE CLASSIFIED,,
28/06/2018,WOKING CMHRS CARE,HMCTS-SURREY125,150.00,FEES,FINES,,
28/06/2018,HILLSIDE,SAINSBURYS 0784,.60,PURCHASE OF FOOD (RAW MATERIALS),"GROCERY STORES, SUPERMARKETS",,
28/06/2018,HILLSIDE,HOUSE OF FRASER,98.00,"CLOTHING, UNIFORM AND LAUNDRY",DEPARTMENT STORES,,
28/06/2018,COBHAM CHILDRENS CENTRE,WAITROSE 176,10.98,REFRESHMENT COSTS,"GROCERY STORES, SUPERMARKETS",,
28/06/2018,COBHAM CHILDRENS CENTRE,WAITROSE 176,7.58,REFRESHMENT COSTS,"GROCERY STORES, SUPERMARKETS",,
28/06/2018,LOCAL ASSISTANCE SCHEME,WWW.JOHNLEWIS.COM,275.00,FURNITURE,DEPARTMENT STORES,,
28/06/2018,CHEYNE WALK COMMUNITY HOME,BELL CARRIAGE LTD,80.00,HIRE OF VEHICLES,LIMOUSINES AND TAXICABS,,
28/06/2018,BOOKS - ADULT FICTION                   ,AMZ INFINITE_BOOKS,-3.28,LIBRARY RESOURCES,MISCELLANEOUS AND SPECIALTY RETAIL STORES,,
28/06/2018,SERVICE DELIVERY RESOURCES,AMAZON UK MARKETPLACE,28.50,CLEANING MATERIALS,BOOK STORES,,
28/06/2018,SERVICE DELIVERY RESOURCES,WWW.CERTASENERGY.C,408.98,OPERATIONAL FIRE EQUIPMENT,"FUEL DEALERS-COAL, FUEL OIL, LIQ PETROLEUM, WOOD",,
28/06/2018,SOLD ESTATES MANAGEMENT,MOLE VALLEY MOWERS,237.73,VEHICLE REPAIRS AND MAINTENANCE,LAWN AND GARDEN SUPPLY STORES,,
28/06/2018,SOLD ESTATES MANAGEMENT,EURO CAR PARTS,56.52,VEHICLE REPAIRS AND MAINTENANCE,"AUTOMOTIVE PARTS, ACCESSORIES STORES",,
28/06/2018,PROPERTY BUSINESS & PERFORMANCE TEAM,CHOBHAM GOLF CLUB LTD,800.00,VENUE COSTS (INCLUDING HIRE OF ROOMS),"BAR,LOUNGE,DISCO,NIGHTCLUB,TAVERN-ALCOHOLIC DRINKS",,
28/06/2018,HEAD OF CHILDREN'S SERVICE,LIDL UK  LEATHERHEAD,7.98,REFRESHMENT COSTS,"GROCERY STORES, SUPERMARKETS",,
28/06/2018,PE/CDT MAINTENANCE OVERHEADS,BEARINGS AND BELTS,85.01,EQUIPMENT,"ARCHITECTURAL, ENGINEERING, AND SURVEYING SERVICES",,
28/06/2018,PE/CDT MAINTENANCE OVERHEADS,R&H ELECTRIC (SWINDON),745.20,EQUIPMENT,ELECTRICAL PARTS AND EQUIPMENT,,
28/06/2018,TRANSPORT,PAYPAL  MONSTERGROU,69.99,FIXTURES AND FITTINGS,OFFICE AND COMMERCIAL FURNITURE,,
28/06/2018,TRANSPORT,PAYPAL  LPGREIGAN,81.84,VEHICLE REPAIRS AND MAINTENANCE,"AUTOMOTIVE PARTS, ACCESSORIES STORES",,
28/06/2018,PERMANENTLY SURPLUS LAND,TRAVIS PERKINS,54.05,EQUIPMENT,"BUILDING MATERIALS, LUMBER STORES",,
28/06/2018,PERMANENTLY SURPLUS LAND,GUILDFORD LOCK & SAFE,168.60,EQUIPMENT,HARDWARE EQUIPMENT AND SUPPLIES,,
28/06/2018,ISPSB - ADAPTATIONS & IMPROVEMENTS,AMAZON UK MARKETPLACE,12.99,EDUC VISITS/HOLS/CAMPS/TOYS,BOOK STORES,,
28/06/2018,PE/CDT MAINTENANCE OVERHEADS,R&H ELECTRIC (SWINDON),271.91,EQUIPMENT,ELECTRICAL PARTS AND EQUIPMENT,,
28/06/2018,CHEYNE WALK COMMUNITY HOME,BELL CARRIAGE LTD,37.00,HIRE OF VEHICLES,LIMOUSINES AND TAXICABS,,
28/06/2018,CENTRAL COMMUNICATIONS,GOOGLE  ADWS2060179426,500.00,PUBLICITY,DIRECT MARKETING-CONTINUITY/SUBSCRIPTION MERCHANTS,,
28/06/2018,ISPSB - ADAPTATIONS & IMPROVEMENTS,AMAZON EU,69.75,EDUC VISITS/HOLS/CAMPS/TOYS,DIRECT MARKETING-OTHER DIRECT MARKETERS/NOT ELSEW.,,
28/06/2018,APPLEWOOD,AMAZON SVCS EU-UK AMAZ,13.95,EDUC VISITS/HOLS/CAMPS/TOYS,BOOK STORES,,
28/06/2018,TARGETED INTERVENTION,FRENCH BROTHERS LIMITE,43.20,EDUC VISITS/HOLS/CAMPS/TOYS,TOURIST ATTRACTIONS AND EXHIBITS,,
28/06/2018,TRANSPORT STUDIES TEAM,PAYPAL  TRANSPORTST,50.00,FEES,SCHOOLS & EDUCATIONAL SVC-NOT ELSEWHERE CLASSIFIED,,
29/06/2018,WOODLANDS COMMUNITY HOME,TVLICENSING.CO.UK,150.50,SUBSCRIPTIONS,"CONSULTING, MANAGEMENT, AND PUBLIC RELATIONS SVCS",,
29/06/2018,TS SERVICE MANAGEMENT,AMAZON UK MARKETPLACE,10.28,EQUIPMENT,BOOK STORES,,
29/06/2018,ARUNDEL,TESCO STORES 5999,148.05,REFRESHMENT COSTS,"GROCERY STORES, SUPERMARKETS",,
29/06/2018,GUILDFORD LOCALITY TEAM,AMAZON UK MARKETPLACE,23.80,OTHER COMMUNITY CARE VOL,BOOK STORES,,
29/06/2018,LOCAL ASSISTANCE SCHEME,WWW.JOHNLEWIS.COM,28.50,FURNITURE,DEPARTMENT STORES,,
29/06/2018,SOUTH WEST OUTREACH,CLUSKEYS CCP LTD,19.42,EQUIPMENT,MISCELLANEOUS GENERAL MERCHANDISE,,
29/06/2018,SOUTH WEST OUTREACH,B & Q 1029,36.00,EQUIPMENT,"BUILDING MATERIALS, LUMBER STORES",,
29/06/2018,CHEYNE WALK COMMUNITY HOME,BELL CARRIAGE LTD,-40.00,HIRE OF VEHICLES,LIMOUSINES AND TAXICABS,,
29/06/2018,SE CARE - LAC,LB CROYDON,12.00,OTHER COMMUNITY CARE VOL,GOVERNMENT SERVICES-NOT ELSEWHERE CLASSIFIED,,
29/06/2018,NE CARE - CP & COURT LAC,RB KINGSTON GUILDHALL2,31.00,OTHER COMMUNITY CARE VOL,GOVERNMENT SERVICES-NOT ELSEWHERE CLASSIFIED,,
29/06/2018,CS BUSINESS SUPPORT EAST,SDK ENVIROMENTAL LTD-M,53.40,OTHER COMMUNITY CARE VOL,BUSINESS SERVICES-NOT ELSEWHERE CLASSIFIED,,
29/06/2018,APPLEWOOD,AMAZON SVCS EU-UK AMAZ,14.48,EDUC VISITS/HOLS/CAMPS/TOYS,BOOK STORES,,
29/06/2018,TARGETED INTERVENTION,THE GARDEN POD,20.60,EDUC VISITS/HOLS/CAMPS/TOYS,"EATING PLACES, RESTAURANTS",,
29/06/2018,TARGETED INTERVENTION,COSTA @ DEBENHAMS 4303,11.80,EDUC VISITS/HOLS/CAMPS/TOYS,FAST FOOD RESTAURANTS,,
29/06/2018,SOLD ESTATES MANAGEMENT,SCREWFIX DIRECT,28.98,EQUIPMENT,"BUILDING MATERIALS, LUMBER STORES",,
29/06/2018,RUTH HOUSE,SAINSBURYS TO YOU 0686,36.40,PURCHASE OF FOOD (RAW MATERIALS),"GROCERY STORES, SUPERMARKETS",,
29/06/2018,RUTH HOUSE,SAINSBURYS TO YOU 0686,257.65,PURCHASE OF FOOD (RAW MATERIALS),"GROCERY STORES, SUPERMARKETS",,
29/06/2018,HOPE SERVICE - WEST,SAINSBURYS LOC 4409,6.30,PURCHASE OF FOOD (RAW MATERIALS),"GROCERY STORES, SUPERMARKETS",,
29/06/2018,QUADRANT COURT WOKING,AMAZON UK MARKETPLACE,99.96,EQUIPMENT,BOOK STORES,,
29/06/2018,FAIRCROFT COMMUNITY HOME,SAINSBURYS 0687,4.02,PURCHASE OF FOOD (RAW MATERIALS),"GROCERY STORES, SUPERMARKETS",,
29/06/2018,FAIRCROFT COMMUNITY HOME,ARGOS COBHAM (INSIDE S,28.98,EQUIPMENT,DISCOUNT STORES,,
29/06/2018,HILLSIDE,SAINSBURYS TO YOU 0675,28.55,PURCHASE OF FOOD (RAW MATERIALS),"GROCERY STORES, SUPERMARKETS",,
29/06/2018,HILLSIDE,SAINSBURYS TO YOU 0675,215.85,PURCHASE OF FOOD (RAW MATERIALS),"GROCERY STORES, SUPERMARKETS",,
29/06/2018,TARGETED INTERVENTION,THE GARDEN POD,10.40,EDUC VISITS/HOLS/CAMPS/TOYS,"EATING PLACES, RESTAURANTS",,
29/06/2018,LIBERTAS COMMUNITY HOME,SAINSBURYS SACAT 0652,83.70,EQUIPMENT,"GROCERY STORES, SUPERMARKETS",,
29/06/2018,LIBERTAS COMMUNITY HOME,SAINSBURYS SACAT 0652,15.95,PURCHASE OF FOOD (RAW MATERIALS),"GROCERY STORES, SUPERMARKETS",,
29/06/2018,LIBERTAS COMMUNITY HOME,SAINSBURYS SACAT 0652,85.60,PURCHASE OF FOOD (RAW MATERIALS),"GROCERY STORES, SUPERMARKETS",,
29/06/2018,SE NIL RECOURSE TO PUBLIC FUNDS CARE,BROMPTON HOUSE,975.00,INDEPENDENT LIVING PLACEMENTS,"LODGING-HOTELS,MOTELS,RESORTS-NOT CLASSIFIED",,
29/06/2018,TRANSPORT,PAYPAL  MEGASHOPUK,97.50,FIXTURES AND FITTINGS,ELECTRONIC SALES,,
29/06/2018,TRANSPORT,PAYPAL  THORNIT LTD,1.99,DAY TO DAY MAINTENANCE,"ARTIST SUPPLY STORES, CRAFT SHOPS",,
29/06/2018,SURREY WASTE PARTNERSHIP,LOCKSHOPWAREHOUSE,84.60,EQUIPMENT,DEPARTMENT STORES,,
29/06/2018,HOPE SERVICE - WEST,SMITH & WESTERN (TILGA,10.95,REFRESHMENT COSTS,"EATING PLACES, RESTAURANTS",,
29/06/2018,LOWER MOLE COUNTRYSIDE PROJECT,POST OFFICE COUNTER,13.92,POSTAGE AND COURIER CHARGES,POSTAL SERVICES-GOVERNMENT ONLY,,
29/06/2018,APPLEWOOD,ASDA GROCERIES ONLINE,140.03,PURCHASE OF FOOD (RAW MATERIALS),"GROCERY STORES, SUPERMARKETS",,
29/06/2018,APPLEWOOD,ASDA GROCERIES ONLINE,-.61,PURCHASE OF FOOD (RAW MATERIALS),"GROCERY STORES, SUPERMARKETS",,
29/06/2018,SE CARE - NON-LAC CP & COURT,SURREY CC CARD PAY,31.00,OTHER COMMUNITY CARE VOL,COMPUTER NETWORK/INFORMATION SERVICES,,
29/06/2018,SE CARE - NON-LAC CP & COURT,SURREY CC CARD PAY,31.00,OTHER COMMUNITY CARE VOL,COMPUTER NETWORK/INFORMATION SERVICES,,
29/06/2018,CENTRAL COMMUNICATIONS,SPARKOL,21.60,PUBLICITY,COMPUTER SOFTWARE STORES,,
29/06/2018,TARGETED INTERVENTION,SAINSBURYS SACAT 4981,7.90,EDUC VISITS/HOLS/CAMPS/TOYS,"GROCERY STORES, SUPERMARKETS",,
29/06/2018,WEST CWD NON-LAC CARE,WWW.SACOAPARTMENTS.CO.,228.00,INDEPENDENT LIVING PLACEMENTS,"LODGING-HOTELS,MOTELS,RESORTS-NOT CLASSIFIED",,
29/06/2018,WEST CWD NON-LAC CARE,WWW.SACOAPARTMENTS.CO.,697.20,INDEPENDENT LIVING PLACEMENTS,"LODGING-HOTELS,MOTELS,RESORTS-NOT CLASSIFIED",,
29/06/2018,CHEYNE WALK COMMUNITY HOME,21THREE CLOTHING COMPA,43.99,"CLOTHING, UNIFORM AND LAUNDRY",MEN'S AND WOMEN'S CLOTHING STORES,,
29/06/2018,PRISON CAPITATION                       ,AMAZON SVCS EU-UK AMAZ,15.08,LIBRARY RESOURCES,BOOK STORES,,
29/06/2018,TARGETED INTERVENTION,3C_ WOKING BOROUGH COU,2.80,EDUC VISITS/HOLS/CAMPS/TOYS,AUTOMOBILE PARKING LOTS AND GARAGES,,
29/06/2018,SOLD DAY TO DAY OPERATIONS,QUICKS ARCHERY WATERLO,427.14,EQUIPMENT,SPORTING GOODS STORES,,
29/06/2018,SOLD DAY TO DAY OPERATIONS,BIGORANGEWATERSPORT,165.00,EQUIPMENT,SPORTING GOODS STORES,,
29/06/2018,HILLSIDE,FOREST INN,36.57,PURCHASE OF FOOD (RAW MATERIALS),"BAR,LOUNGE,DISCO,NIGHTCLUB,TAVERN-ALCOHOLIC DRINKS",,
29/06/2018,WOODLANDS COMMUNITY HOME,SAINSBURYS 0686,23.50,CLEANING MATERIALS,"GROCERY STORES, SUPERMARKETS",,
29/06/2018,WOODLANDS COMMUNITY HOME,SAINSBURYS 0686,16.00,EQUIPMENT,"GROCERY STORES, SUPERMARKETS",,
29/06/2018,WOODLANDS COMMUNITY HOME,SAINSBURYS 0686,6.00,PURCHASE OF FOOD (RAW MATERIALS),"GROCERY STORES, SUPERMARKETS",,
29/06/2018,WOODLANDS COMMUNITY HOME,SAINSBURYS 0686,12.05,PURCHASE OF FOOD (RAW MATERIALS),"GROCERY STORES, SUPERMARKETS",,
29/06/2018,ACL CENTRAL EXPENDITURE,HELLOPRINT,22.95,PUBLICITY,"QUICK COPY,REPRODUCTION AND BLUEPRINTING SERVICES",,
29/06/2018,TRANSPORT,BUCK & HICKMAN,132.48,OPERATIONAL FIRE EQUIPMENT,HARDWARE EQUIPMENT AND SUPPLIES,,
29/06/2018,SPEECH & LANGUAGE THERAPY,AMAZON UK MARKETPLACE,11.48,EQUIPMENT,BOOK STORES,,
29/06/2018,SHELL UK LICENSING,KNOWSLEY MBC,113.00,FEES,GOVERNMENT SERVICES-NOT ELSEWHERE CLASSIFIED,,
29/06/2018,SHELL UK LICENSING,KNOWSLEY MBC,113.00,FEES,GOVERNMENT SERVICES-NOT ELSEWHERE CLASSIFIED,,
29/06/2018,HILLSIDE,TESCO STORE 3149,4.00,EQUIPMENT,"GROCERY STORES, SUPERMARKETS",,
29/06/2018,HILLSIDE,TESCO STORE 3149,61.48,PURCHASE OF FOOD (RAW MATERIALS),"GROCERY STORES, SUPERMARKETS",,
29/06/2018,IMT CRITICAL ENVIRONMENTS,AMAZON SVCS EU-UK AMAZ,9.99,CLEANING MATERIALS,BOOK STORES,,
29/06/2018,CENTRAL COMMUNICATIONS,ITUNES.COM/BILL,12.99,PUBLICITY,RECORD SHOPS,,
29/06/2018,FAMILY GROUP CONFERENCES,AMAZON EU,13.99,BOOKS,DIRECT MARKETING-OTHER DIRECT MARKETERS/NOT ELSEW.,,
29/06/2018,CENTRAL COMMUNICATIONS,ITUNES.COM/BILL,4.99,PUBLICITY,RECORD SHOPS,,
30/06/2018,LOCAL ASSISTANCE SCHEME,WWW.JOHNLEWIS.COM,150.00,FURNITURE,DEPARTMENT STORES,,
30/06/2018,SOUTH WEST OUTREACH,ARGOS LTD,10.99,EQUIPMENT,DISCOUNT STORES,,
30/06/2018,SOUTH WEST OUTREACH,ARGOS LTD,-10.99,EQUIPMENT,DISCOUNT STORES,,
30/06/2018,EXTENDED HOPE,TESCO STORE 2590,49.26,PURCHASE OF FOOD (RAW MATERIALS),"GROCERY STORES, SUPERMARKETS",,
30/06/2018,WOODLANDS COMMUNITY HOME,SAINSBURYS 0686,12.20,PURCHASE OF FOOD (RAW MATERIALS),"GROCERY STORES, SUPERMARKETS",,
30/06/2018,WOODLANDS COMMUNITY HOME,SAINSBURYS 0686,126.35,PURCHASE OF FOOD (RAW MATERIALS),"GROCERY STORES, SUPERMARKETS",,
30/06/2018,BURBANK COMMUNITY HOME,ARGOS LTD,79.99,3RD PARTY PAYMENTS PRIVATE INDIV,DISCOUNT STORES,,
30/06/2018,SE CARE - CP & COURT LAC,PREMIER INN,-9.50,INDEPENDENT LIVING PLACEMENTS,PREMIER INN,,
30/06/2018,RECRUITMENT,FACEBK SZGKREEQ82,3.92,STAFF ADVERTISING ,ADVERTISING SERVICES,,
30/06/2018,CENTRAL COMMUNICATIONS,GOOGLE  ADWS2060179426,500.00,PUBLICITY,DIRECT MARKETING-CONTINUITY/SUBSCRIPTION MERCHANTS,,
30/06/2018,ACL CENTRAL EXPENDITURE,FACEBK MUUUNEST82,53.37,PUBLICITY,ADVERTISING SERVICES,,
30/06/2018,ACL CENTRAL EXPENDITURE,FACEBK Y8CGBFNCB2,5.57,PUBLICITY,ADVERTISING SERVICES,,
30/06/2018,BOOKS - ADULT FICTION                   ,AMZ BOOKBARON7,-14.50,LIBRARY RESOURCES,MISCELLANEOUS AND SPECIALTY RETAIL STORES,,
30/06/2018,BOOKS - ADULT FICTION                   ,AMZ BOOKBARON7,-4.45,LIBRARY RESOURCES,MISCELLANEOUS AND SPECIALTY RETAIL STORES,,
30/06/2018,PROGRAMME TEAM,AMZ AMAZON.CO.UK,-50.58,EQUIPMENT,MISCELLANEOUS AND SPECIALTY RETAIL STORES,,
30/06/2018,PROGRAMME TEAM,AMZ AMAZON.CO.UK,-45.52,STATIONERY,MISCELLANEOUS AND SPECIALTY RETAIL STORES,,
30/06/2018,LOCAL DELIVERY GROUP,AMAZON UK MARKETPLACE,104.27,EQUIPMENT,BOOK STORES,,
30/06/2018,PROGRAMME TEAM,AMZ AMAZON.CO.UK,-5.06,STATIONERY,MISCELLANEOUS AND SPECIALTY RETAIL STORES,,
30/06/2018,PROGRAMME TEAM,AMZ AMAZON.CO.UK,-71.53,EQUIPMENT,MISCELLANEOUS AND SPECIALTY RETAIL STORES,,
30/06/2018,CENTRAL COMMUNICATIONS,FACEBK BA8UVGE2S2,168.11,PUBLICITY,ADVERTISING SERVICES,,
30/06/2018,CENTRAL COMMUNICATIONS,FACEBK 9A8UVGE2S2,180.34,PUBLICITY,ADVERTISING SERVICES,,
30/06/2018,NW CARE - NON-LAC CP & COURT,NATIONAL EXPRESS LIMIT,68.90,OTHER COMMUNITY CARE VOL,BUS LINES,,
30/06/2018,HOLLAND CLOSE RESIDENTIAL HOME,TESCO-STORES 6647,156.34,PURCHASE OF FOOD (RAW MATERIALS),"GROCERY STORES, SUPERMARKETS",,
30/06/2018,WEB OPERATIONS TEAM,REPORTURI 100K REPORTS,14.17,SUBSCRIPTIONS,COMPUTER SOFTWARE STORES,,
30/06/2018,CHEYNE WALK COMMUNITY HOME,PLANET SWEET,9.05,PURCHASE OF FOOD (RAW MATERIALS),FAST FOOD RESTAURANTS,,
30/06/2018,CHEYNE WALK COMMUNITY HOME,TESCO STORE 2560,32.38,PURCHASE OF FOOD (RAW MATERIALS),"GROCERY STORES, SUPERMARKETS",,
30/06/2018,CHEYNE WALK COMMUNITY HOME,PAYPAL  A M LTD,39.00,HIRE OF VEHICLES,LIMOUSINES AND TAXICABS,,
30/06/2018,CHEYNE WALK COMMUNITY HOME,PAYPAL  A M LTD,50.00,HIRE OF VEHICLES,LIMOUSINES AND TAXICABS,,
30/06/2018,CHEYNE WALK COMMUNITY HOME,KFC,3.98,PURCHASE OF FOOD (RAW MATERIALS),FAST FOOD RESTAURANTS,,
01/07/2018,PORTAGE SERVICE (SE),AMAZON EU,30.31,EQUIPMENT,DIRECT MARKETING-OTHER DIRECT MARKETERS/NOT ELSEW.,,
01/07/2018,LIBERTAS COMMUNITY HOME,SAINSBURYS 0652,16.65,EDUC VISITS/HOLS/CAMPS/TOYS,"GROCERY STORES, SUPERMARKETS",,
01/07/2018,SOUTH WEST OUTREACH,ARGOS LTD,25.99,EQUIPMENT,DISCOUNT STORES,,
01/07/2018,SOUTH WEST OUTREACH,ARGOS LTD,-10.99,EQUIPMENT,DISCOUNT STORES,,
01/07/2018,FIRE SERVICES IT,AMAZON EU,108.48,COMPUTER HARDWARE,DIRECT MARKETING-OTHER DIRECT MARKETERS/NOT ELSEW.,,
01/07/2018,SERVICE DELIVERY RESOURCES,AMAZON EU,27.72,CLEANING MATERIALS,DIRECT MARKETING-OTHER DIRECT MARKETERS/NOT ELSEW.,,
01/07/2018,FIRE SERVICES IT,AMAZON EU,43.46,COMPUTER HARDWARE,DIRECT MARKETING-OTHER DIRECT MARKETERS/NOT ELSEW.,,
01/07/2018,SERVICE DELIVERY RESOURCES,AMAZON EU,27.72,CLEANING MATERIALS,DIRECT MARKETING-OTHER DIRECT MARKETERS/NOT ELSEW.,,
01/07/2018,SUPERFAST BROADBAND ECONOMIC DEVELOPMENT,GOOGLE  SVCSAPPS_SUPER,13.75,COMPUTER SERVICES,DIRECT MARKETING-CONTINUITY/SUBSCRIPTION MERCHANTS,,
01/07/2018,KARIBU COMMUNITY HOME,BEIJING RESTAURANT,33.70,EDUC VISITS/HOLS/CAMPS/TOYS,FAST FOOD RESTAURANTS,,
01/07/2018,FAIRCROFT COMMUNITY HOME,WWW.UKFLAIR.COM,59.97,"CLOTHING, UNIFORM AND LAUNDRY","SPORTS APPAREL, RIDING APPAREL STORES",,
01/07/2018,FAIRCROFT COMMUNITY HOME,KFC,19.55,REFRESHMENT COSTS,FAST FOOD RESTAURANTS,,
01/07/2018,FAMILIES MOLE VALLEY,DECATHLON UK LTD,6.73,REFRESHMENT COSTS,SPORTING GOODS STORES,,
01/07/2018,COVEHAM,COTTON TRADERS ONLINE,25.99,"CLOTHING, UNIFORM AND LAUNDRY",FAMILY CLOTHING STORES,,
01/07/2018,FAIRCROFT COMMUNITY HOME,MCDONALDS,18.68,REFRESHMENT COSTS,FAST FOOD RESTAURANTS,,
01/07/2018,PROGRAMME TEAM,AMAZON EU,14.64,EQUIPMENT,DIRECT MARKETING-OTHER DIRECT MARKETERS/NOT ELSEW.,,
01/07/2018,PROGRAMME TEAM,AMAZON SVCS EU-UK AMAZ,9.98,EQUIPMENT,BOOK STORES,,
01/07/2018,LOCAL DELIVERY GROUP,AMAZON UK MARKETPLACE,25.65,EQUIPMENT,BOOK STORES,,
01/07/2018,FAIRCROFT COMMUNITY HOME,YMCA LONDON SOUTH WEST,20.40,EDUC VISITS/HOLS/CAMPS/TOYS,"LODGING-HOTELS,MOTELS,RESORTS-NOT CLASSIFIED",,
01/07/2018,CHEYNE WALK COMMUNITY HOME,TESCO STORE 2560,23.82,PURCHASE OF FOOD (RAW MATERIALS),"GROCERY STORES, SUPERMARKETS",,
01/07/2018,CHEYNE WALK COMMUNITY HOME,WWW.IKEA.COM,133.00,FURNITURE,"EQUIP, FURNITURE, HOME FURNSHNGS STRS (EXCPT APPL)",,
02/07/2018,TRAINING AND DEVELOPMENT,PREMIER INN,-99.96,TRAINING EXPENSES EXTERNAL GENERAL,PREMIER INN,,
02/07/2018,CENTRAL COMMUNICATIONS,TIMES NEWSPAPERS LTD,39.00,FEES,"BOOKS,PERIODICALS AND NEWSPAPERS",,
02/07/2018,VIRTUAL SCHOOL FOR LAC PUPIL PREMIUM,BBS PROMO,690.58,SPECIALIST EDUCATIONAL STATIONERY,MISCELLANEOUS GENERAL MERCHANDISE,,
02/07/2018,VIRTUAL SCHOOL FOR LAC PUPIL PREMIUM,BBS PROMO,460.39,SPECIALIST EDUCATIONAL STATIONERY,MISCELLANEOUS GENERAL MERCHANDISE,,
02/07/2018,MALLOW CRESCENT,TESCO STORE 2590,2.00,PURCHASE OF FOOD (RAW MATERIALS),"GROCERY STORES, SUPERMARKETS",,
02/07/2018,MALLOW CRESCENT,TESCO STORE 2590,80.52,PURCHASE OF FOOD (RAW MATERIALS),"GROCERY STORES, SUPERMARKETS",,
02/07/2018,"SW REF, ASS & INT SERVICE - HUB 1",GALAXY CARS,14.40,TRANSPORT SOCIAL CARE-TAXI,LIMOUSINES AND TAXICABS,,
02/07/2018,HILLSIDE,SAINSBURYS 0675,7.00,PURCHASE OF FOOD (RAW MATERIALS),"GROCERY STORES, SUPERMARKETS",,
02/07/2018,"SW REF, ASS & INT SERVICE - HUB 1",GALAXY CARS,14.20,TRANSPORT SOCIAL CARE-TAXI,LIMOUSINES AND TAXICABS,,
02/07/2018,HILLSIDE,COTSWOLD WILDLIFE PARK,18.56,PURCHASE OF FOOD (RAW MATERIALS),TOURIST ATTRACTIONS AND EXHIBITS,,
02/07/2018,HILLSIDE,COTSWOLD WILDLIFE PARK,27.84,PURCHASE OF FOOD (RAW MATERIALS),TOURIST ATTRACTIONS AND EXHIBITS,,
02/07/2018,"SW REF, ASS & INT SERVICE - HUB 1",GALAXY CARS,14.20,TRANSPORT SOCIAL CARE-TAXI,LIMOUSINES AND TAXICABS,,
02/07/2018,FIRE SERVICES IT,AMAZON UK MARKETPLACE,72.18,COMPUTER CONSUMABLES,BOOK STORES,,
02/07/2018,SOLD ESTATES MANAGEMENT,WWW.DVLA.GOV.UK,317.50,VEHICLE REPAIRS AND MAINTENANCE,GOVERNMENT SERVICES-NOT ELSEWHERE CLASSIFIED,,
02/07/2018,SOLD ESTATES MANAGEMENT,WWW.DVLA.GOV.UK,317.50,VEHICLE REPAIRS AND MAINTENANCE,GOVERNMENT SERVICES-NOT ELSEWHERE CLASSIFIED,,
02/07/2018,SFRS-SERVICE DELIVERY,FAVOURITE CHICKEN AND,94.92,REFRESHMENT COSTS,FAST FOOD RESTAURANTS,,
02/07/2018,HILLSIDE,COTSWOLD WILDLIFE PARK,3.50,PURCHASE OF FOOD (RAW MATERIALS),TOURIST ATTRACTIONS AND EXHIBITS,,
02/07/2018,CHEYNE WALK COMMUNITY HOME,AMAZON UK MARKETPLACE,21.98,EQUIPMENT,BOOK STORES,,
02/07/2018,TRAINING AND DEVELOPMENT,UK ASSOCIATION OF FIRE,285.00,SUBSISTENCE AND CONFERENCE EXPENSES,OTHER SERVICES (NOT ELSEWHERE CLASSIFIED),,
02/07/2018,CYWS COMMISSIONING,RYMAN 1138,24.46,CURRICULUM CONSUMABLES,"OFFICE, SCHOOL SUPPLY, AND STATIONERY STORES",,
02/07/2018,CHEYNE WALK COMMUNITY HOME,AMAZON EU,19.98,EQUIPMENT,DIRECT MARKETING-OTHER DIRECT MARKETERS/NOT ELSEW.,,
02/07/2018,FAIRCROFT COMMUNITY HOME,SAINSBURYS LOC(4180),10.00,3RD PARTY PAYMENTS PRIVATE INDIV,"GROCERY STORES, SUPERMARKETS",,
02/07/2018,FAIRCROFT COMMUNITY HOME,SAINSBURYS SACAT 0687,11.05,PURCHASE OF FOOD (RAW MATERIALS),"GROCERY STORES, SUPERMARKETS",,
02/07/2018,FAIRCROFT COMMUNITY HOME,SAINSBURYS SACAT 0687,3.60,PURCHASE OF FOOD (RAW MATERIALS),"GROCERY STORES, SUPERMARKETS",,
02/07/2018,FAIRCROFT COMMUNITY HOME,ARGOS COBHAM (INSIDE S,109.00,EQUIPMENT,DISCOUNT STORES,,
02/07/2018,CHEYNE WALK COMMUNITY HOME,AMAZON SVCS EU-UK AMAZ,99.98,FURNITURE,BOOK STORES,,
02/07/2018,FAIRCROFT COMMUNITY HOME,ARGOS COBHAM (INSIDE S,11.99,EQUIPMENT,DISCOUNT STORES,,
02/07/2018,SHELL UK LICENSING,"WWW,CHRISTCHURCH.GOV.U",113.00,FEES,GOVERNMENT SERVICES-NOT ELSEWHERE CLASSIFIED,,
02/07/2018,FAIRCROFT COMMUNITY HOME,STARBUCKS,7.55,REFRESHMENT COSTS,"EATING PLACES, RESTAURANTS",,
02/07/2018,TS SERVICE MANAGEMENT,WISE,"1,656.00",FEES,BUSINESS SERVICES-NOT ELSEWHERE CLASSIFIED,,
02/07/2018,EPSOM & EWELL CMHRS CARE,HMCTS-SURREY125,150.00,FEES,FINES,,
02/07/2018,SCHOOL GAMES LOC 2015-16                ,WH SMITH,14.97,EQUIPMENT,NEWS DEALERS AND NEWSSTANDS,,
02/07/2018,FAMILIES SURREY HEATH,CO-OP GROUP 350033,4.63,REFRESHMENT COSTS,"GROCERY STORES, SUPERMARKETS",,
02/07/2018,FAMILIES SURREY HEATH,CO-OP GROUP 350033,5.29,REFRESHMENT COSTS,"GROCERY STORES, SUPERMARKETS",,
02/07/2018,ACL CENTRAL EXPENDITURE,TESCO STORE 3149,106.31,REFRESHMENT COSTS,"GROCERY STORES, SUPERMARKETS",,
02/07/2018,LOCAL ASSISTANCE SCHEME,WWW.JOHNLEWIS.COM,54.95,FURNITURE,DEPARTMENT STORES,,
02/07/2018,LOCAL ASSISTANCE SCHEME,WWW.JOHNLEWIS.COM,69.00,FURNITURE,DEPARTMENT STORES,,
02/07/2018,SOUTH WEST OUTREACH,B & Q 1029,18.00,EQUIPMENT,"BUILDING MATERIALS, LUMBER STORES",,
02/07/2018,SOUTH WEST OUTREACH,ARGOS LTD,20.67,EQUIPMENT,DISCOUNT STORES,,
02/07/2018,NW CARE - LAC,GRO HM PASSPORT OFFICE,23.40,OTHER COMMUNITY CARE VOL,GOVERNMENT SERVICES-NOT ELSEWHERE CLASSIFIED,,
02/07/2018,ACL CENTRAL EXPENDITURE,TESCO STORE 2160,69.43,REFRESHMENT COSTS,"GROCERY STORES, SUPERMARKETS",,
02/07/2018,MALLOW CRESCENT,SAINSBURYS TO YOU 0652,11.55,PURCHASE OF FOOD (RAW MATERIALS),"GROCERY STORES, SUPERMARKETS",,
02/07/2018,MALLOW CRESCENT,SAINSBURYS TO YOU 0652,127.90,PURCHASE OF FOOD (RAW MATERIALS),"GROCERY STORES, SUPERMARKETS",,
02/07/2018,MALLOW CRESCENT,SAINSBURYS TO YOU 0652,-2.25,PURCHASE OF FOOD (RAW MATERIALS),"GROCERY STORES, SUPERMARKETS",,
02/07/2018,ROW MAINTENANCE,WWW.DRAINAGESUPERSTORE,75.07,PURCHASE OF BUILDING MATERIALS,MISCELLANEOUS AND SPECIALTY RETAIL STORES,,
02/07/2018,FAMILIES SPELTHORNE,TESCO STORE 2047,7.29,PURCHASE OF FOOD (RAW MATERIALS),"GROCERY STORES, SUPERMARKETS",,
02/07/2018,EXTENDED HOPE,TESCO STORE 2590,84.62,PURCHASE OF FOOD (RAW MATERIALS),"GROCERY STORES, SUPERMARKETS",,
02/07/2018,WOODLANDS COMMUNITY HOME,SAINSBURYS 0686,67.10,EQUIPMENT,"GROCERY STORES, SUPERMARKETS",,
02/07/2018,WOODLANDS COMMUNITY HOME,SAINSBURYS 0686,19.25,EQUIPMENT,"GROCERY STORES, SUPERMARKETS",,
02/07/2018,WOODLANDS COMMUNITY HOME,SAINSBURYS 0686,4.00,3RD PARTY PAYMENTS PRIVATE INDIV,"GROCERY STORES, SUPERMARKETS",,
02/07/2018,FIRE & RESCUE COMMUNITY SAFETY,WH SMITH,106.50,STATIONERY,NEWS DEALERS AND NEWSSTANDS,,
02/07/2018,TARGETED INTERVENTION,FREEDOM LEISURE,5.30,EDUC VISITS/HOLS/CAMPS/TOYS,GOVERNMENT SERVICES-NOT ELSEWHERE CLASSIFIED,,
02/07/2018,TARGETED INTERVENTION,FREEDOM LEISURE,5.10,EDUC VISITS/HOLS/CAMPS/TOYS,GOVERNMENT SERVICES-NOT ELSEWHERE CLASSIFIED,,
02/07/2018,RUTH HOUSE,C-MONETIQUETTE,22.50,"CLOTHING, UNIFORM AND LAUNDRY",DIRECT MARKETING-COMBINATION CATALOG/RETAIL MERCH.,,
02/07/2018,TARGETED INTERVENTION,VILLAGE GREENS FARM SH,3.99,EXAMINATION FEES,"MISC FOOD STORE-CONVENIENCE,MRKT,SPLTY,VENDNG MACS",,
02/07/2018,TARGETED INTERVENTION,DENBIES CONSERVATORY R,5.90,EDUC VISITS/HOLS/CAMPS/TOYS,TOURIST ATTRACTIONS AND EXHIBITS,,
02/07/2018,LIBERTAS COMMUNITY HOME,SAINSBURYS SACAT 0652,3.00,EQUIPMENT,"GROCERY STORES, SUPERMARKETS",,
02/07/2018,LIBERTAS COMMUNITY HOME,SAINSBURYS SACAT 0652,16.30,PURCHASE OF FOOD (RAW MATERIALS),"GROCERY STORES, SUPERMARKETS",,
02/07/2018,LIBERTAS COMMUNITY HOME,SAINSBURYS SACAT 0652,145.35,PURCHASE OF FOOD (RAW MATERIALS),"GROCERY STORES, SUPERMARKETS",,
02/07/2018,FIRE SERVICES IT,AMAZON UK MARKETPLACE,8.99,COMPUTER HARDWARE,BOOK STORES,,
02/07/2018,MALLOW CRESCENT,SAINSBURYS TO YOU 0652,21.55,PURCHASE OF FOOD (RAW MATERIALS),"GROCERY STORES, SUPERMARKETS",,
02/07/2018,MALLOW CRESCENT,SAINSBURYS TO YOU 0652,106.80,PURCHASE OF FOOD (RAW MATERIALS),"GROCERY STORES, SUPERMARKETS",,
02/07/2018,COVEHAM,SAINSBURYS TO YOU 0687,132.12,REFRESHMENT COSTS,"GROCERY STORES, SUPERMARKETS",,
02/07/2018,COVEHAM,SAINSBURYS TO YOU 0687,-5.15,REFRESHMENT COSTS,"GROCERY STORES, SUPERMARKETS",,
02/07/2018,HOPE SERVICE - WEST,SAINSBURYS TO YOU 0686,89.42,PURCHASE OF FOOD (RAW MATERIALS),"GROCERY STORES, SUPERMARKETS",,
02/07/2018,MALLOW CRESCENT,TESCO STORE 2590,15.39,PURCHASE OF FOOD (RAW MATERIALS),"GROCERY STORES, SUPERMARKETS",,
02/07/2018,MALLOW CRESCENT,TESCO STORE 2590,114.31,PURCHASE OF FOOD (RAW MATERIALS),"GROCERY STORES, SUPERMARKETS",,
02/07/2018,QUADRANT COURT WOKING,W M MORRISONS,15.00,REFRESHMENT COSTS,"GROCERY STORES, SUPERMARKETS",,
02/07/2018,DOWNLANDS COUNTRYSIDE PROJECT,HARRY HAWKINS,18.00,TRADE REFUSE,FUNERAL SERVICE AND CREMATORIES,,
02/07/2018,TRANSPORT,PAYPAL  DSGRETAILLI,109.99,EQUIPMENT,CAMERA AND PHOTOGRAPHIC SUPPLY STORES,,
02/07/2018,OPEN DAY,HAMPSHIREFL,267.35,PUBLICITY,"FABRIC, NEEDLEWORK, PIECE GOODS, AND SEWING STORES",,
02/07/2018,TRANSPORT,WWW.NISBETS.COM,137.97,FIXTURES AND FITTINGS,DIRECT MARKETING-CATALOG MERCHANTS,,
02/07/2018,FAIRCROFT COMMUNITY HOME,TESCO STORE 2812,178.18,PURCHASE OF FOOD (RAW MATERIALS),"GROCERY STORES, SUPERMARKETS",,
02/07/2018,PROPERTY OPERATIONS TEAM,SAINSBURYS SACAT 0652,7.00,PURCHASE OF BUILDING MATERIALS,"GROCERY STORES, SUPERMARKETS",,
02/07/2018,PROPERTY OPERATIONS TEAM,GUILDFORD LOCK & SAFE,53.60,PURCHASE OF BUILDING MATERIALS,HARDWARE EQUIPMENT AND SUPPLIES,,
02/07/2018,WOODLANDS COMMUNITY HOME,AMAZON SVCS EU-UK AMAZ,38.22,EDUC VISITS/HOLS/CAMPS/TOYS,BOOK STORES,,
02/07/2018,SEN ADAPTATIONS IN SCHOOLS,COMPLETE CARE SHOP,569.94,EQUIPMENT,MISCELLANEOUS GENERAL MERCHANDISE,,
02/07/2018,HILLSIDE,LIDL UK CAMBERLEY,.99,PURCHASE OF FOOD (RAW MATERIALS),"GROCERY STORES, SUPERMARKETS",,
02/07/2018,HILLSIDE,LIDL UK CAMBERLEY,18.59,PURCHASE OF FOOD (RAW MATERIALS),"GROCERY STORES, SUPERMARKETS",,
02/07/2018,WOODLANDS COMMUNITY HOME,POUNDLAND LTD 1518,31.10,EDUC VISITS/HOLS/CAMPS/TOYS,DISCOUNT STORES,,
02/07/2018,SURREY ARTS PROJECT,AMAZON UK MARKETPLACE,8.42,EQUIPMENT,BOOK STORES,,
02/07/2018,SURREY ARTS PROJECT,AMAZON UK MARKETPLACE,22.98,EQUIPMENT,BOOK STORES,,
02/07/2018,SURREY ARTS PROJECT,AMAZON UK MARKETPLACE,56.87,EQUIPMENT,BOOK STORES,,
02/07/2018,INNOVATION FUND,AMAZON UK MARKETPLACE,26.95,EQUIPMENT,BOOK STORES,,
02/07/2018,SURREY ARTS PROJECT,AMAZON UK MARKETPLACE,46.83,EQUIPMENT,BOOK STORES,,
02/07/2018,HOPE SERVICE - WEST,SAINSBURYS SACAT 0683,170.80,PURCHASE OF FOOD (RAW MATERIALS),"GROCERY STORES, SUPERMARKETS",,
02/07/2018,HOPE SERVICE - WEST,SQUIRES GARDEN CENTRE,4.00,REFRESHMENT COSTS,LAWN AND GARDEN SUPPLY STORES,,
03/07/2018,SW CARE - CP & COURT LAC,IVY HOUSE,65.00,OTHER COMMUNITY CARE VOL,"LODGING-HOTELS,MOTELS,RESORTS-NOT CLASSIFIED",,
03/07/2018,CHILDREN'S EMERGENCY DUTY TEAM,PREMIER INN,141.00,OTHER COMMUNITY CARE PRIV,PREMIER INN,,
03/07/2018,ROW VOLUNTEERS WEST                     ,PANTILES SERVICE STATI,10.00,PETROL/DIESEL ALL OFF BUSINESS,SERVICE STATIONS WITH OR WITHOUT ANCILLARY SERVICE,,
03/07/2018,FIRE SERVICES IT,AMAZON SVCS EU-UK AMAZ,16.50,COMPUTER HARDWARE,BOOK STORES,,
03/07/2018,HEAD OF CHILDREN'S SERVICE,SAINSBURYS,176.00,REFRESHMENT COSTS,"GROCERY STORES, SUPERMARKETS",,
03/07/2018,MISC EDCAT SUPPORT,QMS INTERNATIONAL LTD,"1,785.00",CONSULTANTS,BUSINESS SERVICES-NOT ELSEWHERE CLASSIFIED,,
03/07/2018,REIGATE AND BANSTEAD LOCALITY TEAM,AMAZON UK MARKETPLACE,37.48,EQUIPMENT,BOOK STORES,,
03/07/2018,HILLSIDE,FOREST INN,18.98,PURCHASE OF FOOD (RAW MATERIALS),"BAR,LOUNGE,DISCO,NIGHTCLUB,TAVERN-ALCOHOLIC DRINKS",,
03/07/2018,CHILDREN'S RIGHTS TEAM,PAYPAL  ANIMATIONEV,389.60,EQUIPMENT,"BANDS, ORCHESTRAS, & MISC ENTRTNRS-NOT ELSWHR CLAS",,
03/07/2018,SOLD MANAGEMENT AND OVERHEADS,AMAZON SVCS EU-UK AMAZ,234.32,EQUIPMENT,BOOK STORES,,
03/07/2018,HOPE SERVICE - WEST,SAINSBURYS SACAT(4409),8.60,PURCHASE OF FOOD (RAW MATERIALS),"GROCERY STORES, SUPERMARKETS",,
03/07/2018,PROGRAMME TEAM,AMAZON UK MARKETPLACE,10.22,STATIONERY,BOOK STORES,,
03/07/2018,CURRICULUM SUPPORT,AMAZON UK MARKETPLACE,18.80,STATIONERY,BOOK STORES,,
03/07/2018,BURBANK COMMUNITY HOME,W M MORRISONS,49.80,EQUIPMENT,"GROCERY STORES, SUPERMARKETS",,
03/07/2018,HOMELESSNESS PREVENTION PROJECT,GALAXY CARS,66.00,TRANSPORT SOCIAL CARE-TAXI,LIMOUSINES AND TAXICABS,,
03/07/2018,FIRE SERVICES IT,AMAZON UK MARKETPLACE,10.74,COMPUTER CONSUMABLES,BOOK STORES,,
03/07/2018,TRANSPORT,GREENHAM TRADING LTD,"1,541.88",OPERATIONAL FIRE EQUIPMENT,INDUSTRIAL SUPPLIES NOT ELSEWHERE CLASSIFIED,,
03/07/2018,SOLD ESTATES MANAGEMENT,MOLE VALLEY MOWERS,403.21,VEHICLE REPAIRS AND MAINTENANCE,LAWN AND GARDEN SUPPLY STORES,,
03/07/2018,HOPE SERVICE - WEST,AMAZON UK MARKETPLACE,15.65,CURRICULUM CONSUMABLES,BOOK STORES,,
03/07/2018,HOPE SERVICE - WEST,AMAZON UK MARKETPLACE,27.99,CURRICULUM CONSUMABLES,BOOK STORES,,
03/07/2018,HOPE SERVICE - WEST,AMAZON UK MARKETPLACE,24.03,CURRICULUM EQUIPMENT AND FURNITURE,BOOK STORES,,
03/07/2018,HOPE SERVICE - WEST,AMAZON UK MARKETPLACE,62.10,CURRICULUM CONSUMABLES,BOOK STORES,,
03/07/2018,CHILDREN WITH DISABILITIES TEAM WEST,AMAZON PRIME,7.99,OTHER COMMUNITY CARE PRIV,DIRECT MARKETING-CONTINUITY/SUBSCRIPTION MERCHANTS,,
03/07/2018,PE/CDT MAINTENANCE OVERHEADS,SUK RETAIL LTD,32.99,PHOTOCOPIER MACHINES AND MATERIALS,"OFFICE, SCHOOL SUPPLY, AND STATIONERY STORES",,
03/07/2018,DOWNLANDS COUNTRYSIDE PROJECT,TESCO STORES,9.49,REFRESHMENT COSTS,"GROCERY STORES, SUPERMARKETS",,
03/07/2018,COUNTY HALL,SAINSBURYS 2325,44.00,REFRESHMENT COSTS,"GROCERY STORES, SUPERMARKETS",,
03/07/2018,HILLSIDE,TESCO STORE 3149,122.20,"CLOTHING, UNIFORM AND LAUNDRY","GROCERY STORES, SUPERMARKETS",,
03/07/2018,HILLSIDE,TESCO STORE 3149,4.00,PURCHASE OF FOOD (RAW MATERIALS),"GROCERY STORES, SUPERMARKETS",,
03/07/2018,HILLSIDE,SAINSBURYS SACAT 0675,3.10,PURCHASE OF FOOD (RAW MATERIALS),"GROCERY STORES, SUPERMARKETS",,
03/07/2018,HILLSIDE,SAINSBURYS SACAT 0675,53.00,PURCHASE OF FOOD (RAW MATERIALS),"GROCERY STORES, SUPERMARKETS",,
03/07/2018,HILLSIDE,WWW.SPINNAKERTOWER.CO.,-19.80,EDUC VISITS/HOLS/CAMPS/TOYS,TOURIST ATTRACTIONS AND EXHIBITS,,
03/07/2018,FAMILIES WOKING,ASDA STORES 4823,4.59,REFRESHMENT COSTS,"GROCERY STORES, SUPERMARKETS",,
03/07/2018,CHEYNE WALK COMMUNITY HOME,AMAZON SVCS EU-UK AMAZ,20.99,EQUIPMENT,BOOK STORES,,
03/07/2018,CPCS ENGAGEMENT TEAM,AMAZON UK MARKETPLACE,199.00,STATIONERY,BOOK STORES,,
03/07/2018,SHELL UK LICENSING,CYCM ANGLESEY CC INT,111.00,FEES,GOVERNMENT SERVICES-NOT ELSEWHERE CLASSIFIED,,
03/07/2018,SHELL UK LICENSING,LIVERPOOL CITY COUNCIL,418.00,FEES,GOVERNMENT SERVICES-NOT ELSEWHERE CLASSIFIED,,
03/07/2018,WOKING CMHRS CARE,HMCTS-SURREY125,75.00,FEES,FINES,,
03/07/2018,HOLLAND CLOSE RESIDENTIAL HOME,AMAZON UK MARKETPLACE,17.25,EDUC VISITS/HOLS/CAMPS/TOYS,BOOK STORES,,
03/07/2018,LOCAL ASSISTANCE SCHEME,WWW.JOHNLEWIS.COM,-6.95,FURNITURE,DEPARTMENT STORES,,
03/07/2018,SOUTH WEST OUTREACH,ARGOS LTD,9.89,EQUIPMENT,DISCOUNT STORES,,
03/07/2018,CENTRAL COMMUNICATIONS,GOOGLE  ADWS2060179426,500.00,PUBLICITY,DIRECT MARKETING-CONTINUITY/SUBSCRIPTION MERCHANTS,,
03/07/2018,CENTRAL COMMUNICATIONS,HOO HOOTSUITE INC,5.64,PUBLICITY,DIRECT MARKETING-CONTINUITY/SUBSCRIPTION MERCHANTS,,
03/07/2018,DRAINAGE MAINTENANCE - COUNTYWIDE NPR,WWW.DARTSYSTEMS.CO.UK,312.00,EQUIPMENT,ELECTRICAL PARTS AND EQUIPMENT,,
03/07/2018,ACL CENTRAL EXPENDITURE,TESCO DELIVERY SAVER2,6.99,REFRESHMENT COSTS,DIRECT MARKETING-CONTINUITY/SUBSCRIPTION MERCHANTS,,
03/07/2018,ACL CENTRAL EXPENDITURE,AMAZON SVCS EU-UK AMAZ,6.19,REFRESHMENT COSTS,BOOK STORES,,
03/07/2018,ROW AREA3 MV EPS ELM                    ,B & Q 1029,54.39,EQUIPMENT,"BUILDING MATERIALS, LUMBER STORES",,
03/07/2018,ROW AREA1 GFD SYH RNY SPL               ,HOMEBASE LTD 050,90.00,EQUIPMENT,"BUILDING MATERIALS, LUMBER STORES",,
03/07/2018,LEAP SURREY HEATH,ACORN PRINTING SER,391.34,EDUC VISITS/HOLS/CAMPS/TOYS,"QUICK COPY,REPRODUCTION AND BLUEPRINTING SERVICES",,
03/07/2018,ROW VOLUNTEERS WEST                     ,METHOLD VEHICLE HIRE,40.00,HIRE OF VEHICLES,AUTOMOBILE RENTAL AGENCY-NOT ELSEWHERE CLASSIFIED,,
03/07/2018,WOODLANDS COMMUNITY HOME,SAINSBURYS TO YOU 0686,34.90,PURCHASE OF FOOD (RAW MATERIALS),"GROCERY STORES, SUPERMARKETS",,
03/07/2018,WOODLANDS COMMUNITY HOME,SAINSBURYS TO YOU 0686,59.10,PURCHASE OF FOOD (RAW MATERIALS),"GROCERY STORES, SUPERMARKETS",,
03/07/2018,ARUNDEL,HOTEL IBIS,366.60,EDUC VISITS/HOLS/CAMPS/TOYS,HOTEL IBIS,,
03/07/2018,ARUNDEL,HOTEL IBIS,-366.60,EDUC VISITS/HOLS/CAMPS/TOYS,HOTEL IBIS,,
03/07/2018,CORPORATE GROUP - LEGAL SERVICES,AMAZON UK MARKETPLACE,87.68,EQUIPMENT,BOOK STORES,,
03/07/2018,LEGAL EXPENSES - CORPORATE GROUP,COMPANIES HOUSE,13.00,LEGAL EXPENSES,GOVERNMENT SERVICES-NOT ELSEWHERE CLASSIFIED,,
03/07/2018,LEGAL EXPENSES - CORPORATE GROUP,COMPANIES HOUSE,13.00,LEGAL EXPENSES,GOVERNMENT SERVICES-NOT ELSEWHERE CLASSIFIED,,
03/07/2018,TARGETED INTERVENTION,ALLSAINTS,5.50,EDUC VISITS/HOLS/CAMPS/TOYS,"EATING PLACES, RESTAURANTS",,
03/07/2018,TARGETED INTERVENTION,DECATHLON UK LTD,137.17,EQUIPMENT,SPORTING GOODS STORES,,
03/07/2018,IMT CRITICAL ENVIRONMENTS,HOMEBASE LTD 247,58.47,EQUIPMENT,"BUILDING MATERIALS, LUMBER STORES",,
03/07/2018,RUTH HOUSE,SAINSBURYS TO YOU 0686,23.60,PURCHASE OF FOOD (RAW MATERIALS),"GROCERY STORES, SUPERMARKETS",,
03/07/2018,RUTH HOUSE,SAINSBURYS TO YOU 0686,124.00,PURCHASE OF FOOD (RAW MATERIALS),"GROCERY STORES, SUPERMARKETS",,
03/07/2018,RUTH HOUSE,B & Q 1029,180.00,EQUIPMENT,"BUILDING MATERIALS, LUMBER STORES",,
03/07/2018,ACL CENTRAL EXPENDITURE,TESCO STORE 2160,92.47,REFRESHMENT COSTS,"GROCERY STORES, SUPERMARKETS",,
03/07/2018,TARGETED INTERVENTION,TRL CARPARK,2.50,MISCELLANEOUS STAFF TRAVEL,AUTOMOBILE PARKING LOTS AND GARAGES,,
03/07/2018,TARGETED INTERVENTION,CAFE IN THE PARK,7.60,EDUC VISITS/HOLS/CAMPS/TOYS,"EATING PLACES, RESTAURANTS",,
03/07/2018,QUADRANT COURT WOKING,W M MORRISONS,26.46,REFRESHMENT COSTS,"GROCERY STORES, SUPERMARKETS",,
03/07/2018,OPEN DAY,PAYPAL  FANCYDRESSM,11.90,PUBLICITY,"GAME, TOY, AND HOBBY SHOPS",,
03/07/2018,OPEN DAY,PAYPAL  HAMPSHIREFL,590.92,PUBLICITY,"FABRIC, NEEDLEWORK, PIECE GOODS, AND SEWING STORES",,
03/07/2018,FAIRCROFT COMMUNITY HOME,AMAZON EU,15.90,"CLOTHING, UNIFORM AND LAUNDRY",DIRECT MARKETING-OTHER DIRECT MARKETERS/NOT ELSEW.,,
03/07/2018,FAIRCROFT COMMUNITY HOME,TESCO STORE 2812,110.56,EQUIPMENT,"GROCERY STORES, SUPERMARKETS",,
03/07/2018,ARUNDEL,HOTEL IBIS,330.80,EDUC VISITS/HOLS/CAMPS/TOYS,HOTEL IBIS,,
03/07/2018,ARUNDEL,HOTEL IBIS,366.60,EDUC VISITS/HOLS/CAMPS/TOYS,HOTEL IBIS,,
03/07/2018,ARUNDEL,HOTEL IBIS,302.60,EDUC VISITS/HOLS/CAMPS/TOYS,HOTEL IBIS,,
03/07/2018,READY FOR WORK YSS,WWW.BOOKMYCOURSE.C,153.83,EDUC VISITS/HOLS/CAMPS/TOYS,"COLLEGES, UNIV, PRO SCHOOLS, JUNIOR COLLEGES",,
03/07/2018,CHMHS RAP TEAM,HOEBRIDGE GC,70.00,EDUC VISITS/HOLS/CAMPS/TOYS,GOLF COURSES-PUBLIC,,
03/07/2018,PROPERTY OPERATIONS TEAM,SCREWFIX DIRECT,14.98,PURCHASE OF BUILDING MATERIALS,"BUILDING MATERIALS, LUMBER STORES",,
03/07/2018,AP & AR ORBIS NORTH,WWW.MONEYCLAIM.GOV,35.00,FEES,GOVERNMENT SERVICES-NOT ELSEWHERE CLASSIFIED,,
03/07/2018,AP & AR ORBIS NORTH,WWW.MONEYCLAIM.GOV,60.00,FEES,GOVERNMENT SERVICES-NOT ELSEWHERE CLASSIFIED,,
03/07/2018,WOODLANDS COMMUNITY HOME,AMAZON PRIME,7.99,SUBSCRIPTIONS,DIRECT MARKETING-CONTINUITY/SUBSCRIPTION MERCHANTS,,
03/07/2018,LOWER MOLE COUNTRYSIDE PROJECT,SAINSBURYS 0683,51.45,REFRESHMENT COSTS,"GROCERY STORES, SUPERMARKETS",,
03/07/2018,BURBANK COMMUNITY HOME,JOLLY NICE,7.20,REFRESHMENT COSTS,"GROCERY STORES, SUPERMARKETS",,
04/07/2018,SE CARE - CP & COURT LAC,GRO HM PASSPORT OFFICE,-9.25,OTHER COMMUNITY CARE VOL,GOVERNMENT SERVICES-NOT ELSEWHERE CLASSIFIED,,
04/07/2018,CHEYNE WALK COMMUNITY HOME,SKY BUSINESS,99.60,LIBRARY RESOURCES,"CABLE, SATELLITE, OTHER PAY TELEVISION, RADIO SVCS",,
04/07/2018,FAIRCROFT COMMUNITY HOME,HOLLISTER CO GUILDFORD,25.00,"CLOTHING, UNIFORM AND LAUNDRY",MEN'S AND WOMEN'S CLOTHING STORES,,
04/07/2018,PROPERTY OPERATIONS TEAM,SCREWFIX GUILDFORD,22.99,PURCHASE OF BUILDING MATERIALS,"BUILDING MATERIALS, LUMBER STORES",,
04/07/2018,WOODLANDS COMMUNITY HOME,AMAZON EU,29.99,EDUC VISITS/HOLS/CAMPS/TOYS,DIRECT MARKETING-OTHER DIRECT MARKETERS/NOT ELSEW.,,
04/07/2018,BURBANK COMMUNITY HOME,SAINSBURYS TO YOU 0686,248.81,PURCHASE OF FOOD (RAW MATERIALS),"GROCERY STORES, SUPERMARKETS",,
04/07/2018,HEAD OF CHILDREN'S SERVICE,SAINSBURYS,-176.00,REFRESHMENT COSTS,"GROCERY STORES, SUPERMARKETS",,
04/07/2018,FIRE SERVICES IT,AMAZON UK MARKETPLACE,59.99,COMPUTER HARDWARE,BOOK STORES,,
04/07/2018,NW EDUCATION PSYCHOLOGISTS,ANNA FREUD CENTRE,40.00,TRAINING USING EXTERNAL PROVIDERS,"ORGANIZATIONS, CHARITABLE AND SOCIAL SERVICES",,
04/07/2018,WOODLANDS COMMUNITY HOME,SOUTHERN PURSUIT,97.20,EDUC VISITS/HOLS/CAMPS/TOYS,RECREATION SERVICES (NOT ELSEWHERE CLASSIFIED),,
04/07/2018,FAMILIES GUILDFORD,WWW.BOOKMYCOURSE.C,153.83,EDUC VISITS/HOLS/CAMPS/TOYS,"COLLEGES, UNIV, PRO SCHOOLS, JUNIOR COLLEGES",,
04/07/2018,CURRICULUM SUPPORT,AMAZON EU,22.97,STATIONERY,DIRECT MARKETING-OTHER DIRECT MARKETERS/NOT ELSEW.,,
04/07/2018,BURBANK COMMUNITY HOME,CEX (WOKING),30.00,3RD PARTY PAYMENTS PRIVATE INDIV,ELECTRONIC SALES,,
04/07/2018,BURBANK COMMUNITY HOME,GAME RETAIL,19.99,3RD PARTY PAYMENTS PRIVATE INDIV,"GAME, TOY, AND HOBBY SHOPS",,
04/07/2018,BURBANK COMMUNITY HOME,3C_ WOKING BOROUGH COU,1.40,MISCELLANEOUS STAFF TRAVEL,AUTOMOBILE PARKING LOTS AND GARAGES,,
04/07/2018,BURBANK COMMUNITY HOME,TESCO STORE 3149,14.25,MEDICAL EXPENSES,"GROCERY STORES, SUPERMARKETS",,
04/07/2018,BURBANK COMMUNITY HOME,W M MORRISONS,1.50,STATIONERY,"GROCERY STORES, SUPERMARKETS",,
04/07/2018,PSSS VISUALLY IMPAIRED,WWW.TALKINGPRODUCTS.CO,44.74,EQUIPMENT,ELECTRICAL PARTS AND EQUIPMENT,,
04/07/2018,TRANSPORT,AMAZON SVCS EU-UK AMAZ,359.85,OPERATIONAL FIRE EQUIPMENT,BOOK STORES,,
04/07/2018,TRANSPORT,MORPLAN LTD,114.00,"CLOTHING, UNIFORM AND LAUNDRY","OFFICE, SCHOOL SUPPLY, AND STATIONERY STORES",,
04/07/2018,TRANSPORT,AMAZON SVCS EU-UK AMAZ,-359.85,OPERATIONAL FIRE EQUIPMENT,BOOK STORES,,
04/07/2018,HOPE SERVICE - WEST,AMAZON EU,25.82,CURRICULUM CONSUMABLES,DIRECT MARKETING-OTHER DIRECT MARKETERS/NOT ELSEW.,,
04/07/2018,PE/CDT MAINTENANCE OVERHEADS,WWW.EXPERTFITNESSUK.CO,123.84,EQUIPMENT,SPORTING GOODS STORES,,
04/07/2018,MAINTENANCE SURVEYING TEAM,AMAZON UK MARKETPLACE,341.67,EQUIPMENT,BOOK STORES,,
04/07/2018,ARUNDEL,TESCO STORES 5999,116.66,REFRESHMENT COSTS,"GROCERY STORES, SUPERMARKETS",,
04/07/2018,PE/CDT MAINTENANCE OVERHEADS,WWW.RYNESS.CO.UK,22.93,EQUIPMENT,ELECTRICAL PARTS AND EQUIPMENT,,
04/07/2018,COUNTY HALL,AMAZON UK MARKETPLACE,73.80,EQUIPMENT,BOOK STORES,,
04/07/2018,TRAINING F&R SER,ASSOCIATION OF INDUSTR,890.00,TRAINING EXPENSES EXTERNAL GENERAL,"ORGANIZATIONS, CHARITABLE AND SOCIAL SERVICES",,
04/07/2018,HILLSIDE,SAINSBURYS 0675,10.50,PURCHASE OF FOOD (RAW MATERIALS),"GROCERY STORES, SUPERMARKETS",,
04/07/2018,HILLSIDE,SAINSBURYS 0675,92.30,PURCHASE OF FOOD (RAW MATERIALS),"GROCERY STORES, SUPERMARKETS",,
04/07/2018,FAMILIES RUNNYMEDE,TOP GOLF LTD,32.00,EDUC VISITS/HOLS/CAMPS/TOYS,"CLUBS-CNTRY,MBRSHIP(ATHLET,REC,SPRTS,PRIVATE GOLF",,
04/07/2018,FAMILIES WAVERLEY,GALAXY CARS,132.00,HIRE OF VEHICLES,LIMOUSINES AND TAXICABS,,
04/07/2018,CYWS COMMISSIONING,ROBERT DYAS HOLDNG LTD,21.98,CURRICULUM EQUIPMENT AND FURNITURE,HARDWARE STORES,,
04/07/2018,CYWS COMMISSIONING,WICKES,5.00,CURRICULUM CONSUMABLES,"BUILDING MATERIALS, LUMBER STORES",,
04/07/2018,BANSTEAD YC,LONDIS,10.88,PURCHASE OF FOOD (RAW MATERIALS),"GROCERY STORES, SUPERMARKETS",,
04/07/2018,CHEYNE WALK COMMUNITY HOME,AMAZON EU,21.44,EQUIPMENT,DIRECT MARKETING-OTHER DIRECT MARKETERS/NOT ELSEW.,,
04/07/2018,CHEYNE WALK COMMUNITY HOME,TESCO-STORES 6647,298.07,PURCHASE OF FOOD (RAW MATERIALS),"GROCERY STORES, SUPERMARKETS",,
04/07/2018,TS SERVICE MANAGEMENT,HILLSCOURT,105.00,SUBSISTENCE AND CONFERENCE EXPENSES,"LODGING-HOTELS,MOTELS,RESORTS-NOT CLASSIFIED",,
04/07/2018,SHELL UK LICENSING,DONCASTER MBC,113.00,FEES,GOVERNMENT SERVICES-NOT ELSEWHERE CLASSIFIED,,
04/07/2018,SHELL UK LICENSING,WWW.CONWY.GOV.UK,409.00,FEES,GOVERNMENT SERVICES-NOT ELSEWHERE CLASSIFIED,,
04/07/2018,EXTERNAL SERVICE LEAD,AMAZON UK MARKETPLACE,5.93,EQUIPMENT,BOOK STORES,,
04/07/2018,SURREY ARTS PROJECT,AMAZON UK MARKETPLACE,31.72,EQUIPMENT,BOOK STORES,,
04/07/2018,SURREY ARTS PROJECT,AMAZON SVCS EU-UK AMAZ,2.75,STATIONERY,BOOK STORES,,
04/07/2018,INSTRUMENT HIRE SHOP,WWW.ALDAUTOMOTIVE.CO.U,364.58,HIRE OF VEHICLES,BUSINESS SERVICES-NOT ELSEWHERE CLASSIFIED,,
04/07/2018,LIBERTAS COMMUNITY HOME,SAINSBURYS SACAT 0652,18.55,"CLOTHING, UNIFORM AND LAUNDRY","GROCERY STORES, SUPERMARKETS",,
04/07/2018,LIBERTAS COMMUNITY HOME,ARGOS BURPHAM,16.99,EDUC VISITS/HOLS/CAMPS/TOYS,DISCOUNT STORES,,
04/07/2018,HILLSIDE,GODSTONE FARM LIMITED,14.00,PURCHASE OF FOOD (RAW MATERIALS),RECREATION SERVICES (NOT ELSEWHERE CLASSIFIED),,
04/07/2018,HILLSIDE,WILKO RETAIL LIMIT,12.00,EQUIPMENT,HOUSEHOLD APPLIANCE STORES,,
04/07/2018,LIBERTAS COMMUNITY HOME,MCDONALDS,8.48,EDUC VISITS/HOLS/CAMPS/TOYS,"EATING PLACES, RESTAURANTS",,
04/07/2018,HOLLAND CLOSE RESIDENTIAL HOME,AMAZON UK MARKETPLACE,63.35,FIXTURES AND FITTINGS,BOOK STORES,,
04/07/2018,HOLLAND CLOSE RESIDENTIAL HOME,TESCO DELIVERY SAVER1,72.00,PURCHASE OF FOOD (RAW MATERIALS),"GROCERY STORES, SUPERMARKETS",,
04/07/2018,FAMILIES SURREY HEATH,LONGACRES GARDEN CENTR,142.84,EQUIPMENT,LAWN AND GARDEN SUPPLY STORES,,
04/07/2018,LOCAL ASSISTANCE SCHEME,AMAZON UK MARKETPLACE,2.99,CLEANING MATERIALS,BOOK STORES,,
04/07/2018,SOUTH WEST OUTREACH,SAINSBURYS TO YOU 0652,11.95,PURCHASE OF FOOD (RAW MATERIALS),"GROCERY STORES, SUPERMARKETS",,
04/07/2018,SOUTH WEST OUTREACH,SAINSBURYS TO YOU 0652,77.15,PURCHASE OF FOOD (RAW MATERIALS),"GROCERY STORES, SUPERMARKETS",,
04/07/2018,CHEYNE WALK COMMUNITY HOME,BOOTS/0837,34.86,EDUC VISITS/HOLS/CAMPS/TOYS,"DRUG STORES, PHARMACIES",,
04/07/2018,CHEYNE WALK COMMUNITY HOME,WWW.SIMPLYLAVISHTREND.,22.73,EQUIPMENT,MISCELLANEOUS AND SPECIALTY RETAIL STORES,,
04/07/2018,CHEYNE WALK COMMUNITY HOME,BLUE ARROW GATWICK,45.00,HIRE OF VEHICLES,LIMOUSINES AND TAXICABS,,
04/07/2018,CHEYNE WALK COMMUNITY HOME,BLUE ARROW GATWICK,45.00,HIRE OF VEHICLES,LIMOUSINES AND TAXICABS,,
04/07/2018,SE CARE - CP & COURT LAC,GRO HM PASSPORT OFFICE,9.25,OTHER COMMUNITY CARE VOL,GOVERNMENT SERVICES-NOT ELSEWHERE CLASSIFIED,,
04/07/2018,SE CARE - LAC,LBSUTTON,-30.00,OTHER COMMUNITY CARE VOL,GOVERNMENT SERVICES-NOT ELSEWHERE CLASSIFIED,,
04/07/2018,SHELL UK LICENSING,MEDWAY COUNCIL,113.00,FEES,GOVERNMENT SERVICES-NOT ELSEWHERE CLASSIFIED,,
04/07/2018,SHELL UK LICENSING,MEDWAY COUNCIL,79.00,FEES,GOVERNMENT SERVICES-NOT ELSEWHERE CLASSIFIED,,
04/07/2018,ASYLUM SEEKERS 18+,EXPEDIA 7363677600456,86.00,OTHER COMMUNITY CARE VOL,TRAVEL AGENCIES AND TOUR OPERATORS,,
04/07/2018,LOCAL DELIVERY GROUP,FG BARNES & SONS L,60.00,EQUIPMENT,"AUTO & TRUCK DLRS-SALES,SVC, REPRS,PRTS, & LEASING",,
04/07/2018,ACL CENTRAL EXPENDITURE,TESCO STORE 2160,53.57,REFRESHMENT COSTS,"GROCERY STORES, SUPERMARKETS",,
04/07/2018,ACL CENTRAL EXPENDITURE,W M MORRISONS,6.32,REFRESHMENT COSTS,"GROCERY STORES, SUPERMARKETS",,
04/07/2018,HILLSIDE,MCDONALDS,1.98,PURCHASE OF FOOD (RAW MATERIALS),"EATING PLACES, RESTAURANTS",,
04/07/2018,LIBERTAS COMMUNITY HOME,AMAZON UK MARKETPLACE,20.99,STATIONERY,BOOK STORES,,
04/07/2018,SURREY HEATH BOROUGH TEAM               ,FAMILY LINKS,117.00,EDUC VISITS/HOLS/CAMPS/TOYS,"ORGANIZATIONS, CHARITABLE AND SOCIAL SERVICES",,
04/07/2018,FAMILIES SPELTHORNE,TESCO STORE 2047,4.14,REFRESHMENT COSTS,"GROCERY STORES, SUPERMARKETS",,
04/07/2018,KARIBU COMMUNITY HOME,TESCO STORES 5371,10.98,PURCHASE OF FOOD (RAW MATERIALS),"GROCERY STORES, SUPERMARKETS",,
04/07/2018,SW CARE - LAC,HOLIDAY INNS,125.30,MISCELLANEOUS STAFF TRAVEL,HOLIDAY INNS,,
04/07/2018,QUADRANT COURT WOKING,B & Q 1029,36.95,EQUIPMENT,"BUILDING MATERIALS, LUMBER STORES",,
04/07/2018,ARUNDEL,HOTEL IBIS,330.80,EDUC VISITS/HOLS/CAMPS/TOYS,HOTEL IBIS,,
04/07/2018,FAIRCROFT COMMUNITY HOME,C.E.X LIMITED,5.00,EQUIPMENT,ELECTRICAL PARTS AND EQUIPMENT,,
04/07/2018,FAIRCROFT COMMUNITY HOME,ESSENTIAL,15.00,3RD PARTY PAYMENTS PRIVATE INDIV,"CLOCK, JEWELRY, WATCH, AND SILVERWARE STORE",,
04/07/2018,FAIRCROFT COMMUNITY HOME,SAINSBURYS SACAT 0687,6.75,EQUIPMENT,"GROCERY STORES, SUPERMARKETS",,
04/07/2018,FAIRCROFT COMMUNITY HOME,THE WORKS,3.00,BOOKS,DISCOUNT STORES,,
04/07/2018,ALP EDGE OF CARE,IZ  HUB COFFEE HOU,5.80,EDUC VISITS/HOLS/CAMPS/TOYS,"ORGANIZATIONS, CHARITABLE AND SOCIAL SERVICES",,
04/07/2018,ALP EDGE OF CARE,TESCO STORES-2047,9.90,EDUC VISITS/HOLS/CAMPS/TOYS,"GROCERY STORES, SUPERMARKETS",,
04/07/2018,SPLASH PROJECT,REL.EUROTUNNELVL,45.52,VEHICLE RUNNING COSTS,SERVICE STATIONS WITH OR WITHOUT ANCILLARY SERVICE,,
04/07/2018,SPLASH PROJECT,REL.EUROTUNNELVL,.42,VEHICLE RUNNING COSTS,"FUEL DISPENSER, AUTOMATED",,
04/07/2018,NW CARE - NON-LAC CP & COURT,HOTEL ON BOOKING.COM,196.20,INDEPENDENT LIVING PLACEMENTS,"LODGING-HOTELS,MOTELS,RESORTS-NOT CLASSIFIED",,
04/07/2018,RUTH HOUSE,WWW.PARENTMAIL.CO.,100.00,PURCHASE OF FOOD (RAW MATERIALS),SCHOOLS & EDUCATIONAL SVC-NOT ELSEWHERE CLASSIFIED,,
04/07/2018,TARGETED INTERVENTION,WINKWORTH,7.10,EDUC VISITS/HOLS/CAMPS/TOYS,"ORGANIZATIONS, CHARITABLE AND SOCIAL SERVICES",,
04/07/2018,FIRE SERVICES IT,AMAZON UK MARKETPLACE,20.06,COMPUTER HARDWARE,BOOK STORES,,
04/07/2018,YSS YOUTH CENTRE IMPROVEMENTS,AMAZON EU,56.07,DAY TO DAY MAINTENANCE,DIRECT MARKETING-OTHER DIRECT MARKETERS/NOT ELSEW.,,
04/07/2018,DOWNLANDS COUNTRYSIDE PROJECT,F R JONES & SON,276.25,EQUIPMENT,LAWN AND GARDEN SUPPLY STORES,,
04/07/2018,DOWNLANDS COUNTRYSIDE PROJECT,F R JONES & SON,284.75,EQUIPMENT,LAWN AND GARDEN SUPPLY STORES,,
04/07/2018,FAIRMOUNT HOUSE LEATHERHEAD,LIDL UK  LEATHERHEAD,16.84,PURCHASE OF FOOD (RAW MATERIALS),"GROCERY STORES, SUPERMARKETS",,
04/07/2018,ARUNDEL,HOTEL IBIS,28.20,EDUC VISITS/HOLS/CAMPS/TOYS,HOTEL IBIS,,
04/07/2018,ARUNDEL,HOTEL IBIS,330.80,EDUC VISITS/HOLS/CAMPS/TOYS,HOTEL IBIS,,
04/07/2018,CHMHS RAP TEAM,AMAZON PRIME,7.99,EDUC VISITS/HOLS/CAMPS/TOYS,DIRECT MARKETING-CONTINUITY/SUBSCRIPTION MERCHANTS,,
04/07/2018,PROPERTY OPERATIONS TEAM,B & Q 1029,8.08,PURCHASE OF BUILDING MATERIALS,"BUILDING MATERIALS, LUMBER STORES",,
04/07/2018,CHEYNE WALK COMMUNITY HOME,BLUE ARROW GATWICK,90.00,NON-STAFF RELATED TRANSPORT COSTS,LIMOUSINES AND TAXICABS,,
04/07/2018,HOLLAND CLOSE RESIDENTIAL HOME,AMAZON UK MARKETPLACE,38.25,FIXTURES AND FITTINGS,BOOK STORES,,
05/07/2018,TRAINING AND DEVELOPMENT,THE IBIS COVENTRY,85.00,SUBSISTENCE AND CONFERENCE EXPENSES,"LODGING-HOTELS,MOTELS,RESORTS-NOT CLASSIFIED",,
05/07/2018,DEVELOPMENT TEAM,"CLOUD9 IDE, INC",45.22,COMPUTER SERVICES,"COMPUTERS, COMPUTER PERIPHERAL EQUIPMENT, SOFTWARE",,
05/07/2018,NW CARE - NON-LAC CP & COURT,POTTERS INTERNATIONAL,169.20,OTHER COMMUNITY CARE VOL,"LODGING-HOTELS,MOTELS,RESORTS-NOT CLASSIFIED",,
05/07/2018,NW CARE - NON-LAC CP & COURT,POTTERS INTERNATIONAL,50.00,OTHER COMMUNITY CARE VOL,"LODGING-HOTELS,MOTELS,RESORTS-NOT CLASSIFIED",,
05/07/2018,NE CARE - LAC,GRO HM PASSPORT OFFICE,-23.40,OTHER COMMUNITY CARE VOL,GOVERNMENT SERVICES-NOT ELSEWHERE CLASSIFIED,,
05/07/2018,OPEN DAY,PAYPAL  FANCYDRESSM,17.85,PUBLICITY,"GAME, TOY, AND HOBBY SHOPS",,
05/07/2018,TRANSPORT,SCREWFIX DIR. LTD,29.58,DAY TO DAY MAINTENANCE,"BUILDING MATERIALS, LUMBER STORES",,
05/07/2018,FAIRMOUNT HOUSE LEATHERHEAD,LIDL UK  LEATHERHEAD,15.26,PURCHASE OF FOOD (RAW MATERIALS),"GROCERY STORES, SUPERMARKETS",,
05/07/2018,CHMHS RAP TEAM,MILANO PIZZA,36.97,EDUC VISITS/HOLS/CAMPS/TOYS,"EATING PLACES, RESTAURANTS",,
05/07/2018,PERMANENTLY SURPLUS LAND,GUILDFORD LOCK & SAFE,209.61,EQUIPMENT,HARDWARE EQUIPMENT AND SUPPLIES,,
05/07/2018,SURREY HILLS AONB,TESCO STORE 2675,53.75,REFRESHMENT COSTS,"GROCERY STORES, SUPERMARKETS",,
05/07/2018,WOODLANDS COMMUNITY HOME,SAINSBURYS 0686,5.15,PURCHASE OF FOOD (RAW MATERIALS),"GROCERY STORES, SUPERMARKETS",,
05/07/2018,WOODLANDS COMMUNITY HOME,SAINSBURYS 0686,40.15,PURCHASE OF FOOD (RAW MATERIALS),"GROCERY STORES, SUPERMARKETS",,
05/07/2018,WOODLANDS COMMUNITY HOME,MCDONALDS,14.38,PURCHASE OF FOOD (RAW MATERIALS),"EATING PLACES, RESTAURANTS",,
05/07/2018,SOLD MANAGEMENT AND OVERHEADS,PAYPAL  GOOUTDOORSL,240.50,FURNITURE,SPORTING GOODS STORES,,
05/07/2018,SOLD MANAGEMENT AND OVERHEADS,AMAZON EU,134.98,COMPUTER CONSUMABLES,DIRECT MARKETING-OTHER DIRECT MARKETERS/NOT ELSEW.,,
05/07/2018,SOLD MANAGEMENT AND OVERHEADS,AMAZON EU,134.98,EQUIPMENT,DIRECT MARKETING-OTHER DIRECT MARKETERS/NOT ELSEW.,,
05/07/2018,MALLOW CRESCENT,AMAZON UK MARKETPLACE,16.48,EQUIPMENT,BOOK STORES,,
05/07/2018,HOPE SERVICE - WEST,SAINSBURYS SACAT(4409),3.95,PURCHASE OF FOOD (RAW MATERIALS),"GROCERY STORES, SUPERMARKETS",,
05/07/2018,BURBANK COMMUNITY HOME,MDN WELCOME B/WAITROSE,3.00,PURCHASE OF FOOD (RAW MATERIALS),"MISC FOOD STORE-CONVENIENCE,MRKT,SPLTY,VENDNG MACS",,
05/07/2018,BURBANK COMMUNITY HOME,WELCOME BREAK BK,5.67,PURCHASE OF FOOD (RAW MATERIALS),"MISC FOOD STORE-CONVENIENCE,MRKT,SPLTY,VENDNG MACS",,
05/07/2018,TRANSPORT,AMAZON EU,47.98,OPERATIONAL FIRE EQUIPMENT,DIRECT MARKETING-OTHER DIRECT MARKETERS/NOT ELSEW.,,
05/07/2018,SERVICE DELIVERY RESOURCES,AMAZON EU,53.90,OPERATIONAL FIRE EQUIPMENT,DIRECT MARKETING-OTHER DIRECT MARKETERS/NOT ELSEW.,,
05/07/2018,TRANSPORT,BUCK & HICKMAN,34.61,OPERATIONAL FIRE EQUIPMENT,HARDWARE EQUIPMENT AND SUPPLIES,,
05/07/2018,TRANSPORT,KIOWA LIMITED,701.52,OPERATIONAL FIRE EQUIPMENT,BUSINESS SERVICES-NOT ELSEWHERE CLASSIFIED,,
05/07/2018,TRANSPORT,SP SERVICES,185.82,OPERATIONAL FIRE EQUIPMENT,DENTAL/LAB/MED/OPHTHALMIC HOSP EQUIP & SUPPLIES,,
05/07/2018,BIKEABILITY - CYCLE TRAINING,THE BIKEABILITY TRUST,"1,003.96",EQUIPMENT,STATIONERY/OFFICE SUPPLIES/PRINTING & WRITING PAP.,,
05/07/2018,SOLD DAY TO DAY OPERATIONS,AMAZON EU,134.98,EQUIPMENT,DIRECT MARKETING-OTHER DIRECT MARKETERS/NOT ELSEW.,,
05/07/2018,SOLD DAY TO DAY OPERATIONS,AMAZON EU,134.98,EQUIPMENT,DIRECT MARKETING-OTHER DIRECT MARKETERS/NOT ELSEW.,,
05/07/2018,TRANSPORT,DRIVELINE SYSTEMS,"1,407.00",VEHICLE REPAIRS AND MAINTENANCE,"ARCHITECTURAL, ENGINEERING, AND SURVEYING SERVICES",,
05/07/2018,PE/CDT MAINTENANCE OVERHEADS,WWW.CONCEPT2.CO.UK,116.02,ITEMS PURCHASED FOR RE-SALE,SPORTING GOODS STORES,,
05/07/2018,HOPE SERVICE - WEST,AMAZON EU,26.05,CURRICULUM CONSUMABLES,DIRECT MARKETING-OTHER DIRECT MARKETERS/NOT ELSEW.,,
05/07/2018,PERFORMANCE TEAM,IPF,-450.00,TRAINING EXPENSES EXTERNAL GENERAL,"ACCOUNTING, AUDITING AND BOOKKEEPING SERVICES",,
05/07/2018,ARUNDEL,TESCO STORES 5999,73.11,REFRESHMENT COSTS,"GROCERY STORES, SUPERMARKETS",,
05/07/2018,ARUNDEL,TESCO STORES 5999,12.00,REFRESHMENT COSTS,"GROCERY STORES, SUPERMARKETS",,
05/07/2018,PE/CDT MAINTENANCE OVERHEADS,THE WELDING CENTRE,71.40,EQUIPMENT,HARDWARE STORES,,
05/07/2018,COUNTY HALL,CATER-KWIK LTD,743.98,EQUIPMENT,"COMMERCIAL EQUIPMENT, NOT ELSEWHERE CLASSIFIED",,
05/07/2018,HILLSIDE,FARMHOUSE,160.00,EDUC VISITS/HOLS/CAMPS/TOYS,"BAR,LOUNGE,DISCO,NIGHTCLUB,TAVERN-ALCOHOLIC DRINKS",,
05/07/2018,HILLSIDE,FARMHOUSE,160.00,EDUC VISITS/HOLS/CAMPS/TOYS,"BAR,LOUNGE,DISCO,NIGHTCLUB,TAVERN-ALCOHOLIC DRINKS",,
05/07/2018,BANSTEAD YC,TESCO STORE 3235,39.63,PURCHASE OF FOOD (RAW MATERIALS),"GROCERY STORES, SUPERMARKETS",,
05/07/2018,FAMILIES GUILDFORD,TABLE TABLE41015900,1.69,REFRESHMENT COSTS,"EATING PLACES, RESTAURANTS",,
05/07/2018,TS SERVICE MANAGEMENT,TRADING STANDARDS INST,360.00,SUBSISTENCE AND CONFERENCE EXPENSES,DIRECT MARKETING-COMBINATION CATALOG/RETAIL MERCH.,,
05/07/2018,LIBERTAS COMMUNITY HOME,GUILDFORD LOCK & SAFE,8.40,EQUIPMENT,HARDWARE EQUIPMENT AND SUPPLIES,,
05/07/2018,GUILDFORD CMHRS CARE,HMCTS-SURREY125,75.00,FEES,FINES,,
05/07/2018,COBHAM CHILDRENS CENTRE,SAINSBURYS LOC(4180),14.78,REFRESHMENT COSTS,"GROCERY STORES, SUPERMARKETS",,
05/07/2018,SOUTH WEST OUTREACH,B & Q 1029,3.50,EQUIPMENT,"BUILDING MATERIALS, LUMBER STORES",,
05/07/2018,CONSORT HOUSE REDHILL,SAINSBURYS 2325,20.00,REFRESHMENT COSTS,"GROCERY STORES, SUPERMARKETS",,
05/07/2018,CHEYNE WALK COMMUNITY HOME,BLUE ARROW GATWICK,30.00,HIRE OF VEHICLES,LIMOUSINES AND TAXICABS,,
05/07/2018,NATIONAL TRADING STANDARDS SCAM TEAM,WWW.GATWICKAIRPORT.COM,28.00,MISCELLANEOUS STAFF TRAVEL,AUTOMOBILE PARKING LOTS AND GARAGES,,
05/07/2018,CENTRAL COMMUNICATIONS,GOOGLE  ADWS2060179426,500.00,PUBLICITY,DIRECT MARKETING-CONTINUITY/SUBSCRIPTION MERCHANTS,,
05/07/2018,SHELL UK LICENSING,CORNWALL COUNCIL,678.00,FEES,GOVERNMENT SERVICES-NOT ELSEWHERE CLASSIFIED,,
05/07/2018,SHELL UK LICENSING,HERTSMERE BOROUGH,113.00,FEES,"CLUBS-CNTRY,MBRSHIP(ATHLET,REC,SPRTS,PRIVATE GOLF",,
05/07/2018,SW CARE - LAC,FLYBE.COM ANWEVB       0,364.99,MISCELLANEOUS STAFF TRAVEL,"AIR CARRIERS, AIRLINES-NOT ELSEWHERE CLASSIFIED",,
05/07/2018,SW SECTION 17 CARE,TRAVELODGE,619.50,OTHER COMMUNITY CARE VOL,TRAVELODGE,,
05/07/2018,HILLSIDE,SOFT WHIP ICE CREAM,16.10,PURCHASE OF FOOD (RAW MATERIALS),FAST FOOD RESTAURANTS,,
05/07/2018,HILLSIDE,SOFT WHIP ICE CREAM,2.80,PURCHASE OF FOOD (RAW MATERIALS),FAST FOOD RESTAURANTS,,
05/07/2018,NE CARE - LAC,GRO HM PASSPORT OFFICE,53.25,OTHER COMMUNITY CARE VOL,GOVERNMENT SERVICES-NOT ELSEWHERE CLASSIFIED,,
05/07/2018,DOWNLANDS COUNTRYSIDE PROJECT,TESCO STORES,55.13,REFRESHMENT COSTS,"GROCERY STORES, SUPERMARKETS",,
05/07/2018,DOWNLANDS COUNTRYSIDE PROJECT,TESCO STORES,7.70,REFRESHMENT COSTS,"GROCERY STORES, SUPERMARKETS",,
05/07/2018,EXTENDED HOPE,TIMPSON LTD,20.30,CURRICULUM CONSUMABLES,"HAT CLEANING SHOPS, SHOE REPAIR SHOPS, SHOE SHINE",,
05/07/2018,EXTENDED HOPE,SAINSBURYS 0652,100.00,PURCHASE OF FOOD (RAW MATERIALS),"GROCERY STORES, SUPERMARKETS",,
05/07/2018,TARGETED INTERVENTION,ALLSAINTS,4.55,EDUC VISITS/HOLS/CAMPS/TOYS,"EATING PLACES, RESTAURANTS",,
05/07/2018,SPLASH PROJECT,NAUSICAA,211.51,EDUC VISITS/HOLS/CAMPS/TOYS,GOVERNMENT SERVICES-NOT ELSEWHERE CLASSIFIED,,
05/07/2018,IMT CRITICAL ENVIRONMENTS,AMAZON EU,16.70,EQUIPMENT,DIRECT MARKETING-OTHER DIRECT MARKETERS/NOT ELSEW.,,
05/07/2018,RUTH HOUSE,WWW.ARGOS.CO.UK,123.93,EQUIPMENT,DISCOUNT STORES,,
05/07/2018,HILLSIDE,SAINSBURYS 0784,27.50,PURCHASE OF FOOD (RAW MATERIALS),"GROCERY STORES, SUPERMARKETS",,
05/07/2018,TARGETED INTERVENTION,BIRD WORLD,53.95,EDUC VISITS/HOLS/CAMPS/TOYS,TOURIST ATTRACTIONS AND EXHIBITS,,
05/07/2018,TARGETED INTERVENTION,BIRD WORLD,7.30,EDUC VISITS/HOLS/CAMPS/TOYS,TOURIST ATTRACTIONS AND EXHIBITS,,
05/07/2018,LIBERTAS COMMUNITY HOME,SAINSBURYS SACAT 0652,21.30,PURCHASE OF FOOD (RAW MATERIALS),"GROCERY STORES, SUPERMARKETS",,
05/07/2018,LIBERTAS COMMUNITY HOME,SAINSBURYS SACAT 0652,9.00,EQUIPMENT,"GROCERY STORES, SUPERMARKETS",,
05/07/2018,LIBERTAS COMMUNITY HOME,SAINSBURYS SACAT 0652,135.60,PURCHASE OF FOOD (RAW MATERIALS),"GROCERY STORES, SUPERMARKETS",,
05/07/2018,FAMILIES MOLE VALLEY,TESCO STORE 2812,22.00,REFRESHMENT COSTS,"GROCERY STORES, SUPERMARKETS",,
05/07/2018,FIRE SERVICES IT,AMAZON UK MARKETPLACE,11.96,COMPUTER HARDWARE,BOOK STORES,,
05/07/2018,HOPE SERVICE - WEST,SAINSBURYS TO YOU 0686,42.35,PURCHASE OF FOOD (RAW MATERIALS),"GROCERY STORES, SUPERMARKETS",,
05/07/2018,HOPE SERVICE - WEST,SAINSBURYS TO YOU 0686,-1.00,PURCHASE OF FOOD (RAW MATERIALS),"GROCERY STORES, SUPERMARKETS",,
05/07/2018,CHEYNE WALK COMMUNITY HOME,WWW.BERSHKA.COM,32.93,"CLOTHING, UNIFORM AND LAUNDRY",FAMILY CLOTHING STORES,,
06/07/2018,SW CARE - CP & COURT LAC,SURREY CC CARD PAY,-11.00,OTHER COMMUNITY CARE VOL,COMPUTER NETWORK/INFORMATION SERVICES,,
06/07/2018,TARGETED INTERVENTION,STARBUCKS,5.30,EDUC VISITS/HOLS/CAMPS/TOYS,FAST FOOD RESTAURANTS,,
06/07/2018,TARGETED INTERVENTION,MCDONALDS,7.67,EDUC VISITS/HOLS/CAMPS/TOYS,FAST FOOD RESTAURANTS,,
06/07/2018,WEST CWD NON-LAC CARE,POTTERS INTERNATIONAL,"1,093.50",INDEPENDENT LIVING PLACEMENTS,"LODGING-HOTELS,MOTELS,RESORTS-NOT CLASSIFIED",,
06/07/2018,IMT CRITICAL ENVIRONMENTS,MILK&MORE,7.80,REFRESHMENT COSTS,DAIRY PRODUCTS STORES,,
06/07/2018,RUTH HOUSE,SAINSBURYS TO YOU 0686,47.45,PURCHASE OF FOOD (RAW MATERIALS),"GROCERY STORES, SUPERMARKETS",,
06/07/2018,RUTH HOUSE,SAINSBURYS TO YOU 0686,135.10,PURCHASE OF FOOD (RAW MATERIALS),"GROCERY STORES, SUPERMARKETS",,
06/07/2018,RUTH HOUSE,SAINSBURYS TO YOU 0686,-3.00,PURCHASE OF FOOD (RAW MATERIALS),"GROCERY STORES, SUPERMARKETS",,
06/07/2018,HILLSIDE,SAINSBURYS TO YOU 0675,31.35,PURCHASE OF FOOD (RAW MATERIALS),"GROCERY STORES, SUPERMARKETS",,
06/07/2018,HILLSIDE,SAINSBURYS TO YOU 0675,311.80,PURCHASE OF FOOD (RAW MATERIALS),"GROCERY STORES, SUPERMARKETS",,
06/07/2018,TARGETED INTERVENTION,SAINSBURYS SACAT 0652,34.54,EDUC VISITS/HOLS/CAMPS/TOYS,"GROCERY STORES, SUPERMARKETS",,
06/07/2018,TARGETED INTERVENTION,FREEDOM LEISURE,41.40,EDUC VISITS/HOLS/CAMPS/TOYS,GOVERNMENT SERVICES-NOT ELSEWHERE CLASSIFIED,,
06/07/2018,PSS COUNTYWIDE,WWW.CULTPEN.COM,120.00,EQUIPMENT,"OFFICE, SCHOOL SUPPLY, AND STATIONERY STORES",,
06/07/2018,CHEYNE WALK COMMUNITY HOME,SPRINGFIT LTD,7.50,EDUC VISITS/HOLS/CAMPS/TOYS,"CLUBS-CNTRY,MBRSHIP(ATHLET,REC,SPRTS,PRIVATE GOLF",,
06/07/2018,ORBIS FINANCE ASSISTANT DIRECTOR,NORTH KESTEVEN DISTRIC,600.00,SUBSCRIPTIONS,GOVERNMENT SERVICES-NOT ELSEWHERE CLASSIFIED,,
06/07/2018,OPEN DAY,TOOLSTATION LTD,30.00,FIXTURES AND FITTINGS,HARDWARE STORES,,
06/07/2018,FAIRCROFT COMMUNITY HOME,AMAZON EU,15.00,EQUIPMENT,DIRECT MARKETING-OTHER DIRECT MARKETERS/NOT ELSEW.,,
06/07/2018,SURREY ARTS GENERAL,CLUSKEYS CCP LTD,171.22,"CLOTHING, UNIFORM AND LAUNDRY",MISCELLANEOUS GENERAL MERCHANDISE,,
06/07/2018,WOODLANDS COMMUNITY HOME,WWW.GDHA.COM,145.00,EQUIPMENT,ELECTRICAL PARTS AND EQUIPMENT,,
06/07/2018,MAYFORD BC - COTTAGES,WWW.JOHNLEWIS.COM,244.00,EQUIPMENT,DEPARTMENT STORES,,
06/07/2018,HILLSIDE,SAINSBURYS SACAT 0675,3.98,PURCHASE OF FOOD (RAW MATERIALS),"GROCERY STORES, SUPERMARKETS",,
06/07/2018,HILLSIDE,SAINSBURYS SACAT 0675,30.37,PURCHASE OF FOOD (RAW MATERIALS),"GROCERY STORES, SUPERMARKETS",,
06/07/2018,HOPE SERVICE - WEST,SAINSBURYS LOC4116,16.65,PURCHASE OF FOOD (RAW MATERIALS),"GROCERY STORES, SUPERMARKETS",,
06/07/2018,HILLSIDE,AMAZON UK MARKETPLACE,2.76,STATIONERY,BOOK STORES,,
06/07/2018,HILLSIDE,AMAZON UK MARKETPLACE,5.71,STATIONERY,BOOK STORES,,
06/07/2018,HOPE SERVICE - WEST,SAINSBURYS SACAT(4409),10.30,PURCHASE OF FOOD (RAW MATERIALS),"GROCERY STORES, SUPERMARKETS",,
06/07/2018,EQUIPMENT SCC BUDGET,WILKO RETAIL LIMIT,8.20,EQUIPMENT,HOUSEHOLD APPLIANCE STORES,,
06/07/2018,TRANSPORT,PREMIER VANGUARD L,544.32,OPERATIONAL FIRE EQUIPMENT,"OFFICE, SCHOOL SUPPLY, AND STATIONERY STORES",,
06/07/2018,SOLD DAY TO DAY OPERATIONS,AMAZON UK MARKETPLACE,219.56,EQUIPMENT,BOOK STORES,,
06/07/2018,RUTH HOUSE,ARGOS LTD,35.94,EDUC VISITS/HOLS/CAMPS/TOYS,DISCOUNT STORES,,
06/07/2018,ARUNDEL,TESCO STORES 5999,173.25,REFRESHMENT COSTS,"GROCERY STORES, SUPERMARKETS",,
06/07/2018,COUNTY HALL,JCM LOCKSMITHS LTD,173.56,DAY TO DAY MAINTENANCE,HARDWARE STORES,,
06/07/2018,COUNTY HALL,CURRYS ONLINE,89.98,EQUIPMENT,ELECTRONIC SALES,,
06/07/2018,COVEHAM,SAINSBURYS 0687,30.00,EQUIPMENT,"GROCERY STORES, SUPERMARKETS",,
06/07/2018,FAMILIES WOKING,POUNDLAND LTD 1228,8.10,EDUC VISITS/HOLS/CAMPS/TOYS,DISCOUNT STORES,,
06/07/2018,FAMILIES WOKING,WH SMITH,31.96,EDUC VISITS/HOLS/CAMPS/TOYS,NEWS DEALERS AND NEWSSTANDS,,
06/07/2018,FAMILIES WOKING,GB01015  WOKING,7.00,EQUIPMENT,"GAME, TOY, AND HOBBY SHOPS",,
06/07/2018,SHELL UK LICENSING,WIRRAL MBC,452.00,FEES,GOVERNMENT SERVICES-NOT ELSEWHERE CLASSIFIED,,
06/07/2018,SURREY ARTS PROJECT,AMAZON UK MARKETPLACE,6.25,STATIONERY,BOOK STORES,,
06/07/2018,MASH,MILK&MORE,371.70,PURCHASE OF FOOD (RAW MATERIALS),DAIRY PRODUCTS STORES,,
06/07/2018,SPELTHORNE CMHRS CARE,HMCTS-SURREY125,75.00,FEES,FINES,,
06/07/2018,NE CARE - CP & COURT LAC,SDK ENVIROMENTAL LTD-M,9.60,OTHER COMMUNITY CARE VOL,BUSINESS SERVICES-NOT ELSEWHERE CLASSIFIED,,
06/07/2018,NATIONAL TRADING STANDARDS SCAM TEAM,AMAZON SVCS EU-UK AMAZ,39.50,STATIONERY,BOOK STORES,,
06/07/2018,SW CARE - CP & COURT LAC,BIG YELLOW SS CAMBERLE,238.96,OTHER COMMUNITY CARE VOL,"PUBLIC WAREHOUSING-FARM, REFRIG GOODS, HHG STORAGE",,
06/07/2018,NW CARE - NON-LAC CP & COURT,TRAVELODGE,51.00,OTHER COMMUNITY CARE VOL,TRAVELODGE,,
06/07/2018,NW CARE - NON-LAC CP & COURT,PREMIER INN,166.00,OTHER COMMUNITY CARE VOL,PREMIER INN,,
06/07/2018,SW CARE - LAC,THORPE PARK RESORT FIN,99.00,OTHER COMMUNITY CARE VOL,TOURIST ATTRACTIONS AND EXHIBITS,,
06/07/2018,SW CARE - CP & COURT LAC,SURREY CC CARD PAY,11.00,OTHER COMMUNITY CARE VOL,COMPUTER NETWORK/INFORMATION SERVICES,,
06/07/2018,HOLLAND CLOSE RESIDENTIAL HOME,DOMINOS PIZZA UK & IRE,27.49,REFRESHMENT COSTS,"EATING PLACES, RESTAURANTS",,
06/07/2018,HILLSIDE,COASTGUARD CAFE,17.00,PURCHASE OF FOOD (RAW MATERIALS),"EATING PLACES, RESTAURANTS",,
06/07/2018,EXTENDED HOPE,AMAZON UK MARKETPLACE,13.98,CURRICULUM EQUIPMENT AND FURNITURE,BOOK STORES,,
06/07/2018,EXTENDED HOPE,TESCO STORE 2590,129.69,PURCHASE OF FOOD (RAW MATERIALS),"GROCERY STORES, SUPERMARKETS",,
06/07/2018,WOODLANDS COMMUNITY HOME,SAINSBURYS TO YOU 0686,15.30,PURCHASE OF FOOD (RAW MATERIALS),"GROCERY STORES, SUPERMARKETS",,
06/07/2018,WOODLANDS COMMUNITY HOME,SAINSBURYS TO YOU 0686,141.05,PURCHASE OF FOOD (RAW MATERIALS),"GROCERY STORES, SUPERMARKETS",,
07/07/2018,LIBERTAS COMMUNITY HOME,ROBERT DYAS HOLDNG LTD,22.49,EQUIPMENT,HARDWARE STORES,,
07/07/2018,CORPORATE GROUP - LEGAL SERVICES,AMAZON UK MARKETPLACE,994.70,EQUIPMENT,BOOK STORES,,
07/07/2018,SPLASH PROJECT,CLACKET LANE WEST CONN,10.99,VEHICLE RUNNING COSTS,SERVICE STATIONS WITH OR WITHOUT ANCILLARY SERVICE,,
07/07/2018,CHEYNE WALK COMMUNITY HOME,BLUE ARROW GATWICK,60.00,NON-STAFF RELATED TRANSPORT COSTS,LIMOUSINES AND TAXICABS,,
07/07/2018,APPLEWOOD,ASDA GROCERIES ONLINE,203.47,PURCHASE OF FOOD (RAW MATERIALS),"GROCERY STORES, SUPERMARKETS",,
07/07/2018,APPLEWOOD,ASDA GROCERIES ONLINE,-11.10,PURCHASE OF FOOD (RAW MATERIALS),"GROCERY STORES, SUPERMARKETS",,
07/07/2018,HILLSIDE,SAINSBURYS 0784,17.95,PURCHASE OF FOOD (RAW MATERIALS),"GROCERY STORES, SUPERMARKETS",,
07/07/2018,BURBANK COMMUNITY HOME,GIGGLES INDOOR PLAY,45.00,EDUC VISITS/HOLS/CAMPS/TOYS,CHILD CARE SERVICES,,
07/07/2018,BURBANK COMMUNITY HOME,GIGGLES INDOOR PLAY,5.80,EDUC VISITS/HOLS/CAMPS/TOYS,CHILD CARE SERVICES,,
07/07/2018,BURBANK COMMUNITY HOME,GIGGLES INDOOR PLAY,5.10,EDUC VISITS/HOLS/CAMPS/TOYS,CHILD CARE SERVICES,,
07/07/2018,BURBANK COMMUNITY HOME,MCDONALDS,20.63,PURCHASE OF FOOD (RAW MATERIALS),FAST FOOD RESTAURANTS,,
07/07/2018,BURBANK COMMUNITY HOME,MCDONALDS,1.99,PURCHASE OF FOOD (RAW MATERIALS),FAST FOOD RESTAURANTS,,
07/07/2018,FAIRCROFT COMMUNITY HOME,SAINSBURYS PFS0473,1.25,REFRESHMENT COSTS,SERVICE STATIONS WITH OR WITHOUT ANCILLARY SERVICE,,
07/07/2018,FAIRCROFT COMMUNITY HOME,POST OFFICE COUNTER,30.00,POSTAGE AND COURIER CHARGES,POSTAL SERVICES-GOVERNMENT ONLY,,
07/07/2018,FAIRCROFT COMMUNITY HOME,APOLLO 3 LTD,43.65,EDUC VISITS/HOLS/CAMPS/TOYS,SPORTING GOODS STORES,,
07/07/2018,NW CARE - NON-LAC CP & COURT,NATIONAL EXPRESS LIMIT,66.10,OTHER COMMUNITY CARE VOL,BUS LINES,,
07/07/2018,HOLLAND CLOSE RESIDENTIAL HOME,TESCO-STORES 6647,132.35,PURCHASE OF FOOD (RAW MATERIALS),"GROCERY STORES, SUPERMARKETS",,
07/07/2018,YSS YOUTH CENTRE IMPROVEMENTS,AMAZON SVCS EU-UK AMAZ,29.98,EQUIPMENT,BOOK STORES,,
08/07/2018,ACT,AMAZON SVCS EU-UK AMAZ,10.31,EQUIPMENT,BOOK STORES,,
08/07/2018,FAIRCROFT COMMUNITY HOME,EL MEXICANA ( SURREY ),7.64,REFRESHMENT COSTS,"EATING PLACES, RESTAURANTS",,
08/07/2018,RUTH HOUSE,AMAZON EU,27.48,EQUIPMENT,DIRECT MARKETING-OTHER DIRECT MARKETERS/NOT ELSEW.,,
08/07/2018,YSS YOUTH CENTRE IMPROVEMENTS,AMAZON EU,25.79,DAY TO DAY MAINTENANCE,DIRECT MARKETING-OTHER DIRECT MARKETERS/NOT ELSEW.,,
08/07/2018,CHEYNE WALK COMMUNITY HOME,BLACKS BURGERS,97.15,REFRESHMENT COSTS,FAST FOOD RESTAURANTS,,
08/07/2018,CHEYNE WALK COMMUNITY HOME,CO-OP GROUP PETROL,15.00,TELECOMMUNICATION CHARGES,SERVICE STATIONS WITH OR WITHOUT ANCILLARY SERVICE,,
08/07/2018,FIRE SERVICES IT,AMAZON UK MARKETPLACE,22.18,COMPUTER HARDWARE,BOOK STORES,,
08/07/2018,HILLSIDE,SAINSBURYS SACAT 0784,18.10,PURCHASE OF FOOD (RAW MATERIALS),"GROCERY STORES, SUPERMARKETS",,
08/07/2018,NE EDUCATION PSYCHOLOGISTS,AMAZON EU,95.17,BOOKS,DIRECT MARKETING-OTHER DIRECT MARKETERS/NOT ELSEW.,,
08/07/2018,RBDM - GENERAL,AMAZON UK MARKETPLACE,18.97,EQUIPMENT,BOOK STORES,,
08/07/2018,BURBANK COMMUNITY HOME,3C_ WOKING BOROUGH COU,1.40,MISCELLANEOUS STAFF TRAVEL,AUTOMOBILE PARKING LOTS AND GARAGES,,
08/07/2018,SERVICE DELIVERY RESOURCES,AMAZON EU,58.35,OPERATIONAL FIRE EQUIPMENT,DIRECT MARKETING-OTHER DIRECT MARKETERS/NOT ELSEW.,,
08/07/2018,MAINTENANCE SURVEYING TEAM,AMAZON UK MARKETPLACE,63.30,EQUIPMENT,BOOK STORES,,
08/07/2018,FAIRCROFT COMMUNITY HOME,M&S SIMPLY FOOD,6.80,REFRESHMENT COSTS,"MISC FOOD STORE-CONVENIENCE,MRKT,SPLTY,VENDNG MACS",,
08/07/2018,FAIRCROFT COMMUNITY HOME,KFC,11.67,REFRESHMENT COSTS,FAST FOOD RESTAURANTS,,
08/07/2018,FAIRCROFT COMMUNITY HOME,WH SMITH TRAVEL,5.67,REFRESHMENT COSTS,NEWS DEALERS AND NEWSSTANDS,,
08/07/2018,FAIRCROFT COMMUNITY HOME,MCDONALDS,11.88,REFRESHMENT COSTS,FAST FOOD RESTAURANTS,,
08/07/2018,FAIRCROFT COMMUNITY HOME,MCDONALDS,8.01,REFRESHMENT COSTS,FAST FOOD RESTAURANTS,,
08/07/2018,FAIRCROFT COMMUNITY HOME,SAINSBURYS LOC(4180),24.60,EQUIPMENT,"GROCERY STORES, SUPERMARKETS",,
08/07/2018,FAIRCROFT COMMUNITY HOME,KFC,17.37,REFRESHMENT COSTS,FAST FOOD RESTAURANTS,,
08/07/2018,FAIRCROFT COMMUNITY HOME,SHELL BUCKLAND 238,2.64,REFRESHMENT COSTS,SERVICE STATIONS WITH OR WITHOUT ANCILLARY SERVICE,,
08/07/2018,CHEYNE WALK COMMUNITY HOME,AMAZON EU,11.48,EQUIPMENT,DIRECT MARKETING-OTHER DIRECT MARKETERS/NOT ELSEW.,,
08/07/2018,ACT,AMAZON SVCS EU-UK AMAZ,196.96,EQUIPMENT,BOOK STORES,,
08/07/2018,ACT,AMAZON SVCS EU-UK AMAZ,21.12,EQUIPMENT,BOOK STORES,,
08/07/2018,CENTRAL COMMUNICATIONS,GOOGLE  ADWS2060179426,500.00,PUBLICITY,DIRECT MARKETING-CONTINUITY/SUBSCRIPTION MERCHANTS,,
09/07/2018,WAVERLEY CMHRS CARE,PREMIER INN,908.00,FEES,PREMIER INN,,
09/07/2018,NW CARE - NON-LAC CP & COURT,PREMIER INN,86.00,OTHER COMMUNITY CARE VOL,PREMIER INN,,
09/07/2018,WOODLANDS COMMUNITY HOME,RYANAIR,402.96,EDUC VISITS/HOLS/CAMPS/TOYS,RYANAIR,,
09/07/2018,CHEYNE WALK COMMUNITY HOME,BLUE ARROW GATWICK,40.00,NON-STAFF RELATED TRANSPORT COSTS,LIMOUSINES AND TAXICABS,,
09/07/2018,CHEYNE WALK COMMUNITY HOME,HARVESTER,166.83,PURCHASE OF FOOD (RAW MATERIALS),"EATING PLACES, RESTAURANTS",,
09/07/2018,CHEYNE WALK COMMUNITY HOME,J D SPORTS PLC,67.00,"CLOTHING, UNIFORM AND LAUNDRY",SPORTING GOODS STORES,,
09/07/2018,IMT CRITICAL ENVIRONMENTS,MILK&MORE,33.68,REFRESHMENT COSTS,DAIRY PRODUCTS STORES,,
09/07/2018,FOSTERING SERVICE CENTRAL COSTS,AMAZON UK MARKETPLACE,7.26,EDUC VISITS/HOLS/CAMPS/TOYS,BOOK STORES,,
09/07/2018,MALLOW CRESCENT,SAINSBURYS 0670,-1.70,PURCHASE OF FOOD (RAW MATERIALS),"GROCERY STORES, SUPERMARKETS",,
09/07/2018,FAMILIES SPELTHORNE,TESCO STORE 2047,8.44,REFRESHMENT COSTS,"GROCERY STORES, SUPERMARKETS",,
09/07/2018,FAMILIES EPSOM AND EWELL,ARGOS RETAIL GROUP,177.22,EQUIPMENT,DISCOUNT STORES,,
09/07/2018,QUADRANT COURT WOKING,WICKES BUILDING,90.31,EQUIPMENT,"BUILDING MATERIALS, LUMBER STORES",,
09/07/2018,QUADRANT COURT WOKING,ARGOS LTD,119.92,EQUIPMENT,DISCOUNT STORES,,
09/07/2018,CONSERVATION,WWW.GREENLIGHTPUBLISHI,248.00,BOOKS,MISCELLANEOUS PUBLISHING AND PRINTING,,
09/07/2018,CONSERVATION,PAYPAL  FINDSRESEAR,8.50,BOOKS,"ORGANIZATIONS, MEMBERSHIP-NOT ELSEWHERE CLASSIFIED",,
09/07/2018,FAMILIES ELMBRIDGE,TESCO STORES 6738,6.10,REFRESHMENT COSTS,"GROCERY STORES, SUPERMARKETS",,
09/07/2018,FAIRCROFT COMMUNITY HOME,SAINSBURYS SACAT 0687,33.35,EQUIPMENT,"GROCERY STORES, SUPERMARKETS",,
09/07/2018,FAIRCROFT COMMUNITY HOME,CREAMS,20.25,REFRESHMENT COSTS,"EATING PLACES, RESTAURANTS",,
09/07/2018,FAIRCROFT COMMUNITY HOME,CREAMS,19.80,REFRESHMENT COSTS,"EATING PLACES, RESTAURANTS",,
09/07/2018,TARGETED INTERVENTION,STARBUCKS COBHAM,3.90,EDUC VISITS/HOLS/CAMPS/TOYS,"EATING PLACES, RESTAURANTS",,
09/07/2018,WOODLANDS COMMUNITY HOME,EASYJET,336.74,EDUC VISITS/HOLS/CAMPS/TOYS,EASYJET,,
09/07/2018,WOODLANDS COMMUNITY HOME,ECONOMYBOOKINGS.COM,14.76,HIRE OF VEHICLES,AUTOMOBILE RENTAL AGENCY-NOT ELSEWHERE CLASSIFIED,,
09/07/2018,LIBERTAS COMMUNITY HOME,SAINSBURYS SACAT 0652,3.00,EQUIPMENT,"GROCERY STORES, SUPERMARKETS",,
09/07/2018,LIBERTAS COMMUNITY HOME,SAINSBURYS SACAT 0652,13.10,PURCHASE OF FOOD (RAW MATERIALS),"GROCERY STORES, SUPERMARKETS",,
09/07/2018,LIBERTAS COMMUNITY HOME,SAINSBURYS SACAT 0652,157.09,PURCHASE OF FOOD (RAW MATERIALS),"GROCERY STORES, SUPERMARKETS",,
09/07/2018,HILLSIDE,SAINSBURYS 0675,1.50,PURCHASE OF FOOD (RAW MATERIALS),"GROCERY STORES, SUPERMARKETS",,
09/07/2018,HILLSIDE,SAINSBURYS 0675,68.70,PURCHASE OF FOOD (RAW MATERIALS),"GROCERY STORES, SUPERMARKETS",,
09/07/2018,HILLSIDE,SAINSBURYS 0675,4.80,PURCHASE OF FOOD (RAW MATERIALS),"GROCERY STORES, SUPERMARKETS",,
09/07/2018,HILLSIDE,SAINSBURYS 0675,27.39,PURCHASE OF FOOD (RAW MATERIALS),"GROCERY STORES, SUPERMARKETS",,
09/07/2018,HILLSIDE,SAINSBURYS 0675,6.50,PURCHASE OF FOOD (RAW MATERIALS),"GROCERY STORES, SUPERMARKETS",,
09/07/2018,FAMILIES WOKING,SAINSBURYS 0686,68.41,PURCHASE OF FOOD (RAW MATERIALS),"GROCERY STORES, SUPERMARKETS",,
09/07/2018,ADULT SKILLS,WWW.CGPBOOKS.CO.UK,595.00,EQUIPMENT,MISCELLANEOUS AND SPECIALTY RETAIL STORES,,
09/07/2018,TRAINING ENVIRONMENT SERVICES,WWW.PACTS.ORG.UK,210.60,STAFF TRAINING,"ORGANIZATIONS, CHARITABLE AND SOCIAL SERVICES",,
09/07/2018,ACL CENTRAL EXPENDITURE,TESCO STORE 3149,116.03,REFRESHMENT COSTS,"GROCERY STORES, SUPERMARKETS",,
09/07/2018,TRAINING ENVIRONMENT SERVICES,WESTMINSTER FORUM,276.00,STAFF TRAINING,"CONSULTING, MANAGEMENT, AND PUBLIC RELATIONS SVCS",,
09/07/2018,COVEHAM,SEA LIFE CENTRE,42.00,EDUC VISITS/HOLS/CAMPS/TOYS,TOURIST ATTRACTIONS AND EXHIBITS,,
09/07/2018,SE CARE - NON-LAC CP & COURT,SURREY CC CARD PAY,11.00,OTHER COMMUNITY CARE VOL,COMPUTER NETWORK/INFORMATION SERVICES,,
09/07/2018,SE SECTION 17 CARE,HOTEL ON BOOKING.COM,72.00,CHILDREN ACT SEC 17 PAYMENTS,"LODGING-HOTELS,MOTELS,RESORTS-NOT CLASSIFIED",,
09/07/2018,MALLOW CRESCENT,SAINSBURYS TO YOU 0652,131.50,PURCHASE OF FOOD (RAW MATERIALS),"GROCERY STORES, SUPERMARKETS",,
09/07/2018,HOPE SERVICE - WEST,SAINSBURYS TO YOU 0686,121.87,PURCHASE OF FOOD (RAW MATERIALS),"GROCERY STORES, SUPERMARKETS",,
09/07/2018,MALLOW CRESCENT,TESCO STORE 2590,12.50,PURCHASE OF FOOD (RAW MATERIALS),"GROCERY STORES, SUPERMARKETS",,
09/07/2018,MALLOW CRESCENT,TESCO STORE 2590,117.90,PURCHASE OF FOOD (RAW MATERIALS),"GROCERY STORES, SUPERMARKETS",,
09/07/2018,FAMILIES WAVERLEY,SOUTHERN CO-OP 0066,28.45,REFRESHMENT COSTS,DEPARTMENT STORES,,
09/07/2018,ARUNDEL,THE MAKATON CHARIT,70.50,PUBLICITY,SCHOOLS & EDUCATIONAL SVC-NOT ELSEWHERE CLASSIFIED,,
09/07/2018,ARUNDEL,THE MAKATON CHARIT,10.95,PUBLICITY,SCHOOLS & EDUCATIONAL SVC-NOT ELSEWHERE CLASSIFIED,,
09/07/2018,ACL CENTRAL EXPENDITURE,TESCO STORE 2160,45.47,REFRESHMENT COSTS,"GROCERY STORES, SUPERMARKETS",,
09/07/2018,MALLOW CRESCENT,SAINSBURYS 0670,14.20,PURCHASE OF FOOD (RAW MATERIALS),"GROCERY STORES, SUPERMARKETS",,
09/07/2018,MALLOW CRESCENT,SAINSBURYS 0670,100.85,PURCHASE OF FOOD (RAW MATERIALS),"GROCERY STORES, SUPERMARKETS",,
09/07/2018,DOWNLANDS COUNTRYSIDE PROJECT,MOLE COUNTRY STORES,230.06,EQUIPMENT,AGRICULTURAL COOPERATIVES,,
09/07/2018,DOWNLANDS COUNTRYSIDE PROJECT,MOLE COUNTRY STORES,47.40,EQUIPMENT,AGRICULTURAL COOPERATIVES,,
09/07/2018,CHEYNE WALK COMMUNITY HOME,BLUE ARROW GATWICK,12.50,NON-STAFF RELATED TRANSPORT COSTS,LIMOUSINES AND TAXICABS,,
09/07/2018,FAIRCROFT COMMUNITY HOME,TESCO STORE 2812,213.47,PURCHASE OF FOOD (RAW MATERIALS),"GROCERY STORES, SUPERMARKETS",,
09/07/2018,FAIRMOUNT HOUSE LEATHERHEAD,LIDL UK  LEATHERHEAD,10.00,PURCHASE OF FOOD (RAW MATERIALS),"GROCERY STORES, SUPERMARKETS",,
09/07/2018,CHMHS RAP TEAM,MIXAM UK LTD,423.00,PUBLICITY,MISCELLANEOUS PUBLISHING AND PRINTING,,
09/07/2018,PROPERTY OPERATIONS TEAM,B & Q 1029,46.50,PURCHASE OF BUILDING MATERIALS,"BUILDING MATERIALS, LUMBER STORES",,
09/07/2018,WOODLANDS COMMUNITY HOME,PHOTOBOX LIMITED,7.73,EQUIPMENT,MISCELLANEOUS PUBLISHING AND PRINTING,,
09/07/2018,HAYES BRIDGE BC - BUSINESS,SELDONS LOCKSMITH,47.43,EQUIPMENT,"DETECTVE/PROTECTVE AGNCY,SECURITY SRVS, ARMOR CARS",,
09/07/2018,APPLEWOOD,ASDA GROCERIES ONLINE,176.94,PURCHASE OF FOOD (RAW MATERIALS),"GROCERY STORES, SUPERMARKETS",,
09/07/2018,APPLEWOOD,ASDA GROCERIES ONLINE,-.42,PURCHASE OF FOOD (RAW MATERIALS),"GROCERY STORES, SUPERMARKETS",,
09/07/2018,HERITAGE PUBLIC SERVICE,TESCO STORES 2025,8.40,REFRESHMENT COSTS,"GROCERY STORES, SUPERMARKETS",,
09/07/2018,HERITAGE PUBLIC SERVICE,BOOKER LIMITED ALDERSH,37.18,REFRESHMENT COSTS,CATERERS,,
09/07/2018,NW EDUCATION PSYCHOLOGISTS,AMAZON UK MARKETPLACE,32.86,COMPUTER HARDWARE,BOOK STORES,,
09/07/2018,SW TEACHERS,PROSPECTS SERVICES,225.00,SUBSCRIPTIONS,SCHOOLS & EDUCATIONAL SVC-NOT ELSEWHERE CLASSIFIED,,
09/07/2018,NW TEACHERS,PROSPECTS SERVICES,225.00,SUBSCRIPTIONS,SCHOOLS & EDUCATIONAL SVC-NOT ELSEWHERE CLASSIFIED,,
09/07/2018,NE TEACHERS,PROSPECTS SERVICES,225.00,SUBSCRIPTIONS,SCHOOLS & EDUCATIONAL SVC-NOT ELSEWHERE CLASSIFIED,,
09/07/2018,SE TEACHERS,PROSPECTS SERVICES,225.00,SUBSCRIPTIONS,SCHOOLS & EDUCATIONAL SVC-NOT ELSEWHERE CLASSIFIED,,
09/07/2018,HOPE SERVICE - WEST,SAINSBURYS SACAT 0683,125.03,PURCHASE OF FOOD (RAW MATERIALS),"GROCERY STORES, SUPERMARKETS",,
09/07/2018,VIRTUAL SCHOOL FOR LAC PUPIL PREMIUM,BBS PROMO,479.70,SPECIALIST EDUCATIONAL STATIONERY,MISCELLANEOUS GENERAL MERCHANDISE,,
09/07/2018,VIRTUAL SCHOOL FOR LAC PUPIL PREMIUM,BBS PROMO,522.75,SPECIALIST EDUCATIONAL STATIONERY,MISCELLANEOUS GENERAL MERCHANDISE,,
09/07/2018,VIRTUAL SCHOOL FOR LAC PUPIL PREMIUM,BBS PROMO,562.73,SPECIALIST EDUCATIONAL STATIONERY,MISCELLANEOUS GENERAL MERCHANDISE,,
09/07/2018,ACL CENTRAL EXPENDITURE,THE CHALLENGER MAGAZIN,360.00,PUBLICITY,MISCELLANEOUS PUBLISHING AND PRINTING,,
09/07/2018,MEMBERS EXPENSES (INCL ALLOWANCES),THRING TOWNSEND,834.18,TRAINING EXPENSES EXTERNAL GENERAL,"ATTORNEYS, LEGAL SERVICES",,
09/07/2018,SOLD MANAGEMENT AND OVERHEADS,PORTIDENT.CO.UK,57.14,EQUIPMENT,"SPORTS APPAREL, RIDING APPAREL STORES",,
09/07/2018,LIBERTAS COMMUNITY HOME,DOMINOS PIZZA,18.99,PURCHASE OF FOOD (RAW MATERIALS),FAST FOOD RESTAURANTS,,
09/07/2018,SERVICE DELIVERY RESOURCES,AMAZON EU,27.72,CLEANING MATERIALS,DIRECT MARKETING-OTHER DIRECT MARKETERS/NOT ELSEW.,,
09/07/2018,SERVICE DELIVERY RESOURCES,AMAZON EU,27.72,CLEANING MATERIALS,DIRECT MARKETING-OTHER DIRECT MARKETERS/NOT ELSEW.,,
09/07/2018,SOLD ESTATES MANAGEMENT,AW CHAMPION LTD,227.82,DAY TO DAY MAINTENANCE,"BUILDING MATERIALS, LUMBER STORES",,
09/07/2018,SOLD ESTATES MANAGEMENT,DCS LEATHERHEAD,3.59,VEHICLE REPAIRS AND MAINTENANCE,"AUTOMOTIVE PARTS, ACCESSORIES STORES",,
09/07/2018,PE/CDT MAINTENANCE OVERHEADS,WWW.LAMPCO.CO.UK,14.98,ITEMS PURCHASED FOR RE-SALE,ELECTRICAL PARTS AND EQUIPMENT,,
09/07/2018,SOLD ESTATES MANAGEMENT,SCREWFIX DIR. LTD,86.11,DAY TO DAY MAINTENANCE,"BUILDING MATERIALS, LUMBER STORES",,
09/07/2018,PE/CDT MAINTENANCE OVERHEADS,HARROD UK SPORT,318.06,ITEMS PURCHASED FOR RE-SALE,"SPORTS APPAREL, RIDING APPAREL STORES",,
09/07/2018,MALLOW CRESCENT,TESCO STORE 2590,2.00,PURCHASE OF FOOD (RAW MATERIALS),"GROCERY STORES, SUPERMARKETS",,
09/07/2018,MALLOW CRESCENT,TESCO STORE 2590,85.16,PURCHASE OF FOOD (RAW MATERIALS),"GROCERY STORES, SUPERMARKETS",,
09/07/2018,COUNTY HALL,B & Q 1076,160.00,EQUIPMENT,"BUILDING MATERIALS, LUMBER STORES",,
09/07/2018,SHELL UK LICENSING,MEDWAY COUNCIL,79.00,FEES,GOVERNMENT SERVICES-NOT ELSEWHERE CLASSIFIED,,
09/07/2018,SHELL UK LICENSING,WWW.MIDSUFFOLK.GOV.UK,79.00,FEES,GOVERNMENT SERVICES-NOT ELSEWHERE CLASSIFIED,,
09/07/2018,SHELL UK LICENSING,BURY MBC /INTERNET,113.00,FEES,GOVERNMENT SERVICES-NOT ELSEWHERE CLASSIFIED,,
09/07/2018,SW CARE - CP & COURT LAC,SURREY CC CARD PAY,12.00,OTHER COMMUNITY CARE VOL,COMPUTER NETWORK/INFORMATION SERVICES,,
09/07/2018,SW CARE - CP & COURT LAC,SURREY CC CARD PAY,12.00,OTHER COMMUNITY CARE VOL,COMPUTER NETWORK/INFORMATION SERVICES,,
09/07/2018,FAMILIES REIGATE AND BANSTREAD,COSTA COFFEE,11.25,REFRESHMENT COSTS,FAST FOOD RESTAURANTS,,
09/07/2018,SURREY HEATH CMHRS CARE,HMCTS-SURREY125,75.00,FEES,FINES,,
09/07/2018,WOODLANDS COMMUNITY HOME,ECONOMYBOOKINGS.COM,2.50,HIRE OF VEHICLES,AUTOMOBILE RENTAL AGENCY-NOT ELSEWHERE CLASSIFIED,,
09/07/2018,WOODLANDS COMMUNITY HOME,ECONOMYBOOKINGS.COM,41.55,HIRE OF VEHICLES,AUTOMOBILE RENTAL AGENCY-NOT ELSEWHERE CLASSIFIED,,
09/07/2018,WOODLANDS COMMUNITY HOME,ARGOS RETAIL GROUP,23.98,EQUIPMENT,DISCOUNT STORES,,
09/07/2018,CHEYNE WALK COMMUNITY HOME,GLL HORLEY ANDERSON CE,15.00,EQUIPMENT,PROFESSIONAL SERVICES-NOT ELSEWHERE CLASSIFIED,,
09/07/2018,CHEYNE WALK COMMUNITY HOME,SHAKEAWAY,9.08,PURCHASE OF FOOD (RAW MATERIALS),FAST FOOD RESTAURANTS,,
09/07/2018,CHEYNE WALK COMMUNITY HOME,COUNTY MALL CAR PARK,2.50,NON-STAFF RELATED TRANSPORT COSTS,AUTOMOBILE PARKING LOTS AND GARAGES,,
09/07/2018,CHEYNE WALK COMMUNITY HOME,TESCO STORE 2560,17.38,PURCHASE OF FOOD (RAW MATERIALS),"GROCERY STORES, SUPERMARKETS",,
10/07/2018,ACT,AMAZON SVCS EU-UK AMAZ,50.15,EQUIPMENT,BOOK STORES,,
10/07/2018,NE CARE - LAC,GRO HM PASSPORT OFFICE,-29.85,OTHER COMMUNITY CARE VOL,GOVERNMENT SERVICES-NOT ELSEWHERE CLASSIFIED,,
10/07/2018,CHAIRMAN,SNAPPY SNAPS 148 KINGS,30.98,EQUIPMENT,"PHOTO DEVELOPING, PHOTOFINISHING LABORATORIES",,
10/07/2018,CHAIRMAN,SNAPPY SNAPS 148 KINGS,19.98,PRINTING,"PHOTO DEVELOPING, PHOTOFINISHING LABORATORIES",,
10/07/2018,MAYFORD BC - COTTAGES,WWW.JOHNLEWIS.COM,269.00,EQUIPMENT,DEPARTMENT STORES,,
10/07/2018,BURBANK COMMUNITY HOME,CAR PARKS SPH,3.50,MISCELLANEOUS STAFF TRAVEL,GOVERNMENT SERVICES-NOT ELSEWHERE CLASSIFIED,,
10/07/2018,BURBANK COMMUNITY HOME,ASPECTS RESTAURANT,2.75,REFRESHMENT COSTS,"EATING PLACES, RESTAURANTS",,
10/07/2018,SOLD ESTATES MANAGEMENT,SAINSBURYS SACAT 0670,2.50,EQUIPMENT,"GROCERY STORES, SUPERMARKETS",,
10/07/2018,SE EDUCATION PSYCHOLOGISTS,BOOKDEPOSITORY.COM,7.99,BOOKS,BOOK STORES,,
10/07/2018,SURREY ARTS PROJECT,PANALUX LTD,"2,935.04",FIXTURES AND FITTINGS,PROFESSIONAL SERVICES-NOT ELSEWHERE CLASSIFIED,,
10/07/2018,COMMUNITY PARTNERSHIP,WWW.POSTURITE.CO.UK,43.14,FURNITURE,OFFICE AND COMMERCIAL FURNITURE,,
10/07/2018,GUILDFORD CMHRS CARE,HMCTS-SURREY125,75.00,FEES,FINES,,
10/07/2018,LIBERTAS COMMUNITY HOME,SAINSBURYS SACAT 0652,16.40,EDUC VISITS/HOLS/CAMPS/TOYS,"GROCERY STORES, SUPERMARKETS",,
10/07/2018,WOKING LIBRARY,CUPSDIRECT.CO.UK,77.82,EDUC VISITS/HOLS/CAMPS/TOYS,MISCELLANEOUS AND SPECIALTY RETAIL STORES,,
10/07/2018,WOKING LIBRARY,HOBBYCRAFT (INTERNET),174.00,EDUC VISITS/HOLS/CAMPS/TOYS,"ARTIST SUPPLY STORES, CRAFT SHOPS",,
10/07/2018,WORKPLACE COMMERCIAL TEAM,WWW.BANNERWAREHOUSE.CO,131.50,EQUIPMENT,MISCELLANEOUS PUBLISHING AND PRINTING,,
10/07/2018,TRANSPORT,PAYPAL  KD AND JAY,314.91,EQUIPMENT,LAWN AND GARDEN SUPPLY STORES,,
10/07/2018,TRANSPORT,PAYPAL  HIFITOWER,"1,614.90",EQUIPMENT,ELECTRONIC SALES,,
10/07/2018,OPEN DAY,PAYPAL  BEAUTY4LESS,68.97,EQUIPMENT,COSMETIC STORES,,
10/07/2018,FIRE SERVICES IT,AMAZON UK MARKETPLACE,167.45,COMPUTER HARDWARE,BOOK STORES,,
10/07/2018,FIRE SERVICES IT,AMAZON UK MARKETPLACE,36.14,COMPUTER CONSUMABLES,BOOK STORES,,
10/07/2018,DUKE OF EDINBURGH AWARD,WWW.EDOFE.ORG,26.50,EDUC VISITS/HOLS/CAMPS/TOYS,VARIETY STORES,,
10/07/2018,MALLOW CRESCENT,CURRYS ONLINE,324.98,EQUIPMENT,ELECTRONIC SALES,,
10/07/2018,RBDM - GENERAL,AMAZON UK MARKETPLACE,107.91,EQUIPMENT,BOOK STORES,,
10/07/2018,LIBERTAS COMMUNITY HOME,VICTORIA CAR HIRE,401.86,EDUC VISITS/HOLS/CAMPS/TOYS,AUTOMOBILE RENTAL AGENCY-NOT ELSEWHERE CLASSIFIED,,
10/07/2018,EQUIPMENT SCC BUDGET,METCALFE CATERING,137.40,EQUIPMENT,"EQUIP, FURNITURE, HOME FURNSHNGS STRS (EXCPT APPL)",,
10/07/2018,CHILDREN WITH DISABILITIES TEAM WEST,WWW.USHERHALL.CO.UK,342.50,TRAINING EXPENSES EXTERNAL GENERAL,GOVERNMENT SERVICES-NOT ELSEWHERE CLASSIFIED,,
10/07/2018,CLOSED LANDFILL,SCREWFIX DIRECT,39.99,EQUIPMENT,"BUILDING MATERIALS, LUMBER STORES",,
10/07/2018,SOLD ESTATES MANAGEMENT,A J S LANDROVERS,391.33,VEHICLE REPAIRS AND MAINTENANCE,AUTOMOTIVE TIRE STORES,,
10/07/2018,PE/CDT MAINTENANCE OVERHEADS,FITNESS-SALE.COUK,94.20,ITEMS PURCHASED FOR RE-SALE,SPORTING GOODS STORES,,
10/07/2018,FARNHAM AEI WEST STREET,HOMEBASE LTD 290,11.60,DAY TO DAY MAINTENANCE,"BUILDING MATERIALS, LUMBER STORES",,
10/07/2018,OPEN DAY,MANOMANOES,294.92,EQUIPMENT,HOME SUPPLY WAREHOUSE STORES,,
10/07/2018,CHEYNE WALK COMMUNITY HOME,WAITROSE 233,56.75,PURCHASE OF FOOD (RAW MATERIALS),"GROCERY STORES, SUPERMARKETS",,
10/07/2018,NEYWORK RESILENCE TEAM,AMAZON UK MARKETPLACE,9.99,EQUIPMENT,BOOK STORES,,
10/07/2018,NATIONAL TRADING STANDARDS SCAM TEAM,TRAVELODGE,169.00,MISCELLANEOUS STAFF TRAVEL,TRAVELODGE,,
10/07/2018,CENTRAL COMMUNICATIONS,FACEBK VT99FG22S2,383.67,PUBLICITY,ADVERTISING SERVICES,,
10/07/2018,CENTRAL COMMUNICATIONS,FACEBK WT99FG22S2,216.33,PUBLICITY,ADVERTISING SERVICES,,
10/07/2018,CENTRAL COMMUNICATIONS,GOOGLE  ADWS2060179426,500.00,PUBLICITY,DIRECT MARKETING-CONTINUITY/SUBSCRIPTION MERCHANTS,,
10/07/2018,SHELL UK LICENSING,WWW.ELMBRIDGE.GOV.UK,113.00,FEES,GOVERNMENT SERVICES-NOT ELSEWHERE CLASSIFIED,,
10/07/2018,SHELL UK LICENSING,WWW.ELMBRIDGE.GOV.UK,113.00,FEES,GOVERNMENT SERVICES-NOT ELSEWHERE CLASSIFIED,,
10/07/2018,LIBERTAS COMMUNITY HOME,MARTIN MCCOLL,113.77,NEWSPAPER AND PERIODICALS,"MISC FOOD STORE-CONVENIENCE,MRKT,SPLTY,VENDNG MACS",,
10/07/2018,LIBERTAS COMMUNITY HOME,BT PAY BY PHONE,67.07,TELECOMMUNICATION CHARGES,TELECOM INCL PREPAID/RECURRING PHONE SVCS,,
10/07/2018,HERITAGE STEWARDSHIP AND PRESERVATION,W M MORRISONS,4.62,REFRESHMENT COSTS,"GROCERY STORES, SUPERMARKETS",,
10/07/2018,FAMILIES WAVERLEY,ASDA SUPERSTORE,54.91,REFRESHMENT COSTS,"GROCERY STORES, SUPERMARKETS",,
10/07/2018,FAMILIES WAVERLEY,LIDL UK FARNHAM,9.08,REFRESHMENT COSTS,"GROCERY STORES, SUPERMARKETS",,
10/07/2018,TARGETED INTERVENTION,SQUIRES GARDEN CENTRE,6.35,EDUC VISITS/HOLS/CAMPS/TOYS,LAWN AND GARDEN SUPPLY STORES,,
10/07/2018,WOODLANDS COMMUNITY HOME,SAINSBURYS SACAT 0686,25.00,EQUIPMENT,"GROCERY STORES, SUPERMARKETS",,
10/07/2018,WOODLANDS COMMUNITY HOME,SAINSBURYS SACAT 0686,11.50,PURCHASE OF FOOD (RAW MATERIALS),"GROCERY STORES, SUPERMARKETS",,
10/07/2018,RUTH HOUSE,SAINSBURYS TO YOU 0686,54.00,PURCHASE OF FOOD (RAW MATERIALS),"GROCERY STORES, SUPERMARKETS",,
10/07/2018,RUTH HOUSE,SAINSBURYS TO YOU 0686,135.40,PURCHASE OF FOOD (RAW MATERIALS),"GROCERY STORES, SUPERMARKETS",,
10/07/2018,RUTH HOUSE,DECATHLON FARNBOROUGH,52.94,EQUIPMENT,SPORTING GOODS STORES,,
10/07/2018,FOSTERING SERVICE CENTRAL COSTS,AMAZON UK MARKETPLACE,3.36,EDUC VISITS/HOLS/CAMPS/TOYS,BOOK STORES,,
10/07/2018,FOSTERING SERVICE CENTRAL COSTS,AMAZON UK MARKETPLACE,11.00,EDUC VISITS/HOLS/CAMPS/TOYS,BOOK STORES,,
10/07/2018,FOSTERING SERVICE CENTRAL COSTS,AMAZON UK MARKETPLACE,3.09,EDUC VISITS/HOLS/CAMPS/TOYS,BOOK STORES,,
10/07/2018,ACL CENTRAL EXPENDITURE,TESCO STORE 2160,102.23,REFRESHMENT COSTS,"GROCERY STORES, SUPERMARKETS",,
10/07/2018,COVEHAM,COTTON TRADERS ONLINE,93.99,"CLOTHING, UNIFORM AND LAUNDRY",FAMILY CLOTHING STORES,,
10/07/2018,COVEHAM,VISION EXPRESS,159.00,EQUIPMENT,"OPTICIANS,OPTICAL GOODS & EYEGLASSES",,
10/07/2018,EPSOM & EWELL CMHRS CARE,HMCTS-SURREY125,150.00,FEES,FINES,,
10/07/2018,QUADRANT COURT WOKING,AMAZON UK MARKETPLACE,21.57,EQUIPMENT,BOOK STORES,,
10/07/2018,ACL CENTRAL EXPENDITURE,AMAZON UK MARKETPLACE,15.25,EQUIPMENT,BOOK STORES,,
10/07/2018,CHEYNE WALK COMMUNITY HOME,AARON RUSSELL ACADEMY,70.00,MISCELLANEOUS INSURANCE,BARBER AND BEAUTY SHOPS,,
10/07/2018,CHEYNE WALK COMMUNITY HOME,TESCO STORE 2560,9.50,MISCELLANEOUS INSURANCE,"GROCERY STORES, SUPERMARKETS",,
10/07/2018,CHEYNE WALK COMMUNITY HOME,CLINTONS 175,9.48,MISCELLANEOUS INSURANCE,"GIFT, CARD, NOVELTY AND SOUVENIR SHOPS",,
10/07/2018,CHEYNE WALK COMMUNITY HOME,THE PERFUME SHOP,58.00,MISCELLANEOUS INSURANCE,COSMETIC STORES,,
10/07/2018,COVEHAM,SAINSBURYS TO YOU 0687,121.68,REFRESHMENT COSTS,"GROCERY STORES, SUPERMARKETS",,
10/07/2018,LOCAL ASSISTANCE SCHEME,WWW.JOHNLEWIS.COM,354.00,FURNITURE,DEPARTMENT STORES,,
10/07/2018,NE CARE - LAC,GRO HM PASSPORT OFFICE,29.85,OTHER COMMUNITY CARE VOL,GOVERNMENT SERVICES-NOT ELSEWHERE CLASSIFIED,,
10/07/2018,CHEYNE WALK COMMUNITY HOME,AMAZON PRIME,7.99,EQUIPMENT,DIRECT MARKETING-CONTINUITY/SUBSCRIPTION MERCHANTS,,
10/07/2018,CHEYNE WALK COMMUNITY HOME,BELL CARRIAGE LTD,80.00,HIRE OF VEHICLES,LIMOUSINES AND TAXICABS,,
10/07/2018,CHEYNE WALK COMMUNITY HOME,KFC,27.10,PURCHASE OF FOOD (RAW MATERIALS),FAST FOOD RESTAURANTS,,
10/07/2018,ORBIS HR PROGRAMME AND PERFORMANCE,AMAZON UK MARKETPLACE,54.90,EQUIPMENT,BOOK STORES,,
10/07/2018,FAMILIES RUNNYMEDE,TESCO STORES 6683,2.29,REFRESHMENT COSTS,"GROCERY STORES, SUPERMARKETS",,
10/07/2018,FAIRCROFT COMMUNITY HOME,SAINSBURYS LOC(4180),5.55,PURCHASE OF FOOD (RAW MATERIALS),"GROCERY STORES, SUPERMARKETS",,
10/07/2018,TRANSPORT,BUYITDIRECT CO UK,974.48,EQUIPMENT,COMPUTER SOFTWARE STORES,,
10/07/2018,FAIRCROFT COMMUNITY HOME,TESCO STORE 2812,84.90,EQUIPMENT,"GROCERY STORES, SUPERMARKETS",,
10/07/2018,FAIRMOUNT HOUSE LEATHERHEAD,SCREWFIX DIR.LTD,144.93,EQUIPMENT,"BUILDING MATERIALS, LUMBER STORES",,
10/07/2018,FOSTERING SERVICE CENTRAL COSTS,AMAZON EU,9.45,EDUC VISITS/HOLS/CAMPS/TOYS,DIRECT MARKETING-OTHER DIRECT MARKETERS/NOT ELSEW.,,
10/07/2018,WOODLANDS COMMUNITY HOME,NETFLIX.COM,7.99,EDUC VISITS/HOLS/CAMPS/TOYS,"CABLE, SATELLITE, OTHER PAY TELEVISION, RADIO SVCS",,
11/07/2018,NW CARE - LAC,STARLING RESIDENCE BY,"1,118.36",INDEPENDENT LIVING PLACEMENTS,"LODGING-HOTELS,MOTELS,RESORTS-NOT CLASSIFIED",,
11/07/2018,SW SECTION 17 CARE,PREMIER INN,"1,037.50",INDEPENDENT LIVING PLACEMENTS,PREMIER INN,,
11/07/2018,SHELL UK LICENSING,WWW.OADBY-WIGSTON.GOV.,113.00,FEES,GOVERNMENT SERVICES-NOT ELSEWHERE CLASSIFIED,,
11/07/2018,TARGETED INTERVENTION,TOP GOLF LTD,11.65,EDUC VISITS/HOLS/CAMPS/TOYS,"CLUBS-CNTRY,MBRSHIP(ATHLET,REC,SPRTS,PRIVATE GOLF",,
11/07/2018,TARGETED INTERVENTION,TOP GOLF LTD,2.00,EDUC VISITS/HOLS/CAMPS/TOYS,"CLUBS-CNTRY,MBRSHIP(ATHLET,REC,SPRTS,PRIVATE GOLF",,
11/07/2018,ROW VOLUNTEERS WEST                     ,PANTILES SERVICE STATI,10.01,PETROL/DIESEL ALL OFF BUSINESS,SERVICE STATIONS WITH OR WITHOUT ANCILLARY SERVICE,,
11/07/2018,ROW VOLUNTEERS WEST                     ,METHOLD VEHICLE HIRE,54.00,HIRE OF VEHICLES,AUTOMOBILE RENTAL AGENCY-NOT ELSEWHERE CLASSIFIED,,
11/07/2018,DEVELOPMENT TEAM,GITHUB.COM  6BH7W,33.46,COMPUTER SERVICES,"COMPUTERS, COMPUTER PERIPHERAL EQUIPMENT, SOFTWARE",,
11/07/2018,RUTH HOUSE,AMAZON UK MARKETPLACE,29.16,EQUIPMENT,BOOK STORES,,
11/07/2018,RUTH HOUSE,G J HONOUR,534.79,PURCHASE OF FOOD (RAW MATERIALS),"MISC FOOD STORE-CONVENIENCE,MRKT,SPLTY,VENDNG MACS",,
11/07/2018,RUTH HOUSE,C-MONETIQUETTE,22.50,"CLOTHING, UNIFORM AND LAUNDRY",HARDWARE STORES,,
11/07/2018,RUTH HOUSE,INNOVATE SERVICES LTD,50.00,PURCHASE OF FOOD (RAW MATERIALS),CATERERS,,
11/07/2018,RUTH HOUSE,WWW.PARENTMAIL.CO.,100.00,PURCHASE OF FOOD (RAW MATERIALS),SCHOOLS & EDUCATIONAL SVC-NOT ELSEWHERE CLASSIFIED,,
11/07/2018,ADULT SKILLS,WWW.CGPBOOKS.CO.UK,500.00,EQUIPMENT,MISCELLANEOUS AND SPECIALTY RETAIL STORES,,
11/07/2018,TARGETED INTERVENTION,BITTOMS KINGSTON,1.60,EDUC VISITS/HOLS/CAMPS/TOYS,GOVERNMENT SERVICES-NOT ELSEWHERE CLASSIFIED,,
11/07/2018,BURBANK COMMUNITY HOME,W M MORRISONS,12.15,3RD PARTY PAYMENTS PRIVATE INDIV,"GROCERY STORES, SUPERMARKETS",,
11/07/2018,SCHOOL APPEALS,AMAZON UK MARKETPLACE,23.99,REFRESHMENT COSTS,BOOK STORES,,
11/07/2018,SCHOOL APPEALS,TESCO STORE 3324,20.10,REFRESHMENT COSTS,"GROCERY STORES, SUPERMARKETS",,
11/07/2018,ARUNDEL,WWW.JOHNLEWIS.COM,23.60,EQUIPMENT,DEPARTMENT STORES,,
11/07/2018,HOPE SERVICE - WEST,SAINSBURYS SACAT(4409),.90,PURCHASE OF FOOD (RAW MATERIALS),"GROCERY STORES, SUPERMARKETS",,
11/07/2018,PERFORMING ARTS LIBRARY,AMAZON UK MARKETPLACE,31.48,EQUIPMENT,BOOK STORES,,
11/07/2018,PRISON CAPITATION                       ,AMAZON EU,8.29,LIBRARY RESOURCES,DIRECT MARKETING-OTHER DIRECT MARKETERS/NOT ELSEW.,,
11/07/2018,PRISON CAPITATION                       ,AMAZON EU,60.57,LIBRARY RESOURCES,DIRECT MARKETING-OTHER DIRECT MARKETERS/NOT ELSEW.,,
11/07/2018,SURREY ARTS PROJECT,AMAZON SVCS EU-UK AMAZ,20.48,STATIONERY,BOOK STORES,,
11/07/2018,TRANSPORT,AMAZON UK MARKETPLACE,24.00,STATIONERY,BOOK STORES,,
11/07/2018,SERVICE DELIVERY RESOURCES,AMAZON EU,27.72,CLEANING MATERIALS,DIRECT MARKETING-OTHER DIRECT MARKETERS/NOT ELSEW.,,
11/07/2018,SERVICE DELIVERY RESOURCES,AMAZON EU,27.72,CLEANING MATERIALS,DIRECT MARKETING-OTHER DIRECT MARKETERS/NOT ELSEW.,,
11/07/2018,SOLD ESTATES MANAGEMENT,RAPID RACKING,154.80,EQUIPMENT,"EQUIP, FURNITURE, HOME FURNSHNGS STRS (EXCPT APPL)",,
11/07/2018,HOPE SERVICE - WEST,AMAZON UK MARKETPLACE,20.14,MEDICAL EXPENSES,BOOK STORES,,
11/07/2018,CLOSED LANDFILL,WWW.TOOLSTATION.COM,105.12,EQUIPMENT,HARDWARE STORES,,
11/07/2018,HOPE SERVICE - WEST,AMAZON UK MARKETPLACE,13.23,CURRICULUM CONSUMABLES,BOOK STORES,,
11/07/2018,CHEYNE WALK COMMUNITY HOME,WWW.REIGATE-BANSTEAD.G,35.00,VEHICLE RUNNING COSTS,GOVERNMENT SERVICES-NOT ELSEWHERE CLASSIFIED,,
11/07/2018,CHEYNE WALK COMMUNITY HOME,WWW.REIGATE-BANSTEAD.G,35.00,VEHICLE RUNNING COSTS,GOVERNMENT SERVICES-NOT ELSEWHERE CLASSIFIED,,
11/07/2018,PE/CDT MAINTENANCE OVERHEADS,BEARINGS AND BELTS,189.41,EQUIPMENT,"ARCHITECTURAL, ENGINEERING, AND SURVEYING SERVICES",,
11/07/2018,TS SERVICE MANAGEMENT,CANFORD AUDIO PLC,206.74,DAY TO DAY MAINTENANCE,ELECTRONIC SALES,,
11/07/2018,SERVICE DELIVERY SENIOR MANAGEMENT,AMAZON SVCS EU-UK AMAZ,27.80,EQUIPMENT,BOOK STORES,,
11/07/2018,TRAINING AND DEVELOPMENT,TRAVELODGE,233.90,SUBSISTENCE AND CONFERENCE EXPENSES,TRAVELODGE,,
11/07/2018,FAMILIES RUNNYMEDE,TESCO STORES-2017,5.60,REFRESHMENT COSTS,"GROCERY STORES, SUPERMARKETS",,
11/07/2018,LIBRARIES CENTRAL,AMAZON UK MARKETPLACE,79.99,FURNITURE,BOOK STORES,,
11/07/2018,ACL CENTRAL EXPENDITURE,WWW.CGPBOOKS.CO.UK,"1,100.00",CURRIC BOOKS,MISCELLANEOUS AND SPECIALTY RETAIL STORES,,
11/07/2018,ENSEMBLES & TOURS,SHEETMUSICPLUS.COM,136.96,CURRIC BOOKS,"MUSIC STORES-INSTRUMENTS, PIANOS, SHEET MUSIC",,
11/07/2018,HOLLAND CLOSE RESIDENTIAL HOME,SAINSBURYS 2325,34.15,FIXTURES AND FITTINGS,"GROCERY STORES, SUPERMARKETS",,
11/07/2018,CHEYNE WALK COMMUNITY HOME,AMAZON UK MARKETPLACE,25.54,EQUIPMENT,BOOK STORES,,
11/07/2018,NEYWORK RESILENCE TEAM,AMAZON UK MARKETPLACE,32.49,EQUIPMENT,BOOK STORES,,
11/07/2018,NEYWORK RESILENCE TEAM,AMAZON UK MARKETPLACE,18.98,EQUIPMENT,BOOK STORES,,
11/07/2018,CENTRAL COMMUNICATIONS,GOOGLE  ADWS2060179426,500.00,PUBLICITY,DIRECT MARKETING-CONTINUITY/SUBSCRIPTION MERCHANTS,,
11/07/2018,SHELL UK LICENSING,SCOTTISH ENVIRONMENT P,823.96,FEES,GOVERNMENT SERVICES-NOT ELSEWHERE CLASSIFIED,,
11/07/2018,WOODLANDS COMMUNITY HOME,SAINSBURYS 0686,2.90,PURCHASE OF FOOD (RAW MATERIALS),"GROCERY STORES, SUPERMARKETS",,
11/07/2018,WOODLANDS COMMUNITY HOME,SAINSBURYS 0686,16.39,PURCHASE OF FOOD (RAW MATERIALS),"GROCERY STORES, SUPERMARKETS",,
11/07/2018,PROPERTY OPERATIONS TEAM,SCREWFIX DIR. LTD,8.99,PURCHASE OF BUILDING MATERIALS,"GROCERY STORES, SUPERMARKETS",,
11/07/2018,MGMT - ORBIS (MANAGEMENT TEAM & SUPPORT),CUSTOMER THERMOMETER,92.45,FEES,COMPUTER SOFTWARE STORES,,
11/07/2018,WOODLANDS COMMUNITY HOME,AMAZON UK MARKETPLACE,16.99,EQUIPMENT,BOOK STORES,,
11/07/2018,WOODLANDS COMMUNITY HOME,AMAZON UK MARKETPLACE,36.73,EQUIPMENT,BOOK STORES,,
11/07/2018,WOODLANDS COMMUNITY HOME,AMAZON SVCS EU-UK AMAZ,23.97,EDUC VISITS/HOLS/CAMPS/TOYS,BOOK STORES,,
11/07/2018,PERMANENTLY SURPLUS LAND,HORACE SMITH LOCKSMITH,81.55,EQUIPMENT,HARDWARE STORES,,
11/07/2018,HAVEN GUILDFORD,SAINSBURYS SACAT 0828,5.34,PURCHASE OF FOOD (RAW MATERIALS),"GROCERY STORES, SUPERMARKETS",,
11/07/2018,CHEYNE WALK COMMUNITY HOME,TAYLOR AUTOS LTD,27.00,VEHICLE REPAIRS AND MAINTENANCE,AUTOMOTIVE SERVICE SHOPS,,
11/07/2018,CHEYNE WALK COMMUNITY HOME,TESCO-STORES 6647,253.31,PURCHASE OF FOOD (RAW MATERIALS),"GROCERY STORES, SUPERMARKETS",,
11/07/2018,FAMILIES SURREY HEATH,ASDA SUPERSTORE,20.06,REFRESHMENT COSTS,"GROCERY STORES, SUPERMARKETS",,
11/07/2018,COBHAM CHILDRENS CENTRE,BOOKWHEN.COM - BOOKING,228.00,COMPUTER SOFTWARE,COMPUTER SOFTWARE STORES,,
11/07/2018,ACL CENTRAL EXPENDITURE,THE POST OFFICE,7.30,POSTAGE AND COURIER CHARGES,POSTAL SERVICES-GOVERNMENT ONLY,,
11/07/2018,COVEHAM,WWW.ANYVAN.COM,131.00,REMOVAL EXPENSES,"FREIGHT CARRIER,TRUCKING-LCL/LNG DIST, MVG/STORAGE",,
11/07/2018,LOCAL ASSISTANCE SCHEME,WWW.JOHNLEWIS.COM,28.50,FURNITURE,DEPARTMENT STORES,,
11/07/2018,SOUTH WEST OUTREACH,SAINSBURYS TO YOU 0652,37.03,PURCHASE OF FOOD (RAW MATERIALS),"GROCERY STORES, SUPERMARKETS",,
11/07/2018,SOUTH WEST OUTREACH,SAINSBURYS TO YOU 0652,57.45,PURCHASE OF FOOD (RAW MATERIALS),"GROCERY STORES, SUPERMARKETS",,
11/07/2018,CHEYNE WALK COMMUNITY HOME,AMAZON UK MARKETPLACE,40.17,EQUIPMENT,BOOK STORES,,
11/07/2018,ASYLUM SEEKERS 18+,VILLAGE HOTEL LEEDS NO,59.00,OTHER COMMUNITY CARE VOL,"LODGING-HOTELS,MOTELS,RESORTS-NOT CLASSIFIED",,
11/07/2018,SW CARE - CP & COURT LAC,SURREY CC CARD PAY,21.00,OTHER COMMUNITY CARE VOL,COMPUTER NETWORK/INFORMATION SERVICES,,
11/07/2018,ARUNDEL,TESCO STORES 5999,102.44,REFRESHMENT COSTS,"GROCERY STORES, SUPERMARKETS",,
11/07/2018,ACL CENTRAL EXPENDITURE,TESCO STORE 2160,40.57,REFRESHMENT COSTS,"GROCERY STORES, SUPERMARKETS",,
11/07/2018,ROW VOLUNTEERS WEST                     ,CARRICK SIGNS LTD,229.20,PURCHASE OF BUILDING MATERIALS,MISCELLANEOUS PUBLISHING AND PRINTING,,
11/07/2018,FAMILIES SPELTHORNE,TESCO STORES-2047,3.20,CURRICULUM CONSUMABLES,"GROCERY STORES, SUPERMARKETS",,
11/07/2018,WOODLANDS COMMUNITY HOME,SAINSBURYS TO YOU 0686,22.00,PURCHASE OF FOOD (RAW MATERIALS),"GROCERY STORES, SUPERMARKETS",,
11/07/2018,WOODLANDS COMMUNITY HOME,SAINSBURYS TO YOU 0686,80.49,PURCHASE OF FOOD (RAW MATERIALS),"GROCERY STORES, SUPERMARKETS",,
11/07/2018,TARGETED INTERVENTION,TESCO STORES-2047,39.00,EDUC VISITS/HOLS/CAMPS/TOYS,"GROCERY STORES, SUPERMARKETS",,
11/07/2018,ALP EDGE OF CARE,MCDONALDS,3.68,EDUC VISITS/HOLS/CAMPS/TOYS,FAST FOOD RESTAURANTS,,
11/07/2018,TARGETED INTERVENTION,TESCO STORE 2047,11.47,EDUC VISITS/HOLS/CAMPS/TOYS,"GROCERY STORES, SUPERMARKETS",,
11/07/2018,TARGETED INTERVENTION,TESCO STORE 2047,8.70,EDUC VISITS/HOLS/CAMPS/TOYS,"GROCERY STORES, SUPERMARKETS",,
11/07/2018,TRANSPORT,FIRST DIESEL INJECTION,"1,328.86",VEHICLE REPAIRS AND MAINTENANCE,AUTOMOTIVE SERVICE SHOPS,,
11/07/2018,BURBANK COMMUNITY HOME,SAINSBURYS TO YOU 0686,312.94,PURCHASE OF FOOD (RAW MATERIALS),"GROCERY STORES, SUPERMARKETS",,
11/07/2018,BURBANK COMMUNITY HOME,SAINSBURYS TO YOU 0686,-4.00,PURCHASE OF FOOD (RAW MATERIALS),"GROCERY STORES, SUPERMARKETS",,
11/07/2018,ACCOMMODATION CLEANING AND REFURBISHMENT,RICHARD HAWORTH LTD,492.48,EQUIPMENT,MISCELLANEOUS HOUSE FURNISHING SPECIALTY SHOPS,,
11/07/2018,MARCH OF THE WOMEN,AMAZON EU,14.99,BOOKS,DIRECT MARKETING-OTHER DIRECT MARKETERS/NOT ELSEW.,,
11/07/2018,HERITAGE STEWARDSHIP AND PRESERVATION,WWW.PRESERVATIONEQUIPM,107.64,STATIONERY,"PUBLIC WAREHOUSING-FARM, REFRIG GOODS, HHG STORAGE",,
11/07/2018,HERITAGE STEWARDSHIP AND PRESERVATION,SKR ABEBOOKS 4C4JSF,6.53,BOOKS,BOOK STORES,,
11/07/2018,BURBANK COMMUNITY HOME,WOKINGHIGH.SURREY.SCH.,300.00,EDUC VISITS/HOLS/CAMPS/TOYS,"SCHOOLS, ELEMENTARY AND SECONDARY",,
11/07/2018,BURBANK COMMUNITY HOME,AMAZON UK MARKETPLACE,6.99,EQUIPMENT,BOOK STORES,,
11/07/2018,LOCAL DELIVERY GROUP,WWW.MEONUK.COM,80.42,EQUIPMENT,BUSINESS SERVICES-NOT ELSEWHERE CLASSIFIED,,
11/07/2018,TARGETED INTERVENTION,STARBUCKS COBHAM,8.40,EDUC VISITS/HOLS/CAMPS/TOYS,"EATING PLACES, RESTAURANTS",,
11/07/2018,WOODLANDS COMMUNITY HOME,3C_ INDIGO PARK HIGH S,3.00,CAR ALLOWANCES,AUTOMOBILE PARKING LOTS AND GARAGES,,
11/07/2018,WOODLANDS COMMUNITY HOME,THE RANGE,31.97,EQUIPMENT,DEPARTMENT STORES,,
11/07/2018,WOODLANDS COMMUNITY HOME,MCDONALDS,15.66,PURCHASE OF FOOD (RAW MATERIALS),"EATING PLACES, RESTAURANTS",,
11/07/2018,WOODLANDS COMMUNITY HOME,GO OUTDOORS,44.99,EQUIPMENT,SPORTING GOODS STORES,,
11/07/2018,WOODLANDS COMMUNITY HOME,CORAL REEF WATERWORLD,16.40,EDUC VISITS/HOLS/CAMPS/TOYS,"CLUBS-CNTRY,MBRSHIP(ATHLET,REC,SPRTS,PRIVATE GOLF",,
11/07/2018,WEST CWD NON-LAC CARE,WWW.SACOAPARTMENTS.CO.,"3,023.04",INDEPENDENT LIVING PLACEMENTS,"LODGING-HOTELS,MOTELS,RESORTS-NOT CLASSIFIED",,
11/07/2018,CHEYNE WALK COMMUNITY HOME,PLANET SWEET,13.35,PURCHASE OF FOOD (RAW MATERIALS),FAST FOOD RESTAURANTS,,
11/07/2018,CHEYNE WALK COMMUNITY HOME,AMAZON UK MARKETPLACE,19.99,EQUIPMENT,BOOK STORES,,
11/07/2018,CHEYNE WALK COMMUNITY HOME,AA DRIVING SCHOOL,162.50,PURCHASE CARD TRANSACTION LOG DEFAULT,AUTOMOBILE ASSOCIATIONS,,
11/07/2018,CHEYNE WALK COMMUNITY HOME,CARDS DIRECT REDHILL,9.48,EQUIPMENT,"GIFT, CARD, NOVELTY AND SOUVENIR SHOPS",,
11/07/2018,CHEYNE WALK COMMUNITY HOME,TESCO STORE 2560,12.00,PURCHASE OF FOOD (RAW MATERIALS),"GROCERY STORES, SUPERMARKETS",,
11/07/2018,ORBIS HR PROGRAMME AND PERFORMANCE,AMAZON UK MARKETPLACE,27.99,EQUIPMENT,BOOK STORES,,
12/07/2018,WEST CWD NON-LAC CARE,POTTERS INTERNATIONAL,"1,036.00",INDEPENDENT LIVING PLACEMENTS,"LODGING-HOTELS,MOTELS,RESORTS-NOT CLASSIFIED",,
12/07/2018,NE CARE - CP & COURT LAC,WWW.ARGOS.CO.UK,180.34,EQUIPMENT,DISCOUNT STORES,,
12/07/2018,SHELL UK LICENSING,SCOTTISH ENVIRONMENT P,"3,000.00",FEES,GOVERNMENT SERVICES-NOT ELSEWHERE CLASSIFIED,,
12/07/2018,YSS YOUTH CENTRE IMPROVEMENTS,TVLICENSING.CO.UK,150.50,FEES,"CONSULTING, MANAGEMENT, AND PUBLIC RELATIONS SVCS",,
12/07/2018,YSS YOUTH CENTRE IMPROVEMENTS,TVLICENSING.CO.UK,150.50,FEES,"CONSULTING, MANAGEMENT, AND PUBLIC RELATIONS SVCS",,
12/07/2018,YSS YOUTH CENTRE IMPROVEMENTS,TVLICENSING.CO.UK,150.50,FEES,"CONSULTING, MANAGEMENT, AND PUBLIC RELATIONS SVCS",,
12/07/2018,YSS YOUTH CENTRE IMPROVEMENTS,TVLICENSING.CO.UK,150.50,FEES,"CONSULTING, MANAGEMENT, AND PUBLIC RELATIONS SVCS",,
12/07/2018,BURBANK COMMUNITY HOME,BEEFEATER40011205,6.78,REFRESHMENT COSTS,"EATING PLACES, RESTAURANTS",,
12/07/2018,ASHFORD LIBRARY,AMAZON UK MARKETPLACE,23.48,EQUIPMENT,BOOK STORES,,
12/07/2018,SPELTHORNE CMHRS CARE,HMCTS-SURREY125,75.00,FEES,FINES,,
12/07/2018,LOCAL ASSISTANCE SCHEME,WWW.JOHNLEWIS.COM,281.95,FURNITURE,DEPARTMENT STORES,,
12/07/2018,HILLSIDE,SAINSBURYS 0784,11.25,PURCHASE OF FOOD (RAW MATERIALS),"GROCERY STORES, SUPERMARKETS",,
12/07/2018,NW CARE - LAC,WWW.NATIONWIDEHIREUK.C,233.96,OTHER COMMUNITY CARE VOL,AUTOMOBILE RENTAL AGENCY-NOT ELSEWHERE CLASSIFIED,,
12/07/2018,CHEYNE WALK COMMUNITY HOME,AMAZON EU,46.80,LIBRARY RESOURCES,DIRECT MARKETING-OTHER DIRECT MARKETERS/NOT ELSEW.,,
12/07/2018,CHEYNE WALK COMMUNITY HOME,WWW.NIKESTORE.COM,74.47,"CLOTHING, UNIFORM AND LAUNDRY",MEN'S AND WOMEN'S CLOTHING STORES,,
12/07/2018,CHEYNE WALK COMMUNITY HOME,CHIQUITO 2015,130.08,MISCELLANEOUS INSURANCE,"EATING PLACES, RESTAURANTS",,
12/07/2018,ACL CENTRAL EXPENDITURE,WP-THE VIRTUAL COL,30.00,TRAINING USING EXTERNAL PROVIDERS,SCHOOLS & EDUCATIONAL SVC-NOT ELSEWHERE CLASSIFIED,,
12/07/2018,ACL CENTRAL EXPENDITURE,AMAZON UK MARKETPLACE,74.75,COMPUTER HARDWARE,BOOK STORES,,
12/07/2018,ACL CENTRAL EXPENDITURE,AMAZON UK MARKETPLACE,14.99,EQUIPMENT,BOOK STORES,,
12/07/2018,LOCAL ASSISTANCE SCHEME,AMAZON UK MARKETPLACE,226.13,FURNITURE,BOOK STORES,,
12/07/2018,LOCAL ASSISTANCE SCHEME,WEBSTER FLOORS LTD,300.00,FURNITURE,FLOOR COVERING STORES,,
12/07/2018,NE CARE - LAC,LB CROYDON,12.00,OTHER COMMUNITY CARE VOL,GOVERNMENT SERVICES-NOT ELSEWHERE CLASSIFIED,,
12/07/2018,NE CARE - NON-LAC CP & COURT,TRAVELODGE,704.75,INDEPENDENT LIVING PLACEMENTS,TRAVELODGE,,
12/07/2018,FIRE & RESCUE COMMUNITY SAFETY,WWW.HTHUGHES.COM,254.34,"CLOTHING, UNIFORM AND LAUNDRY",MEN'S AND WOMEN'S CLOTHING STORES,,
12/07/2018,NE CARE - NON-LAC CP & COURT,RB KINGSTON GUILDHALL2,21.00,CHILDREN ACT SEC 17 PAYMENTS,GOVERNMENT SERVICES-NOT ELSEWHERE CLASSIFIED,,
12/07/2018,SHELL UK LICENSING,ADUR DISTRICT COUNCIL,113.00,FEES,GOVERNMENT SERVICES-NOT ELSEWHERE CLASSIFIED,,
12/07/2018,SW CARE - CP & COURT LAC,EXPEDIA 7365525125374,60.00,OTHER COMMUNITY CARE VOL,TRAVEL AGENCIES AND TOUR OPERATORS,,
12/07/2018,SW CARE - CP & COURT LAC,WWW.WIGHTLINK.CO.UK,97.50,OTHER COMMUNITY CARE VOL,"TRANSPRTN-SUBRBN & LOCAL COMTR PSNGR, INCL FERRIES",,
12/07/2018,SW CARE - CP & COURT LAC,SURREY CC CARD PAY,30.00,OTHER COMMUNITY CARE VOL,COMPUTER NETWORK/INFORMATION SERVICES,,
12/07/2018,BUSINESS UNIT,SUBWAY,86.00,TRAINING EXPENSES EXTERNAL GENERAL,"EATING PLACES, RESTAURANTS",,
12/07/2018,EXTENDED HOPE,TESCO STORE 2590,103.82,PURCHASE OF FOOD (RAW MATERIALS),"GROCERY STORES, SUPERMARKETS",,
12/07/2018,PROPERTY OPERATIONS TEAM,B & Q 1029,14.18,PURCHASE OF BUILDING MATERIALS,"BUILDING MATERIALS, LUMBER STORES",,
12/07/2018,PROPERTY OPERATIONS TEAM,B & Q 1029,19.62,PURCHASE OF BUILDING MATERIALS,"BUILDING MATERIALS, LUMBER STORES",,
12/07/2018,WOODLANDS COMMUNITY HOME,AMAZON UK MARKETPLACE,7.99,3RD PARTY PAYMENTS PRIVATE INDIV,BOOK STORES,,
12/07/2018,WOODLANDS COMMUNITY HOME,AMAZON UK MARKETPLACE,13.99,EDUC VISITS/HOLS/CAMPS/TOYS,BOOK STORES,,
12/07/2018,KARIBU COMMUNITY HOME,ASDA SUPERSTORE,30.05,PURCHASE OF FOOD (RAW MATERIALS),"GROCERY STORES, SUPERMARKETS",,
12/07/2018,IMT CRITICAL ENVIRONMENTS,AMAZON UK MARKETPLACE,13.99,EQUIPMENT,BOOK STORES,,
12/07/2018,IMT CRITICAL ENVIRONMENTS,AMAZON UK MARKETPLACE,41.36,EQUIPMENT,BOOK STORES,,
12/07/2018,IMT CRITICAL ENVIRONMENTS,MILK&MORE,7.80,REFRESHMENT COSTS,DAIRY PRODUCTS STORES,,
12/07/2018,TARGETED INTERVENTION,MUSEUM IN DOCKLANDS,3.99,EXAMINATION FEES,TOURIST ATTRACTIONS AND EXHIBITS,,
12/07/2018,TARGETED INTERVENTION,CH&CO CATERING LTD,7.80,EDUC VISITS/HOLS/CAMPS/TOYS,CATERERS,,
12/07/2018,FAMILIES MOLE VALLEY,LIDL UK  LEATHERHEAD,23.26,REFRESHMENT COSTS,"GROCERY STORES, SUPERMARKETS",,
12/07/2018,FIRE SERVICES IT,AMAZON UK MARKETPLACE,6.48,COMPUTER HARDWARE,BOOK STORES,,
12/07/2018,HOPE SERVICE - WEST,SAINSBURYS TO YOU 0686,104.20,PURCHASE OF FOOD (RAW MATERIALS),"GROCERY STORES, SUPERMARKETS",,
12/07/2018,ACL CENTRAL EXPENDITURE,AMAZON UK MARKETPLACE,99.68,EQUIPMENT,BOOK STORES,,
12/07/2018,ACCESS 2 EDUCATION SW NON-MEDICAL,SURREY CC CARD PAY,16.00,TRAINING EXPENSES EXTERNAL GENERAL,COMPUTER NETWORK/INFORMATION SERVICES,,
12/07/2018,HOPE SERVICE - WEST,THE RICHMON FELLOW SHI,5.75,REFRESHMENT COSTS,LAWN AND GARDEN SUPPLY STORES,,
12/07/2018,WOODLANDS COMMUNITY HOME,TIMPSON LTD,10.00,FIXTURES AND FITTINGS,"HAT CLEANING SHOPS, SHOE REPAIR SHOPS, SHOE SHINE",,
12/07/2018,WOODLANDS COMMUNITY HOME,SAINSBURYS SACAT 0686,3.00,EQUIPMENT,"GROCERY STORES, SUPERMARKETS",,
12/07/2018,WOODLANDS COMMUNITY HOME,SAINSBURYS SACAT 0686,21.00,PURCHASE OF FOOD (RAW MATERIALS),"GROCERY STORES, SUPERMARKETS",,
12/07/2018,SPP INDEPENDENT SUPPORT GRANT,WWW.IPSEA.ORG.UK,150.00,TRAINING EXPENSES EXTERNAL GENERAL,SCHOOLS & EDUCATIONAL SVC-NOT ELSEWHERE CLASSIFIED,,
12/07/2018,EQUIPMENT SCC BUDGET,FIRSTCHOICE CATERING S,48.34,EQUIPMENT,INDUSTRIAL SUPPLIES NOT ELSEWHERE CLASSIFIED,,
12/07/2018,TRANSPORT,GEOGRAPHERS A-Z MAP CO,43.39,OPERATIONAL FIRE EQUIPMENT,"OFFICE, SCHOOL SUPPLY, AND STATIONERY STORES",,
12/07/2018,TRANSPORT,WWW.PRINTEDPAPERPRODUC,72.84,STATIONERY,"OFFICE, SCHOOL SUPPLY, AND STATIONERY STORES",,
12/07/2018,ACCESS 2 EDUCATION SW NON-MEDICAL,SURREY CC CARD PAY,16.00,TRAINING EXPENSES EXTERNAL GENERAL,COMPUTER NETWORK/INFORMATION SERVICES,,
12/07/2018,ACCESS 2 EDUCATION SW NON-MEDICAL,SURREY CC CARD PAY,16.00,TRAINING EXPENSES EXTERNAL GENERAL,COMPUTER NETWORK/INFORMATION SERVICES,,
12/07/2018,DOWNLANDS COUNTRYSIDE PROJECT,MOLE COUNTRY STORES,20.64,EQUIPMENT,AGRICULTURAL COOPERATIVES,,
12/07/2018,DOWNLANDS COUNTRYSIDE PROJECT,HALFORDS 0725,8.00,EQUIPMENT,BICYCLE SHOPS-SALES AND SERVICE,,
12/07/2018,FAIRCROFT COMMUNITY HOME,AMAZON UK MARKETPLACE,26.97,3RD PARTY PAYMENTS PRIVATE INDIV,BOOK STORES,,
12/07/2018,HILLSIDE,SAINSBURYS 0675,7.50,PURCHASE OF FOOD (RAW MATERIALS),"GROCERY STORES, SUPERMARKETS",,
12/07/2018,HILLSIDE,SAINSBURYS 0675,75.35,PURCHASE OF FOOD (RAW MATERIALS),"GROCERY STORES, SUPERMARKETS",,
12/07/2018,HR - SURREY ACADEMY,STANWELL HOTEL LIMITED,288.50,TRAINING EXPENSES EXTERNAL GENERAL,"LODGING-HOTELS,MOTELS,RESORTS-NOT CLASSIFIED",,
12/07/2018,FAMILIES RUNNYMEDE,SAINSBURYS SACAT 0652,7.35,REFRESHMENT COSTS,"GROCERY STORES, SUPERMARKETS",,
12/07/2018,FAMILIES WOKING,THE RANGE,41.66,EQUIPMENT,DEPARTMENT STORES,,
12/07/2018,SUPERFAST BROADBAND ECONOMIC DEVELOPMENT,LAYERSHIFT,60.00,COMPUTER SERVICES,COMPUTER NETWORK/INFORMATION SERVICES,,
12/07/2018,CHEYNE WALK COMMUNITY HOME,AMAZON UK MARKETPLACE,12.77,EQUIPMENT,BOOK STORES,,
12/07/2018,ARUNDEL,TESCO STORES 5999,-2.00,REFRESHMENT COSTS,"GROCERY STORES, SUPERMARKETS",,
12/07/2018,TARGETED INTERVENTION,FRENCH BROTHERS LIMITE,35.00,EDUC VISITS/HOLS/CAMPS/TOYS,TOURIST ATTRACTIONS AND EXHIBITS,,
12/07/2018,TARGETED INTERVENTION,COSTA COFFEE 43038140,12.20,EDUC VISITS/HOLS/CAMPS/TOYS,FAST FOOD RESTAURANTS,,
12/07/2018,FAMILIES TANDRIDGE,WWW.UKWRISTBANDS.COM,48.98,EQUIPMENT,ACCESSORY AND APPAREL STORES-MISCELLANEOUS,,
12/07/2018,HERITAGE PUBLIC SERVICE,W M MORRISONS,17.66,REFRESHMENT COSTS,"GROCERY STORES, SUPERMARKETS",,
12/07/2018,FAMILIES EPSOM AND EWELL,ARGOS RETAIL GROUP,44.99,EQUIPMENT,DISCOUNT STORES,,
12/07/2018,FAMILIES EPSOM AND EWELL,ARGOS RETAIL GROUP,127.96,EQUIPMENT,DISCOUNT STORES,,
12/07/2018,ARUNDEL,TESCO STORES 5999,18.39,REFRESHMENT COSTS,"GROCERY STORES, SUPERMARKETS",,
12/07/2018,ARUNDEL,TESCO STORES 5999,31.20,REFRESHMENT COSTS,"GROCERY STORES, SUPERMARKETS",,
12/07/2018,TARGETED INTERVENTION,TICKETOFFICESALE,38.25,EDUC VISITS/HOLS/CAMPS/TOYS,PASSENGER RAILWAYS,,
12/07/2018,TARGETED INTERVENTION,M&S SIMPLY FOOD,3.40,EDUC VISITS/HOLS/CAMPS/TOYS,"MISC FOOD STORE-CONVENIENCE,MRKT,SPLTY,VENDNG MACS",,
12/07/2018,BURBANK COMMUNITY HOME,3C_ WOKING BOROUGH COU,1.40,EDUC VISITS/HOLS/CAMPS/TOYS,AUTOMOBILE PARKING LOTS AND GARAGES,,
12/07/2018,SOLD ESTATES MANAGEMENT,MERITYRE SPECIALISTS,107.98,VEHICLE REPAIRS AND MAINTENANCE,"AUTOMOTIVE PARTS, ACCESSORIES STORES",,
12/07/2018,HOPE SERVICE - WEST,AMAZON UK MARKETPLACE,14.75,CURRICULUM CONSUMABLES,BOOK STORES,,
12/07/2018,ARUNDEL,ASDA SUPERSTORE,42.89,REFRESHMENT COSTS,"GROCERY STORES, SUPERMARKETS",,
12/07/2018,PE/CDT MAINTENANCE OVERHEADS,DENFORD LIMITED,396.00,ITEMS PURCHASED FOR RE-SALE,"COMMERCIAL EQUIPMENT, NOT ELSEWHERE CLASSIFIED",,
12/07/2018,FAIRCROFT COMMUNITY HOME,AMAZON UK MARKETPLACE,43.94,3RD PARTY PAYMENTS PRIVATE INDIV,BOOK STORES,,
12/07/2018,LIBERTAS COMMUNITY HOME,WWW.EUREKADIRECT.CO.UK,55.92,MEDICAL EXPENSES,DENTAL/LAB/MED/OPHTHALMIC HOSP EQUIP & SUPPLIES,,
12/07/2018,COBHAM CHILDRENS CENTRE,WAITROSE 176,9.87,REFRESHMENT COSTS,"GROCERY STORES, SUPERMARKETS",,
12/07/2018,ACL CENTRAL EXPENDITURE,AMAZON UK MARKETPLACE,149.50,COMPUTER HARDWARE,BOOK STORES,,
12/07/2018,ACL CENTRAL EXPENDITURE,AMAZON UK MARKETPLACE,6.60,EQUIPMENT,BOOK STORES,,
12/07/2018,BURBANK COMMUNITY HOME,NETFLIX.COM,7.99,EDUC VISITS/HOLS/CAMPS/TOYS,"CABLE, SATELLITE, OTHER PAY TELEVISION, RADIO SVCS",,
13/07/2018,ARUNDEL,TESCO STORES 5999,180.77,REFRESHMENT COSTS,"GROCERY STORES, SUPERMARKETS",,
13/07/2018,OPEN DAY,BOOKER LIMITED REDHILL,254.95,PUBLICITY,CATERERS,,
13/07/2018,PROJECTS AND CONTRACTS GROUP,ENVIROMENT AGENCY,501.25,FEES,GOVERNMENT SERVICES-NOT ELSEWHERE CLASSIFIED,,
13/07/2018,PSSS VISUALLY IMPAIRED,WWW.KAYPICTURES.CO.UK,56.00,EQUIPMENT,MISCELLANEOUS AND SPECIALTY RETAIL STORES,,
13/07/2018,IMT CRITICAL ENVIRONMENTS,BOOKER LIMITED REDHILL,18.99,REFRESHMENT COSTS,CATERERS,,
13/07/2018,NW CARE - LAC,EASYJET,164.26,NON-STAFF RELATED TRANSPORT COSTS,EASYJET,,
13/07/2018,NW CARE - LAC,EASYJET,133.32,NON-STAFF RELATED TRANSPORT COSTS,EASYJET,,
13/07/2018,NW CARE - LAC,EASYJET,464.22,NON-STAFF RELATED TRANSPORT COSTS,EASYJET,,
13/07/2018,NW CARE - LAC,EASYJET,167.66,NON-STAFF RELATED TRANSPORT COSTS,EASYJET,,
13/07/2018,SCHOOL GAMES LOC 2015-16                ,W M MORRISON,15.32,HIRE OF VEHICLES,SERVICE STATIONS WITH OR WITHOUT ANCILLARY SERVICE,,
13/07/2018,WAVERLEY CMHRS CARE,TRAVELODGE,692.50,FEES,TRAVELODGE,,
13/07/2018,IMT MODERN WORKER,MSFT  <E010063Q17>,180.32,COMPUTER SERVICES,"COMPUTERS, COMPUTER PERIPHERAL EQUIPMENT, SOFTWARE",,
13/07/2018,IMT MODERN WORKER,MSFT  <E010063UPH>,356.32,COMPUTER SERVICES,"COMPUTERS, COMPUTER PERIPHERAL EQUIPMENT, SOFTWARE",,
13/07/2018,COVEHAM,WWW.ANYVAN.COM,40.00,REMOVAL EXPENSES,"FREIGHT CARRIER,TRUCKING-LCL/LNG DIST, MVG/STORAGE",,
13/07/2018,SW CARE - CP & COURT LAC,SLOUGH BOROUGH COUNCIL,12.60,OTHER COMMUNITY CARE VOL,GOVERNMENT SERVICES-NOT ELSEWHERE CLASSIFIED,,
13/07/2018,RUTH HOUSE,SAINSBURYS TO YOU 0686,82.18,PURCHASE OF FOOD (RAW MATERIALS),"GROCERY STORES, SUPERMARKETS",,
13/07/2018,RUTH HOUSE,SAINSBURYS TO YOU 0686,150.75,PURCHASE OF FOOD (RAW MATERIALS),"GROCERY STORES, SUPERMARKETS",,
13/07/2018,RUTH HOUSE,BT BILL PAYMENT 2,45.47,TELECOMMUNICATION CHARGES,TELECOMMUNICATION EQUIPMENT INCL TELEPHONE SALES,,
13/07/2018,TARGETED INTERVENTION,WAITROSE 859,1.35,EDUC VISITS/HOLS/CAMPS/TOYS,"GROCERY STORES, SUPERMARKETS",,
13/07/2018,NW CARE - LAC,SURREY CC CARD PAY,21.00,OTHER COMMUNITY CARE VOL,COMPUTER NETWORK/INFORMATION SERVICES,,
13/07/2018,WOODLANDS COMMUNITY HOME,SAINSBURYS TO YOU 0686,40.95,PURCHASE OF FOOD (RAW MATERIALS),"GROCERY STORES, SUPERMARKETS",,
13/07/2018,WOODLANDS COMMUNITY HOME,SAINSBURYS TO YOU 0686,116.15,PURCHASE OF FOOD (RAW MATERIALS),"GROCERY STORES, SUPERMARKETS",,
13/07/2018,PRISON CAPITATION                       ,AMAZON SVCS EU-UK AMAZ,8.17,LIBRARY RESOURCES,BOOK STORES,,
13/07/2018,SOLD DAY TO DAY OPERATIONS,THE BUSHCRAFT STOR,158.00,EQUIPMENT,SPORTING GOODS STORES,,
13/07/2018,TRANSPORT,AMAZON UK MARKETPLACE,20.88,VEHICLE REPAIRS AND MAINTENANCE,BOOK STORES,,
13/07/2018,APPLEWOOD,ASDA GROCERIES ONLINE,156.13,PURCHASE OF FOOD (RAW MATERIALS),"GROCERY STORES, SUPERMARKETS",,
13/07/2018,APPLEWOOD,ASDA GROCERIES ONLINE,1.23,PURCHASE OF FOOD (RAW MATERIALS),"GROCERY STORES, SUPERMARKETS",,
13/07/2018,BURBANK COMMUNITY HOME,VALENTINOS,32.48,"CLOTHING, UNIFORM AND LAUNDRY",MEN'S/WOMEN'S/CHILDREN'S UNIFORMS/COMMERCIAL CLOTH,,
13/07/2018,RBDM - GENERAL,AMAZON SVCS EU-UK AMAZ,30.46,STATIONERY,BOOK STORES,,
13/07/2018,HEAD OF CHILDREN'S SERVICE,TESCO-STORES 6647,250.05,REFRESHMENT COSTS,"GROCERY STORES, SUPERMARKETS",,
13/07/2018,KARIBU COMMUNITY HOME,SAINSBURYS SACAT 0683,22.75,PURCHASE OF FOOD (RAW MATERIALS),"GROCERY STORES, SUPERMARKETS",,
13/07/2018,TARGETED INTERVENTION,TESCO STORES-2193,3.30,EDUC VISITS/HOLS/CAMPS/TOYS,"GROCERY STORES, SUPERMARKETS",,
13/07/2018,PE/CDT MAINTENANCE OVERHEADS,SHOWERDOC,12.49,EQUIPMENT,MISCELLANEOUS HOUSE FURNISHING SPECIALTY SHOPS,,
13/07/2018,TS SERVICE MANAGEMENT,GRO HM PASSPORT OFFICE,9.25,FEES,GOVERNMENT SERVICES-NOT ELSEWHERE CLASSIFIED,,
13/07/2018,COUNTY HALL,AMAZON UK MARKETPLACE,32.99,EQUIPMENT,BOOK STORES,,
13/07/2018,NW NIL RECOURSE TO PUBLIC FUNDS CARE,THE WOKING HOTEL,931.28,INDEPENDENT LIVING PLACEMENTS,"LODGING-HOTELS,MOTELS,RESORTS-NOT CLASSIFIED",,
13/07/2018,TARGETED INTERVENTION,O&H (WALTON),3.50,MISCELLANEOUS STAFF TRAVEL,AUTOMOBILE PARKING LOTS AND GARAGES,,
13/07/2018,LIBERTAS COMMUNITY HOME,SAINSBURYS SACAT 0652,154.88,PURCHASE OF FOOD (RAW MATERIALS),"GROCERY STORES, SUPERMARKETS",,
13/07/2018,LIBERTAS COMMUNITY HOME,SAINSBURYS SACAT 0652,19.00,PURCHASE OF FOOD (RAW MATERIALS),"GROCERY STORES, SUPERMARKETS",,
13/07/2018,LIBERTAS COMMUNITY HOME,SAINSBURYS SACAT 0652,4.00,EQUIPMENT,"GROCERY STORES, SUPERMARKETS",,
13/07/2018,TARGETED INTERVENTION,HERSHAM GOLF CLUB,25.50,EDUC VISITS/HOLS/CAMPS/TOYS,GOLF COURSES-PUBLIC,,
13/07/2018,TARGETED INTERVENTION,EVERYMAN,26.00,EDUC VISITS/HOLS/CAMPS/TOYS,MOTION PICTURE THEATERS,,
13/07/2018,TARGETED INTERVENTION,EVERYMAN,35.70,EDUC VISITS/HOLS/CAMPS/TOYS,MOTION PICTURE THEATERS,,
13/07/2018,LIBERTAS COMMUNITY HOME,ARGOS BURPHAM,29.99,EQUIPMENT,DISCOUNT STORES,,
13/07/2018,SE SECTION 17 CARE,TRAVELODGE,247.50,CHILDREN ACT SEC 17 PAYMENTS,TRAVELODGE,,
13/07/2018,TARGETED INTERVENTION,COSTA COFFEE,9.20,EDUC VISITS/HOLS/CAMPS/TOYS,FAST FOOD RESTAURANTS,,
13/07/2018,TARGETED INTERVENTION,TWO RIVERS CAR PK,1.20,EDUC VISITS/HOLS/CAMPS/TOYS,AUTOMOBILE PARKING LOTS AND GARAGES,,
13/07/2018,TARGETED INTERVENTION,HERSHAM GOLF CLUB,3.00,EDUC VISITS/HOLS/CAMPS/TOYS,GOLF COURSES-PUBLIC,,
13/07/2018,SOLD DAY TO DAY OPERATIONS,AMAZON UK MARKETPLACE,19.80,CURRICULUM CONSUMABLES,BOOK STORES,,
13/07/2018,SOLD DAY TO DAY OPERATIONS,AMAZON SVCS EU-UK AMAZ,21.73,CURRICULUM CONSUMABLES,BOOK STORES,,
13/07/2018,HOPE SERVICE - WEST,IZ  STRIKES BOWLIN,55.30,EDUC VISITS/HOLS/CAMPS/TOYS,RECREATION SERVICES (NOT ELSEWHERE CLASSIFIED),,
13/07/2018,DOWNLANDS COUNTRYSIDE PROJECT,F R JONES & SON,620.50,EQUIPMENT,LAWN AND GARDEN SUPPLY STORES,,
13/07/2018,BURBANK COMMUNITY HOME,SP   SIDEMEN CLOTHING,26.75,"CLOTHING, UNIFORM AND LAUNDRY",MEN'S AND WOMEN'S CLOTHING STORES,,
13/07/2018,EAST AREA SOURCING TEAM,AMAZON SVCS EU-UK AMAZ,28.99,EQUIPMENT,BOOK STORES,,
13/07/2018,HILLSIDE,SAINSBURYS 0675,38.00,PURCHASE OF FOOD (RAW MATERIALS),"GROCERY STORES, SUPERMARKETS",,
13/07/2018,WOODLANDS COMMUNITY HOME,TESCO STORES 5706,12.55,PURCHASE OF FOOD (RAW MATERIALS),"GROCERY STORES, SUPERMARKETS",,
13/07/2018,CHILDREN'S RIGHTS TEAM,THORPE PARK RESORT FIN,179.00,TRAINING USING EXTERNAL PROVIDERS,TOURIST ATTRACTIONS AND EXHIBITS,,
13/07/2018,WOODLANDS COMMUNITY HOME,VUE BSL IVR,27.08,EDUC VISITS/HOLS/CAMPS/TOYS,MOTION PICTURE THEATERS,,
13/07/2018,CENTRAL COMMUNICATIONS,GOOGLE  ADWS2060179426,500.00,PUBLICITY,DIRECT MARKETING-CONTINUITY/SUBSCRIPTION MERCHANTS,,
13/07/2018,PRISON CAPITATION                       ,AMAZON EU,15.98,LIBRARY RESOURCES,DIRECT MARKETING-OTHER DIRECT MARKETERS/NOT ELSEW.,,
14/07/2018,WOODLANDS COMMUNITY HOME,AMAZON UK MARKETPLACE,12.99,EQUIPMENT,BOOK STORES,,
14/07/2018,HAVEN YTH CENTRE,CO-OP GROUP 310385,5.53,REFRESHMENT COSTS,"GROCERY STORES, SUPERMARKETS",,
14/07/2018,IMT MODERN WORKER,MSFT  <E010063Z9U>,.99,COMPUTER SERVICES,"COMPUTERS, COMPUTER PERIPHERAL EQUIPMENT, SOFTWARE",,
14/07/2018,CENTRAL COMMUNICATIONS,GOOGLE  ADWS2060179426,500.00,PUBLICITY,DIRECT MARKETING-CONTINUITY/SUBSCRIPTION MERCHANTS,,
14/07/2018,HAVEN YTH CENTRE,CO-OP GROUP 310385,10.00,TELECOMMUNICATION CHARGES,"GROCERY STORES, SUPERMARKETS",,
14/07/2018,HILLSIDE,SAINSBURYS TO YOU 0675,4.00,PURCHASE OF FOOD (RAW MATERIALS),"GROCERY STORES, SUPERMARKETS",,
14/07/2018,HILLSIDE,SAINSBURYS TO YOU 0675,180.30,PURCHASE OF FOOD (RAW MATERIALS),"GROCERY STORES, SUPERMARKETS",,
14/07/2018,FOSTERING SERVICE CENTRAL COSTS,AMAZON UK MARKETPLACE,7.98,EDUC VISITS/HOLS/CAMPS/TOYS,BOOK STORES,,
14/07/2018,ARUNDEL,ASDA GROCERIES ONLINE,-47.71,CLEANING MATERIALS,"GROCERY STORES, SUPERMARKETS",,
14/07/2018,RBDM - GENERAL,AMAZON SVCS EU-UK AMAZ,60.91,STATIONERY,BOOK STORES,,
14/07/2018,SOLD DAY TO DAY OPERATIONS,AMAZON UK MARKETPLACE,17.98,EQUIPMENT,BOOK STORES,,
14/07/2018,ARUNDEL,ASDA GROCERIES ONLINE,117.97,CLEANING MATERIALS,"GROCERY STORES, SUPERMARKETS",,
14/07/2018,WOODLANDS COMMUNITY HOME,SAINSBURYS SACAT 0686,40.00,PURCHASE OF FOOD (RAW MATERIALS),"GROCERY STORES, SUPERMARKETS",,
14/07/2018,WOODLANDS COMMUNITY HOME,SAINSBURYS 0686,7.25,PURCHASE OF FOOD (RAW MATERIALS),"GROCERY STORES, SUPERMARKETS",,
14/07/2018,WOODLANDS COMMUNITY HOME,BRACKNELL FOREST COUNC,2.90,NON-STAFF RELATED TRANSPORT COSTS,AUTOMOBILE PARKING LOTS AND GARAGES,,
14/07/2018,COMMUNITY ARCHAEOLOGIST PROJECT,HOBBYCRAFT,4.50,EQUIPMENT,"ARTIST SUPPLY STORES, CRAFT SHOPS",,
14/07/2018,WOODLANDS COMMUNITY HOME,HOMEBASE LTD 084,56.00,EQUIPMENT,"BUILDING MATERIALS, LUMBER STORES",,
14/07/2018,WOODLANDS COMMUNITY HOME,CINEWORLD  CINEMAS,3.70,REFRESHMENT COSTS,"THEATRICAL PRODUCERS(EXCL MOTION PIX),TICKET AGNCY",,
14/07/2018,WOODLANDS COMMUNITY HOME,CINEWORLD,33.50,EDUC VISITS/HOLS/CAMPS/TOYS,"THEATRICAL PRODUCERS(EXCL MOTION PIX),TICKET AGNCY",,
14/07/2018,HOLLAND CLOSE RESIDENTIAL HOME,TESCO-STORES 6647,151.33,PURCHASE OF FOOD (RAW MATERIALS),"GROCERY STORES, SUPERMARKETS",,
14/07/2018,ROW VOLUNTEERS WEST                     ,PANTILES SERVICE STATI,10.02,PETROL/DIESEL ALL OFF BUSINESS,SERVICE STATIONS WITH OR WITHOUT ANCILLARY SERVICE,,
14/07/2018,BURBANK COMMUNITY HOME,WOKING GARDEN CENT,37.50,EQUIPMENT,LAWN AND GARDEN SUPPLY STORES,,
14/07/2018,MARCH OF THE WOMEN,SKR ABEBOOKS 4C4JSE,19.75,BOOKS,BOOK STORES,,
14/07/2018,WOODLANDS COMMUNITY HOME,POUNDLAND LTD 1518,24.10,EDUC VISITS/HOLS/CAMPS/TOYS,DISCOUNT STORES,,
14/07/2018,WOODLANDS COMMUNITY HOME,POUNDLAND LTD 1518,6.00,EDUC VISITS/HOLS/CAMPS/TOYS,DISCOUNT STORES,,
15/07/2018,SOLD DAY TO DAY OPERATIONS,AMAZON SVCS EU-UK AMAZ,37.57,CURRICULUM CONSUMABLES,BOOK STORES,,
15/07/2018,WOODLANDS COMMUNITY HOME,AMAZON UK MARKETPLACE,13.99,EQUIPMENT,BOOK STORES,,
15/07/2018,CENTRAL COMMUNICATIONS,GOOGLE  ADWS2060179426,500.00,PUBLICITY,DIRECT MARKETING-CONTINUITY/SUBSCRIPTION MERCHANTS,,
15/07/2018,EXTENDED HOPE,AMAZON UK MARKETPLACE,5.99,CURRICULUM CONSUMABLES,BOOK STORES,,
15/07/2018,ACL CENTRAL EXPENDITURE,BOOKER LIMITED BYFLEET,37.93,REFRESHMENT COSTS,CATERERS,,
15/07/2018,EXTENDED HOPE,WWW.HABITAT.CO.UK,64.00,CURRICULUM EQUIPMENT AND FURNITURE,"EQUIP, FURNITURE, HOME FURNSHNGS STRS (EXCPT APPL)",,
15/07/2018,HOPE SERVICE - WEST,TESCO STORES 3399,18.70,PURCHASE OF FOOD (RAW MATERIALS),"GROCERY STORES, SUPERMARKETS",,
16/07/2018,NW CARE - CP & COURT LAC,GRO HM PASSPORT OFFICE,-9.25,OTHER COMMUNITY CARE VOL,GOVERNMENT SERVICES-NOT ELSEWHERE CLASSIFIED,,
16/07/2018,SW CARE - CP & COURT LAC,HAMPSHIRE COUNTY COUNC,-10.00,OTHER COMMUNITY CARE VOL,GOVERNMENT SERVICES-NOT ELSEWHERE CLASSIFIED,,
16/07/2018,TARGETED INTERVENTION,FREEDOM LEISURE WOKING,3.10,EDUC VISITS/HOLS/CAMPS/TOYS,RECREATION SERVICES (NOT ELSEWHERE CLASSIFIED),,
16/07/2018,NW CARE - LAC,PREMIER INN,94.50,OTHER COMMUNITY CARE VOL,PREMIER INN,,
16/07/2018,SOLD DAY TO DAY OPERATIONS,AMAZON SVCS EU-UK AMAZ,12.74,CURRICULUM CONSUMABLES,BOOK STORES,,
16/07/2018,NE CARE - LAC,GRO HM PASSPORT OFFICE,-23.40,OTHER COMMUNITY CARE VOL,GOVERNMENT SERVICES-NOT ELSEWHERE CLASSIFIED,,
16/07/2018,NE CARE - CP & COURT LAC,PREMIER INN,198.50,INDEPENDENT LIVING PLACEMENTS,PREMIER INN,,
16/07/2018,HILLSIDE,NEXT,88.05,"CLOTHING, UNIFORM AND LAUNDRY",FAMILY CLOTHING STORES,,
16/07/2018,HILLSIDE,SAINSBURYS SACAT 0784,7.60,PURCHASE OF FOOD (RAW MATERIALS),"GROCERY STORES, SUPERMARKETS",,
16/07/2018,HILLSIDE,LIDL UK CAMBERLEY,15.09,PURCHASE OF FOOD (RAW MATERIALS),"GROCERY STORES, SUPERMARKETS",,
16/07/2018,IT TRAINING,WWW.PMGLTD.CO.UK,474.00,TRAINING EXPENSES EXTERNAL GENERAL,BUSINESS SERVICES-NOT ELSEWHERE CLASSIFIED,,
16/07/2018,MALLOW CRESCENT,CURRYS ONLINE,289.98,EQUIPMENT,ELECTRONIC SALES,,
16/07/2018,SOLD MARKETING TEAM,AMAZON UK MARKETPLACE,21.89,EQUIPMENT,BOOK STORES,,
16/07/2018,LIBERTAS COMMUNITY HOME,ARGOS BROOKWOOD IN,-21.99,EQUIPMENT,DISCOUNT STORES,,
16/07/2018,MALLOW CRESCENT,SAINSBURYS TO YOU 0652,7.00,PURCHASE OF FOOD (RAW MATERIALS),"GROCERY STORES, SUPERMARKETS",,
16/07/2018,MALLOW CRESCENT,SAINSBURYS TO YOU 0652,121.95,PURCHASE OF FOOD (RAW MATERIALS),"GROCERY STORES, SUPERMARKETS",,
16/07/2018,COVEHAM,SAINSBURYS TO YOU 0687,128.05,REFRESHMENT COSTS,"GROCERY STORES, SUPERMARKETS",,
16/07/2018,HOPE SERVICE - WEST,SAINSBURYS TO YOU 0686,110.70,PURCHASE OF FOOD (RAW MATERIALS),"GROCERY STORES, SUPERMARKETS",,
16/07/2018,MALLOW CRESCENT,TESCO STORE 2590,18.53,PURCHASE OF FOOD (RAW MATERIALS),"GROCERY STORES, SUPERMARKETS",,
16/07/2018,MALLOW CRESCENT,TESCO STORE 2590,111.41,PURCHASE OF FOOD (RAW MATERIALS),"GROCERY STORES, SUPERMARKETS",,
16/07/2018,QUADRANT COURT WOKING,SCREWFIX DIRECT,34.16,EQUIPMENT,"BUILDING MATERIALS, LUMBER STORES",,
16/07/2018,FAMILIES ELMBRIDGE,AMAZON UK MARKETPLACE,2.67,EQUIPMENT,BOOK STORES,,
16/07/2018,FAMILIES ELMBRIDGE,AMAZON UK MARKETPLACE,15.50,EQUIPMENT,BOOK STORES,,
16/07/2018,CHEYNE WALK COMMUNITY HOME,PLAICE TO EAT,19.55,REFRESHMENT COSTS,"EATING PLACES, RESTAURANTS",,
16/07/2018,CHEYNE WALK COMMUNITY HOME,THE BODY SHOP INTL LTD,24.00,MISCELLANEOUS INSURANCE,BARBER AND BEAUTY SHOPS,,
16/07/2018,CHEYNE WALK COMMUNITY HOME,MCDONALDS,5.19,REFRESHMENT COSTS,FAST FOOD RESTAURANTS,,
16/07/2018,SOLD,AMAZON UK MARKETPLACE,8.93,EQUIPMENT,BOOK STORES,,
16/07/2018,SOLD,AMAZON UK MARKETPLACE,12.00,EQUIPMENT,BOOK STORES,,
16/07/2018,SOLD ESTATES MANAGEMENT,SCREWFIX DIRECT,159.99,EQUIPMENT,"BUILDING MATERIALS, LUMBER STORES",,
16/07/2018,SOLD ESTATES MANAGEMENT,TEX HAM CROSS SSTN,74.93,VEHICLE RUNNING COSTS,SERVICE STATIONS WITH OR WITHOUT ANCILLARY SERVICE,,
16/07/2018,BURBANK COMMUNITY HOME,SAINSBURYS SACAT 0686,7.70,PURCHASE OF FOOD (RAW MATERIALS),"GROCERY STORES, SUPERMARKETS",,
16/07/2018,PE/CDT MAINTENANCE OVERHEADS,DENFORD LIMITED,390.00,ITEMS PURCHASED FOR RE-SALE,"COMMERCIAL EQUIPMENT, NOT ELSEWHERE CLASSIFIED",,
16/07/2018,PROPERTY OPERATIONS TEAM,WICKES 260,38.18,PURCHASE OF BUILDING MATERIALS,HOME SUPPLY WAREHOUSE STORES,,
16/07/2018,PROPERTY OPERATIONS TEAM,SCREWFIX DIRECT,13.99,PURCHASE OF BUILDING MATERIALS,"BUILDING MATERIALS, LUMBER STORES",,
16/07/2018,MALLOW CRESCENT,SAINSBURYS TO YOU 0686,114.23,PURCHASE OF FOOD (RAW MATERIALS),"GROCERY STORES, SUPERMARKETS",,
16/07/2018,NE CARE - LAC,GRO HM PASSPORT OFFICE,23.40,OTHER COMMUNITY CARE VOL,GOVERNMENT SERVICES-NOT ELSEWHERE CLASSIFIED,,
16/07/2018,ROW VOLUNTEERS WEST                     ,THE METAL STORE,250.08,PURCHASE OF BUILDING MATERIALS,COMPUTER SOFTWARE STORES,,
16/07/2018,ROW VOLUNTEERS WEST                     ,METHOLD VEHICLE HIRE,54.00,HIRE OF VEHICLES,AUTOMOBILE RENTAL AGENCY-NOT ELSEWHERE CLASSIFIED,,
16/07/2018,EXTENDED HOPE,AMAZON UK MARKETPLACE,15.12,CURRICULUM CONSUMABLES,BOOK STORES,,
16/07/2018,EXTENDED HOPE,WAITROSE 589,16.12,PURCHASE OF FOOD (RAW MATERIALS),"GROCERY STORES, SUPERMARKETS",,
16/07/2018,FAIRCROFT COMMUNITY HOME,TESCO STORE 2812,240.54,PURCHASE OF FOOD (RAW MATERIALS),"GROCERY STORES, SUPERMARKETS",,
16/07/2018,PROPERTY OPERATIONS TEAM,TOOLSTATION LTD,15.88,PURCHASE OF BUILDING MATERIALS,HARDWARE STORES,,
16/07/2018,PROPERTY OPERATIONS TEAM,TOOLSTATION LTD,15.35,PURCHASE OF BUILDING MATERIALS,HARDWARE STORES,,
16/07/2018,ISPSB - ADAPTATIONS & IMPROVEMENTS,NRS HEALTHCARE,58.43,EQUIPMENT,DENTAL/LAB/MED/OPHTHALMIC HOSP EQUIP & SUPPLIES,,
16/07/2018,HILLSIDE,ASDA STORES 4823,10.74,PURCHASE OF FOOD (RAW MATERIALS),"GROCERY STORES, SUPERMARKETS",,
16/07/2018,HOPE SERVICE - WEST,SAINSBURYS SACAT 0683,133.25,PURCHASE OF FOOD (RAW MATERIALS),"GROCERY STORES, SUPERMARKETS",,
16/07/2018,MALLOW CRESCENT,CURRYS ONLINE,289.98,EQUIPMENT,ELECTRONIC SALES,,
16/07/2018,FAMILIES SURREY HEATH,TESCO STORES 3149,27.39,PURCHASE OF FOOD (RAW MATERIALS),"GROCERY STORES, SUPERMARKETS",,
16/07/2018,CSF AN HUB,PAYPAL  CARES,195.00,STAFF TRAINING,"COLLEGES, UNIV, PRO SCHOOLS, JUNIOR COLLEGES",,
16/07/2018,SE CARE - NON-LAC CP & COURT,BEDSTAR LIMITED,477.00,OTHER COMMUNITY CARE VOL,"EQUIP, FURNITURE, HOME FURNSHNGS STRS (EXCPT APPL)",,
16/07/2018,CHEYNE WALK COMMUNITY HOME,BELL CARRIAGE LTD,9.50,HIRE OF VEHICLES,LIMOUSINES AND TAXICABS,,
16/07/2018,CHEYNE WALK COMMUNITY HOME,BELL CARRIAGE LTD,9.50,HIRE OF VEHICLES,LIMOUSINES AND TAXICABS,,
16/07/2018,SE NIL RECOURSE TO PUBLIC FUNDS CARE,BROMPTON HOUSE,520.00,INDEPENDENT LIVING PLACEMENTS,"LODGING-HOTELS,MOTELS,RESORTS-NOT CLASSIFIED",,
16/07/2018,NW CARE - LAC,GRO HM PASSPORT OFFICE,9.25,OTHER COMMUNITY CARE VOL,GOVERNMENT SERVICES-NOT ELSEWHERE CLASSIFIED,,
16/07/2018,SW CARE - CP & COURT LAC,HAMPSHIRE COUNTY COUNC,10.00,OTHER COMMUNITY CARE VOL,GOVERNMENT SERVICES-NOT ELSEWHERE CLASSIFIED,,
16/07/2018,SW CARE - CP & COURT LAC,SURREY CC CARD PAY,11.00,OTHER COMMUNITY CARE VOL,COMPUTER NETWORK/INFORMATION SERVICES,,
16/07/2018,TARGETED INTERVENTION,STARBUCKS COBHAM,4.20,EDUC VISITS/HOLS/CAMPS/TOYS,"EATING PLACES, RESTAURANTS",,
16/07/2018,ACL CENTRAL EXPENDITURE,TESCO STORES 3399,16.66,REFRESHMENT COSTS,"GROCERY STORES, SUPERMARKETS",,
16/07/2018,SOLD DAY TO DAY OPERATIONS,TESCO STORE 2812,19.57,EQUIPMENT,"GROCERY STORES, SUPERMARKETS",,
16/07/2018,KARIBU COMMUNITY HOME,ASDA SUPERSTORE,11.80,PURCHASE OF FOOD (RAW MATERIALS),"GROCERY STORES, SUPERMARKETS",,
16/07/2018,FAMILIES TANDRIDGE,WAITROSE 838,6.94,REFRESHMENT COSTS,"GROCERY STORES, SUPERMARKETS",,
16/07/2018,WOODLANDS COMMUNITY HOME,SAINSBURYS SACAT 0686,8.50,PURCHASE OF FOOD (RAW MATERIALS),"GROCERY STORES, SUPERMARKETS",,
16/07/2018,WOODLANDS COMMUNITY HOME,ROBERT DYAS HOLDNG LTD,71.44,EQUIPMENT,HARDWARE STORES,,
16/07/2018,ASSET PLANNING - OPERATIONS,B & Q 1029,29.21,EQUIPMENT,"BUILDING MATERIALS, LUMBER STORES",,
16/07/2018,ACL CENTRAL EXPENDITURE,TESCO STORE 2160,93.82,REFRESHMENT COSTS,"GROCERY STORES, SUPERMARKETS",,
16/07/2018,LIBERTAS COMMUNITY HOME,SAINSBURYS SACAT 0686,28.50,PURCHASE OF FOOD (RAW MATERIALS),"GROCERY STORES, SUPERMARKETS",,
16/07/2018,LIBERTAS COMMUNITY HOME,SAINSBURYS SACAT 0686,2.00,PURCHASE OF FOOD (RAW MATERIALS),"GROCERY STORES, SUPERMARKETS",,
16/07/2018,LIBERTAS COMMUNITY HOME,ARGOS BROOKWOOD IN,211.98,EQUIPMENT,DISCOUNT STORES,,
16/07/2018,MALLOW CRESCENT,TESCO STORE 2590,8.10,PURCHASE OF FOOD (RAW MATERIALS),"GROCERY STORES, SUPERMARKETS",,
16/07/2018,MALLOW CRESCENT,TESCO STORE 2590,71.08,PURCHASE OF FOOD (RAW MATERIALS),"GROCERY STORES, SUPERMARKETS",,
16/07/2018,CHEYNE WALK COMMUNITY HOME,TESCO STORES 2683,2.00,REFRESHMENT COSTS,"GROCERY STORES, SUPERMARKETS",,
16/07/2018,KARIBU COMMUNITY HOME,JUST EAT,20.50,PURCHASE OF FOOD (RAW MATERIALS),FAST FOOD RESTAURANTS,,
16/07/2018,KARIBU COMMUNITY HOME,TESCO STORE 2812,473.89,PURCHASE OF FOOD (RAW MATERIALS),"GROCERY STORES, SUPERMARKETS",,
16/07/2018,OCCUPATIONAL HEALTH,AMAZON UK MARKETPLACE,53.93,EQUIPMENT,BOOK STORES,,
16/07/2018,COVEHAM,ROBERT DYAS HOLDNG LTD,14.98,EQUIPMENT,HARDWARE STORES,,
16/07/2018,FAMILIES WOKING,WAITROSE 181,10.47,REFRESHMENT COSTS,"GROCERY STORES, SUPERMARKETS",,
16/07/2018,HAVEN GUILDFORD,VESTA VODAFONE,20.00,TELECOMMUNICATION CHARGES,TELECOM INCL PREPAID/RECURRING PHONE SVCS,,
16/07/2018,ARUNDEL,TESCO STORES 5999,73.29,REFRESHMENT COSTS,"GROCERY STORES, SUPERMARKETS",,
16/07/2018,ARUNDEL,AMAZON UK MARKETPLACE,34.48,EQUIPMENT,BOOK STORES,,
17/07/2018,YSS YOUTH CENTRE IMPROVEMENTS,TVLICENSING.CO.UK,150.50,FEES,"CONSULTING, MANAGEMENT, AND PUBLIC RELATIONS SVCS",,
17/07/2018,ESTATES TEAM,AMAZON SVCS EU-UK AMAZ,10.40,EQUIPMENT,BOOK STORES,,
17/07/2018,CHEYNE WALK COMMUNITY HOME,PIZZA HUT 479,9.99,REFRESHMENT COSTS,"EATING PLACES, RESTAURANTS",,
17/07/2018,CHEYNE WALK COMMUNITY HOME,VUE BSL LTD,36.93,EDUC VISITS/HOLS/CAMPS/TOYS,MOTION PICTURE THEATERS,,
17/07/2018,CHEYNE WALK COMMUNITY HOME,MCDONALDS,18.95,REFRESHMENT COSTS,FAST FOOD RESTAURANTS,,
17/07/2018,CENTRAL COMMUNICATIONS,GOOGLE  ADWS2060179426,500.00,PUBLICITY,DIRECT MARKETING-CONTINUITY/SUBSCRIPTION MERCHANTS,,
17/07/2018,FAIRCROFT COMMUNITY HOME,TESCO STORE 2812,190.40,EQUIPMENT,"GROCERY STORES, SUPERMARKETS",,
17/07/2018,FAIRMOUNT HOUSE LEATHERHEAD,WWW.POSTURITE.CO.UK,69.54,EQUIPMENT,OFFICE AND COMMERCIAL FURNITURE,,
17/07/2018,CORE ACTIVITY                           ,MAILCHIMP    MONTHLY,38.13,COMPUTER SOFTWARE,DIRECT MARKETING-CONTINUITY/SUBSCRIPTION MERCHANTS,,
17/07/2018,READY FOR WORK YSS,NCS VUE CITB HS&E REV,21.00,EDUC VISITS/HOLS/CAMPS/TOYS,SCHOOLS & EDUCATIONAL SVC-NOT ELSEWHERE CLASSIFIED,,
17/07/2018,SHELL UK LICENSING,LBSUTTON,113.00,FEES,GOVERNMENT SERVICES-NOT ELSEWHERE CLASSIFIED,,
17/07/2018,SHELL UK LICENSING,LBSUTTON,113.00,FEES,GOVERNMENT SERVICES-NOT ELSEWHERE CLASSIFIED,,
17/07/2018,EXTENDED HOPE,FREEDOM LEISURE,100.00,EDUC VISITS/HOLS/CAMPS/TOYS,GOVERNMENT SERVICES-NOT ELSEWHERE CLASSIFIED,,
17/07/2018,SHELL UK LICENSING,LBSUTTON,79.00,FEES,GOVERNMENT SERVICES-NOT ELSEWHERE CLASSIFIED,,
17/07/2018,FAMILIES TANDRIDGE,IZ  EAST SIDE DELI,3.95,REFRESHMENT COSTS,"EATING PLACES, RESTAURANTS",,
17/07/2018,SHELL UK LICENSING,NELC MOTO,113.00,FEES,GOVERNMENT SERVICES-NOT ELSEWHERE CLASSIFIED,,
17/07/2018,TARGETED INTERVENTION,TESCO STORES-2047,6.00,EDUC VISITS/HOLS/CAMPS/TOYS,"GROCERY STORES, SUPERMARKETS",,
17/07/2018,TARGETED INTERVENTION,COSTA COFFEE,11.40,EDUC VISITS/HOLS/CAMPS/TOYS,FAST FOOD RESTAURANTS,,
17/07/2018,ASSET PLANNING - OPERATIONS,FG BARNES & SONS L,90.00,VEHICLE RUNNING COSTS,"AUTO & TRUCK DLRS-SALES,SVC, REPRS,PRTS, & LEASING",,
17/07/2018,RUTH HOUSE,SAINSBURYS SACAT 0686,32.05,"CLOTHING, UNIFORM AND LAUNDRY","GROCERY STORES, SUPERMARKETS",,
17/07/2018,FINANCIAL ASSESSMENTS AND BENEFITS TEAM,WWW.GOV.UK,10.00,FEES,PROFESSIONAL SERVICES-NOT ELSEWHERE CLASSIFIED,,
17/07/2018,TRANSPORT,ATSEUROMASTER.CO.U,109.32,VEHICLE REPAIRS AND MAINTENANCE,AUTOMOTIVE SERVICE SHOPS,,
17/07/2018,COUNTRYSIDE PARTNERSHIPS TEAM,DB BAHN  A-NR 24VYEC,127.12,MISCELLANEOUS STAFF TRAVEL,PASSENGER RAILWAYS,,
17/07/2018,BURBANK COMMUNITY HOME,W M MORRISONS,2.00,EQUIPMENT,"GROCERY STORES, SUPERMARKETS",,
17/07/2018,CHILDREN'S RIGHTS TEAM,AMAZON SVCS EU-UK AMAZ,7.98,EQUIPMENT,BOOK STORES,,
17/07/2018,CHILDREN'S RIGHTS TEAM,AMAZON SVCS EU-UK AMAZ,7.98,EQUIPMENT,BOOK STORES,,
17/07/2018,AD OPERATIONS HIGHWAYS AND COUNTRYSIDE,AMAZON UK MARKETPLACE,22.73,EQUIPMENT,BOOK STORES,,
17/07/2018,ACL CENTRAL EXPENDITURE,NEW LIFE MAGAZINES,300.00,PUBLICITY,DIRECT MARKETING-CATALOG MERCHANTS,,
17/07/2018,SOLD,AMAZON UK MARKETPLACE,10.95,EQUIPMENT,BOOK STORES,,
17/07/2018,SOLD,AMAZON UK MARKETPLACE,4.59,EQUIPMENT,BOOK STORES,,
17/07/2018,SOLD,AMAZON UK MARKETPLACE,119.70,EQUIPMENT,BOOK STORES,,
17/07/2018,SOLD,AMAZON UK MARKETPLACE,30.31,EQUIPMENT,BOOK STORES,,
17/07/2018,ACCESS 2 EDUCATION NW NON-MEDICAL,SURREY CC CARD PAY,16.00,TRAINING EXPENSES EXTERNAL GENERAL,COMPUTER NETWORK/INFORMATION SERVICES,,
17/07/2018,SOLD,AMAZON UK MARKETPLACE,38.85,EQUIPMENT,BOOK STORES,,
17/07/2018,SOLD,AMAZON UK MARKETPLACE,20.24,EQUIPMENT,BOOK STORES,,
17/07/2018,SOLD,AMAZON UK MARKETPLACE,15.99,EQUIPMENT,BOOK STORES,,
17/07/2018,SOLD ESTATES MANAGEMENT,HALFORDS 0488,9.90,VEHICLE RUNNING COSTS,BICYCLE SHOPS-SALES AND SERVICE,,
17/07/2018,BURBANK COMMUNITY HOME,SAINSBURYS 0802,1.30,REFRESHMENT COSTS,"GROCERY STORES, SUPERMARKETS",,
17/07/2018,BURBANK COMMUNITY HOME,W M MORRISONS,28.10,STATIONERY,"GROCERY STORES, SUPERMARKETS",,
17/07/2018,TRANSPORT,WWW.CROMWELL.CO.UK,118.77,EQUIPMENT,HARDWARE EQUIPMENT AND SUPPLIES,,
17/07/2018,TRANSPORT,PREMIER HOSE TECH,826.46,OPERATIONAL FIRE EQUIPMENT,INDUSTRIAL SUPPLIES NOT ELSEWHERE CLASSIFIED,,
17/07/2018,HOPE SERVICE - WEST,TESCO STORE 2590,183.73,PURCHASE OF FOOD (RAW MATERIALS),"GROCERY STORES, SUPERMARKETS",,
17/07/2018,CHEYNE WALK COMMUNITY HOME,BELL CARRIAGE LTD,30.00,TRANSPORT SOCIAL CARE-TAXI,LIMOUSINES AND TAXICABS,,
17/07/2018,CHEYNE WALK COMMUNITY HOME,BELL CARRIAGE LTD,22.00,TRANSPORT SOCIAL CARE-TAXI,LIMOUSINES AND TAXICABS,,
17/07/2018,ACCESS 2 EDUCATION NW NON-MEDICAL,SURREY CC CARD PAY,16.00,TRAINING EXPENSES EXTERNAL GENERAL,COMPUTER NETWORK/INFORMATION SERVICES,,
17/07/2018,TS SERVICE MANAGEMENT,AMAZON UK MARKETPLACE,62.45,EQUIPMENT,BOOK STORES,,
17/07/2018,COVEHAM,FARRANTS,1.99,STATIONERY,"GIFT, CARD, NOVELTY AND SOUVENIR SHOPS",,
17/07/2018,COVEHAM,ROBERT DYAS HOLDNG LTD,9.99,EQUIPMENT,HARDWARE STORES,,
17/07/2018,FAMILIES RUNNYMEDE,SAINSBURYS SACAT 0679,24.32,PURCHASE OF FOOD (RAW MATERIALS),"GROCERY STORES, SUPERMARKETS",,
17/07/2018,FAMILIES RUNNYMEDE,SAINSBURYS SACAT 0679,1.25,CLEANING MATERIALS,"GROCERY STORES, SUPERMARKETS",,
17/07/2018,RUTH HOUSE,SAINSBURYS TO YOU 0686,61.20,PURCHASE OF FOOD (RAW MATERIALS),"GROCERY STORES, SUPERMARKETS",,
17/07/2018,RUTH HOUSE,SAINSBURYS TO YOU 0686,141.05,PURCHASE OF FOOD (RAW MATERIALS),"GROCERY STORES, SUPERMARKETS",,
17/07/2018,ACL CENTRAL EXPENDITURE,TESCO STORE 2160,79.31,REFRESHMENT COSTS,"GROCERY STORES, SUPERMARKETS",,
17/07/2018,FAMILIES RUNNYMEDE,TESCO STORES 2454,5.50,CURRICULUM CONSUMABLES,"GROCERY STORES, SUPERMARKETS",,
17/07/2018,TARGETED INTERVENTION,SQUIRES GARDEN CENTRE,5.05,EDUC VISITS/HOLS/CAMPS/TOYS,LAWN AND GARDEN SUPPLY STORES,,
17/07/2018,TARGETED INTERVENTION,HARRIS AND HOOLE  SUNB,10.60,EDUC VISITS/HOLS/CAMPS/TOYS,"EATING PLACES, RESTAURANTS",,
17/07/2018,CS BUSINESS SUPPORT WEST,TESCO STORES 2812,2.18,REFRESHMENT COSTS,"GROCERY STORES, SUPERMARKETS",,
17/07/2018,CS BUSINESS SUPPORT WEST,MILK&MORE,14.10,REFRESHMENT COSTS,DAIRY PRODUCTS STORES,,
17/07/2018,FAMILIES WOKING,ASDA  STORES 4775,17.43,EQUIPMENT,"GROCERY STORES, SUPERMARKETS",,
17/07/2018,FAMILIES REIGATE AND BANSTREAD,DOMINOS,18.99,REFRESHMENT COSTS,"EATING PLACES, RESTAURANTS",,
17/07/2018,FAMILIES SURREY HEATH,SAINSBURYS SACAT 0675,15.65,PURCHASE OF FOOD (RAW MATERIALS),"GROCERY STORES, SUPERMARKETS",,
17/07/2018,LIBERTAS COMMUNITY HOME,SELFSERVE TICKET,5.90,NON-STAFF RELATED TRANSPORT COSTS,PASSENGER RAILWAYS,,
17/07/2018,LIBERTAS COMMUNITY HOME,ODEON,15.45,EDUC VISITS/HOLS/CAMPS/TOYS,MOTION PICTURE THEATERS,,
17/07/2018,STRATEGIC LEADERSHIP (CEO & ACEO),PARTY BUZ LTD,12.85,STATIONERY,"GIFT, CARD, NOVELTY AND SOUVENIR SHOPS",,
17/07/2018,STRATEGIC LEADERSHIP (CEO & ACEO),POUNDLAND,26.10,STATIONERY,DISCOUNT STORES,,
17/07/2018,LIBERTAS COMMUNITY HOME,SAINSBURYS SACAT 0686,7.50,EQUIPMENT,"GROCERY STORES, SUPERMARKETS",,
17/07/2018,LIBERTAS COMMUNITY HOME,SAINSBURYS SACAT 0686,20.75,PURCHASE OF FOOD (RAW MATERIALS),"GROCERY STORES, SUPERMARKETS",,
17/07/2018,LIBERTAS COMMUNITY HOME,SAINSBURYS SACAT 0686,123.30,PURCHASE OF FOOD (RAW MATERIALS),"GROCERY STORES, SUPERMARKETS",,
17/07/2018,FIRE & RESCUE COMMUNITY SAFETY,LONDONEMBLE,74.22,EQUIPMENT,SCHOOLS & EDUCATIONAL SVC-NOT ELSEWHERE CLASSIFIED,,
17/07/2018,FIRE SERVICES IT,AMAZON UK MARKETPLACE,7.50,COMPUTER HARDWARE,BOOK STORES,,
17/07/2018,QUADRANT COURT WOKING,ENABLE ACCESS,35.28,EQUIPMENT,ORTHOPEDIC GOODS-ARTIFICIAL LIMB STORES,,
17/07/2018,QUADRANT COURT WOKING,AMAZON UK MARKETPLACE,19.97,EQUIPMENT,BOOK STORES,,
17/07/2018,ACL CENTRAL EXPENDITURE,W P NOTCUTT LTD,413.88,EQUIPMENT,"BUILDING MATERIALS, LUMBER STORES",,
17/07/2018,ACL CENTRAL EXPENDITURE,TESCO STORE 3149,49.27,REFRESHMENT COSTS,"GROCERY STORES, SUPERMARKETS",,
17/07/2018,LOCAL ASSISTANCE SCHEME,AMAZON UK MARKETPLACE,410.98,FURNITURE,BOOK STORES,,
17/07/2018,SOUTH WEST OUTREACH,ARGOS BURPHAM,9.99,EQUIPMENT,DISCOUNT STORES,,
17/07/2018,CHEYNE WALK COMMUNITY HOME,PAYACARDSERVICES,268.80,DAY TO DAY MAINTENANCE,HOUSEHOLD APPLIANCE STORES,,
17/07/2018,FOSTERING SERVICE CENTRAL COSTS,SAINSBURYS,11.00,OTHER COMMUNITY CARE VOL,"GROCERY STORES, SUPERMARKETS",,
17/07/2018,NE CARE - CP & COURT LAC,GRO HM PASSPORT OFFICE,46.80,OTHER COMMUNITY CARE VOL,GOVERNMENT SERVICES-NOT ELSEWHERE CLASSIFIED,,
17/07/2018,FAMILIES ELMBRIDGE,AMAZON UK MARKETPLACE,34.09,EQUIPMENT,BOOK STORES,,
17/07/2018,SOLD,AMAZON UK MARKETPLACE,1.27,EQUIPMENT,BOOK STORES,,
17/07/2018,FIRE SERVICES IT,AMAZON UK MARKETPLACE,234.90,COMPUTER HARDWARE,BOOK STORES,,
18/07/2018,NW CARE - LAC,PREMIER INN,69.50,INDEPENDENT LIVING PLACEMENTS,PREMIER INN,,
18/07/2018,FAMILIES WOKING,SP   FREEDOM HOMESTORE,95.00,EQUIPMENT,"EQUIP, FURNITURE, HOME FURNSHNGS STRS (EXCPT APPL)",,
18/07/2018,SW SECTION 17 CARE,PREMIER INN,-354.00,INDEPENDENT LIVING PLACEMENTS,PREMIER INN,,
18/07/2018,SOUTH WEST OUTREACH,TVLICENSING.CO.UK,150.50,EQUIPMENT,"CONSULTING, MANAGEMENT, AND PUBLIC RELATIONS SVCS",,
18/07/2018,MALLOW CRESCENT,TVLICENSING.CO.UK,150.50,EQUIPMENT,"CONSULTING, MANAGEMENT, AND PUBLIC RELATIONS SVCS",,
18/07/2018,TRAINING DEMOCRATIC SERVICES,PREMIER INN,78.99,TRAINING EXPENSES EXTERNAL GENERAL,PREMIER INN,,
18/07/2018,TARGETED INTERVENTION,CINNAMON CAFE,6.70,EDUC VISITS/HOLS/CAMPS/TOYS,FAST FOOD RESTAURANTS,,
18/07/2018,BURBANK COMMUNITY HOME,RYMAN,2.99,3RD PARTY PAYMENTS PRIVATE INDIV,"OFFICE, SCHOOL SUPPLY, AND STATIONERY STORES",,
18/07/2018,NE CARE - CP & COURT LAC,STAR CARS,63.00,NON-STAFF RELATED TRANSPORT COSTS,LIMOUSINES AND TAXICABS,,
18/07/2018,FOSTERING SERVICE CENTRAL COSTS,AMAZON UK MARKETPLACE,28.71,EDUC VISITS/HOLS/CAMPS/TOYS,BOOK STORES,,
18/07/2018,TARGETED INTERVENTION,REIGATE AND BANSTEAD B,2.70,EDUC VISITS/HOLS/CAMPS/TOYS,AUTOMOBILE PARKING LOTS AND GARAGES,,
18/07/2018,TARGETED INTERVENTION,WATERSTONES,30.00,EDUC VISITS/HOLS/CAMPS/TOYS,BOOK STORES,,
18/07/2018,CS BUSINESS SUPPORT WEST,AMAZON UK MARKETPLACE,11.87,EQUIPMENT,BOOK STORES,,
18/07/2018,BURBANK COMMUNITY HOME,3C_ WOKING BOROUGH COU,2.80,MISCELLANEOUS STAFF TRAVEL,AUTOMOBILE PARKING LOTS AND GARAGES,,
18/07/2018,QUADRANT COURT WOKING,FAST KEY SERVICES LIMI,54.80,EQUIPMENT,BUSINESS SERVICES-NOT ELSEWHERE CLASSIFIED,,
18/07/2018,FAMILIES ELMBRIDGE,BRIGHTON & HOVE CITY C,6.00,NON-STAFF RELATED TRANSPORT COSTS,AUTOMOBILE PARKING LOTS AND GARAGES,,
18/07/2018,TARGETED INTERVENTION,MCDONALDS,1.99,EDUC VISITS/HOLS/CAMPS/TOYS,FAST FOOD RESTAURANTS,,
18/07/2018,PSSS VISUALLY IMPAIRED,GL-ASSESMENT.CO.UK,287.15,EQUIPMENT,BOOK STORES,,
18/07/2018,RUTH HOUSE,W M MORRISONS,50.20,EQUIPMENT,"GROCERY STORES, SUPERMARKETS",,
18/07/2018,RUTH HOUSE,W M MORRISONS,33.00,EQUIPMENT,"GROCERY STORES, SUPERMARKETS",,
18/07/2018,BURBANK COMMUNITY HOME,MIND WOKING,32.00,"CLOTHING, UNIFORM AND LAUNDRY","ORGANIZATIONS, CHARITABLE AND SOCIAL SERVICES",,
18/07/2018,TARGETED INTERVENTION,APT KEC CAR PARK,4.20,MISCELLANEOUS STAFF TRAVEL,AUTOMOBILE PARKING LOTS AND GARAGES,,
18/07/2018,FAMILIES ELMBRIDGE,SHELL PRESTON  69,42.02,NON-STAFF RELATED TRANSPORT COSTS,SERVICE STATIONS WITH OR WITHOUT ANCILLARY SERVICE,,
18/07/2018,SW TEACHERS,WWW.NURTUREGROUPS.ORG,59.46,EQUIPMENT,"ORGANIZATIONS, CHARITABLE AND SOCIAL SERVICES",,
18/07/2018,CHEYNE WALK COMMUNITY HOME,GAME RETAIL,32.98,LIBRARY RESOURCES,"GAME, TOY, AND HOBBY SHOPS",,
18/07/2018,WOODLANDS COMMUNITY HOME,GARDEN GAMES/ BIG GAME,4.95,EQUIPMENT,"GAME, TOY, AND HOBBY SHOPS",,
18/07/2018,SURREY WASTE PARTNERSHIP,LOCKSHOPWAREHOUSE,318.60,EQUIPMENT,DEPARTMENT STORES,,
18/07/2018,READY FOR WORK YSS,WWW.CSKILLS.ORG,30.00,EDUC VISITS/HOLS/CAMPS/TOYS,"SCHOOLS, TRADE AND VOCATIONAL",,
18/07/2018,APPLEWOOD,AMAZON SVCS EU-UK AMAZ,14.79,EQUIPMENT,BOOK STORES,,
18/07/2018,TARGETED INTERVENTION,3C_ WOKING BOROUGH COU,2.80,EDUC VISITS/HOLS/CAMPS/TOYS,AUTOMOBILE PARKING LOTS AND GARAGES,,
18/07/2018,TARGETED INTERVENTION,STARBUCKS,14.20,EDUC VISITS/HOLS/CAMPS/TOYS,"EATING PLACES, RESTAURANTS",,
18/07/2018,BURBANK COMMUNITY HOME,SAINSBURYS TO YOU 0686,318.13,PURCHASE OF FOOD (RAW MATERIALS),"GROCERY STORES, SUPERMARKETS",,
18/07/2018,BURBANK COMMUNITY HOME,TFL TRAVEL CH,6.10,MISCELLANEOUS STAFF TRAVEL,"TRANSPRTN-SUBRBN & LOCAL COMTR PSNGR, INCL FERRIES",,
18/07/2018,MALLOW CRESCENT DMHS 25-30,ARGOS RETAIL GROUP,54.99,EQUIPMENT,DISCOUNT STORES,,
18/07/2018,YOUTH DEMOCRACY,DOMINOS PIZZA UK & IRE,90.95,REFRESHMENT COSTS,"EATING PLACES, RESTAURANTS",,
18/07/2018,PARKING TEAM,WWW.BEAL.ORG.UK,64.26,EQUIPMENT,ELECTRICAL PARTS AND EQUIPMENT,,
18/07/2018,MEMBER DEVELOPMENT/TRAINING,WESTMINSTER FORUM,276.00,TRAINING EXPENSES EXTERNAL GENERAL,"CONSULTING, MANAGEMENT, AND PUBLIC RELATIONS SVCS",,
18/07/2018,SOLD,AMAZON UK MARKETPLACE,1.60,EQUIPMENT,BOOK STORES,,
18/07/2018,SOLD,AMAZON UK MARKETPLACE,18.94,EQUIPMENT,BOOK STORES,,
18/07/2018,DEPUTYSHIP TEAM,EE & T-MOBILE,123.73,3RD PARTY PAYMENTS PRIVATE INDIV,TELECOM INCL PREPAID/RECURRING PHONE SVCS,,
18/07/2018,BURBANK COMMUNITY HOME,COSTA COFFEE,6.00,REFRESHMENT COSTS,FAST FOOD RESTAURANTS,,
18/07/2018,BURBANK COMMUNITY HOME,3C_ WOKING BOROUGH COU,1.40,MISCELLANEOUS STAFF TRAVEL,AUTOMOBILE PARKING LOTS AND GARAGES,,
18/07/2018,BURBANK COMMUNITY HOME,CLINTONS-172,18.50,3RD PARTY PAYMENTS PRIVATE INDIV,"GIFT, CARD, NOVELTY AND SOUVENIR SHOPS",,
18/07/2018,BURBANK COMMUNITY HOME,WILKO WOKING,2.40,3RD PARTY PAYMENTS PRIVATE INDIV,HOUSEHOLD APPLIANCE STORES,,
18/07/2018,PE/CDT MAINTENANCE OVERHEADS,WWW.EXPERTFITNESSUK.CO,52.32,ITEMS PURCHASED FOR RE-SALE,SPORTING GOODS STORES,,
18/07/2018,PROPERTY BUSINESS & PERFORMANCE TEAM,REIGATE HILL GOLF CLUB,715.00,VENUE COSTS (INCLUDING HIRE OF ROOMS),"CLUBS-CNTRY,MBRSHIP(ATHLET,REC,SPRTS,PRIVATE GOLF",,
18/07/2018,TS SERVICE MANAGEMENT,GRUNDON WASTE MANAGEME,"1,440.00",CONTRACTOR PAYMENTS,BUSINESS SERVICES-NOT ELSEWHERE CLASSIFIED,,
18/07/2018,SFRS TRAINING,REIGATE MANOR HOTEL,392.00,SUBSISTENCE AND CONFERENCE EXPENSES,"LODGING-HOTELS,MOTELS,RESORTS-NOT CLASSIFIED",,
18/07/2018,HILLSIDE,SAINSBURYS 0784,5.00,PURCHASE OF FOOD (RAW MATERIALS),"GROCERY STORES, SUPERMARKETS",,
18/07/2018,HILLSIDE,SAINSBURYS 0784,33.52,PURCHASE OF FOOD (RAW MATERIALS),"GROCERY STORES, SUPERMARKETS",,
18/07/2018,HILLSIDE,SAINSBURYS 0784,15.50,EQUIPMENT,"GROCERY STORES, SUPERMARKETS",,
18/07/2018,FAMILIES RUNNYMEDE,SENSORY DIRECT,15.35,EQUIPMENT,"GAME, TOY, AND HOBBY SHOPS",,
18/07/2018,FAMILIES RUNNYMEDE,MARKS&SPENCER PLC,205.50,REFRESHMENT COSTS,"GROCERY STORES, SUPERMARKETS",,
18/07/2018,FAIRCROFT COMMUNITY HOME,LEATHERHEAD LEISURE,27.00,EDUC VISITS/HOLS/CAMPS/TOYS,"CLUBS-CNTRY,MBRSHIP(ATHLET,REC,SPRTS,PRIVATE GOLF",,
18/07/2018,FAIRCROFT COMMUNITY HOME,LEATHERHEAD LEISURE,19.60,EDUC VISITS/HOLS/CAMPS/TOYS,"CLUBS-CNTRY,MBRSHIP(ATHLET,REC,SPRTS,PRIVATE GOLF",,
18/07/2018,ARUNDEL,TESCO STORES 5999,105.95,REFRESHMENT COSTS,"GROCERY STORES, SUPERMARKETS",,
18/07/2018,ARUNDEL,TESCO STORES 5999,63.00,REFRESHMENT COSTS,"GROCERY STORES, SUPERMARKETS",,
18/07/2018,FAMILIES SURREY HEATH,SAINSBURYS SACAT 0675,15.40,PURCHASE OF FOOD (RAW MATERIALS),"GROCERY STORES, SUPERMARKETS",,
18/07/2018,PRISON CAPITATION                       ,THE READING AGENCY,428.47,EDUC VISITS/HOLS/CAMPS/TOYS,"TYPESETTING, PLATE MAKING & RELATED SERVICES",,
18/07/2018,CSF AN HUB,CITY LIT,89.00,STAFF TRAINING,COMPUTER SOFTWARE STORES,,
18/07/2018,KARIBU COMMUNITY HOME,TECHNOLOGY RESOURCES L,"1,000.00",EQUIPMENT,"COMPUTERS, COMPUTER PERIPHERAL EQUIPMENT, SOFTWARE",,
18/07/2018,KARIBU COMMUNITY HOME,TECHNOLOGY RESOURCES L,485.00,EQUIPMENT,"COMPUTERS, COMPUTER PERIPHERAL EQUIPMENT, SOFTWARE",,
18/07/2018,SOUTH WEST OUTREACH,SAINSBURYS TO YOU 0652,36.18,PURCHASE OF FOOD (RAW MATERIALS),"GROCERY STORES, SUPERMARKETS",,
18/07/2018,SOUTH WEST OUTREACH,SAINSBURYS TO YOU 0652,59.15,PURCHASE OF FOOD (RAW MATERIALS),"GROCERY STORES, SUPERMARKETS",,
18/07/2018,CHEYNE WALK COMMUNITY HOME,LONDIS,10.53,PURCHASE OF FOOD (RAW MATERIALS),"GROCERY STORES, SUPERMARKETS",,
18/07/2018,CENTRAL COMMUNICATIONS,EMAP PUBLISHING LTD,299.00,PUBLICITY,MISCELLANEOUS PUBLISHING AND PRINTING,,
19/07/2018,HOLLAND CLOSE RESIDENTIAL HOME,SP   WOW SOFA,683.00,FIXTURES AND FITTINGS,COMPUTER SOFTWARE STORES,,
19/07/2018,FAMILIES WOKING,SPN ERNIE BALL UK,10.72,EQUIPMENT,DIRECT MARKETING-OTHER DIRECT MARKETERS/NOT ELSEW.,,
19/07/2018,HILLSIDE,PRIMARK,8.00,"CLOTHING, UNIFORM AND LAUNDRY",FAMILY CLOTHING STORES,,
19/07/2018,CHILDREN'S RIGHTS TEAM,CANVA FOR WORK MONTHLY,10.28,COMPUTER SOFTWARE,PHOTOGRAPHIC STUDIOS,,
19/07/2018,VIRTUAL SCHOOL FOR LAC PUPIL PREMIUM,SCANNING PENS,465.60,SPECIALIST EDUCATIONAL STATIONERY,"OFFICE, SCHOOL SUPPLY, AND STATIONERY STORES",,
19/07/2018,BURBANK COMMUNITY HOME,BP MERROW CONVENIENCE,.99,REFRESHMENT COSTS,SERVICE STATIONS WITH OR WITHOUT ANCILLARY SERVICE,,
19/07/2018,NW CARE - LAC,PREMIER INN,80.00,INDEPENDENT LIVING PLACEMENTS,PREMIER INN,,
19/07/2018,RUTH HOUSE,AMAZON SVCS EU-UK AMAZ,16.82,EQUIPMENT,BOOK STORES,,
19/07/2018,SW CARE - CP & COURT LAC,HALFORDS ON LINE,48.75,EQUIPMENT,BICYCLE SHOPS-SALES AND SERVICE,,
19/07/2018,NW CARE - CP & COURT LAC,HALFORDS ON LINE,48.75,EQUIPMENT,BICYCLE SHOPS-SALES AND SERVICE,,
19/07/2018,NE CARE - CP & COURT LAC,HALFORDS ON LINE,48.75,EQUIPMENT,BICYCLE SHOPS-SALES AND SERVICE,,
19/07/2018,SE CARE - CP & COURT LAC,HALFORDS ON LINE,48.75,EQUIPMENT,BICYCLE SHOPS-SALES AND SERVICE,,
19/07/2018,CHILDREN'S RIGHTS TEAM,WILKO WOKING,4.45,REFRESHMENT COSTS,HOUSEHOLD APPLIANCE STORES,,
19/07/2018,BUSINESS SUPPORT & CUSTOMER SERVICE TEAM,AMAZON UK MARKETPLACE,36.29,STATIONERY,BOOK STORES,,
19/07/2018,FIRE & RESCUE COMMUNITY SAFETY,WEBCOM/ENABLE,28.80,PUBLICITY,COMPUTER MAIN./REPAIR/SERVICES NOT ELSEWHERE CLASS,,
19/07/2018,CHMHS RAP TEAM,MIXAM UK LTD,56.70,PRINTING,MISCELLANEOUS PUBLISHING AND PRINTING,,
19/07/2018,WOODLANDS COMMUNITY HOME,SAINSBURYS 0686,20.75,EQUIPMENT,"GROCERY STORES, SUPERMARKETS",,
19/07/2018,WOODLANDS COMMUNITY HOME,SAINSBURYS 0686,12.45,PURCHASE OF FOOD (RAW MATERIALS),"GROCERY STORES, SUPERMARKETS",,
19/07/2018,WOODLANDS COMMUNITY HOME,SAINSBURYS 0686,39.40,PURCHASE OF FOOD (RAW MATERIALS),"GROCERY STORES, SUPERMARKETS",,
19/07/2018,PROPERTY OPERATIONS TEAM,LAWSONS SALFORDS,540.71,PURCHASE OF BUILDING MATERIALS,CONSTRUCTION MATERIALS NOT ELSEWHERE CLASSIFIED,,
19/07/2018,AP & AR ORBIS NORTH,WWW.MONEYCLAIM.GOV,77.00,FEES,GOVERNMENT SERVICES-NOT ELSEWHERE CLASSIFIED,,
19/07/2018,APPLEWOOD,LISCLARE LIMITED,180.60,EQUIPMENT,DENTAL/LAB/MED/OPHTHALMIC HOSP EQUIP & SUPPLIES,,
19/07/2018,TARGETED INTERVENTION,HARVESTER BULLDOG,115.61,EDUC VISITS/HOLS/CAMPS/TOYS,"EATING PLACES, RESTAURANTS",,
19/07/2018,HOPE SERVICE - WEST,SAINSBURYS SACAT 0683,82.75,PURCHASE OF FOOD (RAW MATERIALS),"GROCERY STORES, SUPERMARKETS",,
19/07/2018,HOPE SERVICE - WEST,TESCO STORES 6320,1.09,PURCHASE OF FOOD (RAW MATERIALS),"GROCERY STORES, SUPERMARKETS",,
19/07/2018,CHILDREN'S RIGHTS TEAM,POUNDLAND LTD 1228,4.00,REFRESHMENT COSTS,DISCOUNT STORES,,
19/07/2018,CENTRAL COMMUNICATIONS,AMAZON UK MARKETPLACE,29.86,PUBLICITY,BOOK STORES,,
19/07/2018,FRIENDS & FAMILY CARE,NATIONAL WESTMINSTER B,100.00,LEGAL EXPENSES,PROFESSIONAL SERVICES-NOT ELSEWHERE CLASSIFIED,,
19/07/2018,HAVEN YTH CENTRE,CO-OP GROUP 310385,8.02,REFRESHMENT COSTS,"GROCERY STORES, SUPERMARKETS",,
19/07/2018,SHELL UK LICENSING,EPPING FOREST,565.00,FEES,GOVERNMENT SERVICES-NOT ELSEWHERE CLASSIFIED,,
19/07/2018,SHELL UK LICENSING,LONDON BOROUGH/GRE,339.00,FEES,COMPUTER NETWORK/INFORMATION SERVICES,,
19/07/2018,STRATEGIC LEADERSHIP (CEO & ACEO),AMAZON EU,13.99,VENUE COSTS (INCLUDING HIRE OF ROOMS),DIRECT MARKETING-OTHER DIRECT MARKETERS/NOT ELSEW.,,
19/07/2018,STRATEGIC LEADERSHIP (CEO & ACEO),AMAZON SVCS EU-UK AMAZ,54.03,VENUE COSTS (INCLUDING HIRE OF ROOMS),BOOK STORES,,
19/07/2018,TARGETED INTERVENTION,COSTA COFFEE,5.20,EDUC VISITS/HOLS/CAMPS/TOYS,"EATING PLACES, RESTAURANTS",,
19/07/2018,FOSTERING SERVICE CENTRAL COSTS,TESCO STORE 2160,154.33,REFRESHMENT COSTS,"GROCERY STORES, SUPERMARKETS",,
19/07/2018,SOLD DAY TO DAY OPERATIONS,AMAZON UK MARKETPLACE,26.97,EQUIPMENT,BOOK STORES,,
19/07/2018,SOLD DAY TO DAY OPERATIONS,AMAZON UK MARKETPLACE,17.90,EQUIPMENT,BOOK STORES,,
19/07/2018,RUTH HOUSE,TIMPSON LTD,16.95,EQUIPMENT,"HAT CLEANING SHOPS, SHOE REPAIR SHOPS, SHOE SHINE",,
19/07/2018,RUTH HOUSE,SAINSBURYS 0652,111.80,PURCHASE OF FOOD (RAW MATERIALS),"GROCERY STORES, SUPERMARKETS",,
19/07/2018,RUTH HOUSE,SAINSBURYS 0652,12.55,PURCHASE OF FOOD (RAW MATERIALS),"GROCERY STORES, SUPERMARKETS",,
19/07/2018,ESTATES TEAM,AMAZON UK MARKETPLACE,13.02,EQUIPMENT,BOOK STORES,,
19/07/2018,ESTATES TEAM,AMAZON UK MARKETPLACE,11.98,EQUIPMENT,BOOK STORES,,
19/07/2018,ESTATES TEAM,AMAZON EU,22.99,EQUIPMENT,DIRECT MARKETING-OTHER DIRECT MARKETERS/NOT ELSEW.,,
19/07/2018,ARUNDEL,WAITROSE 202,9.73,REFRESHMENT COSTS,"GROCERY STORES, SUPERMARKETS",,
19/07/2018,TRAINING CHILDREN'S,WWW.PMGLTD.CO.UK,426.60,TRAINING EXPENSES EXTERNAL GENERAL,BUSINESS SERVICES-NOT ELSEWHERE CLASSIFIED,,
19/07/2018,KARIBU COMMUNITY HOME,CHESSINGTON WORLD,348.00,EDUC VISITS/HOLS/CAMPS/TOYS,"AMUSEMENT PARKS,CARNIVALS,CIRCUS,FORTUNE TELLERS",,
19/07/2018,KARIBU COMMUNITY HOME,CHESSINGTON WORLD,40.00,EDUC VISITS/HOLS/CAMPS/TOYS,"AMUSEMENT PARKS,CARNIVALS,CIRCUS,FORTUNE TELLERS",,
19/07/2018,FAMILIES REIGATE AND BANSTREAD,TESCO STORES 2560,10.49,PURCHASE OF FOOD (RAW MATERIALS),"GROCERY STORES, SUPERMARKETS",,
19/07/2018,ARUNDEL,TESCO STORES 5999,57.33,REFRESHMENT COSTS,"GROCERY STORES, SUPERMARKETS",,
19/07/2018,ARUNDEL,TESCO STORES 5999,2.00,REFRESHMENT COSTS,"GROCERY STORES, SUPERMARKETS",,
19/07/2018,HILLSIDE,SAINSBURYS 0784,19.80,PURCHASE OF FOOD (RAW MATERIALS),"GROCERY STORES, SUPERMARKETS",,
19/07/2018,PSSS VISUALLY IMPAIRED,AMAZON EU,24.04,EQUIPMENT,DIRECT MARKETING-OTHER DIRECT MARKETERS/NOT ELSEW.,,
19/07/2018,IMT CRITICAL ENVIRONMENTS,MILK&MORE,7.80,REFRESHMENT COSTS,DAIRY PRODUCTS STORES,,
19/07/2018,RUTH HOUSE,WWW.IKEA.COM,208.00,FURNITURE,"EQUIP, FURNITURE, HOME FURNSHNGS STRS (EXCPT APPL)",,
19/07/2018,RUTH HOUSE,AMAZON SVCS EU-UK AMAZ,19.98,EQUIPMENT,BOOK STORES,,
19/07/2018,RUTH HOUSE,NOWTV.COM/BILLINGHELP,33.99,EDUC VISITS/HOLS/CAMPS/TOYS,"CABLE, SATELLITE, OTHER PAY TELEVISION, RADIO SVCS",,
19/07/2018,RUTH HOUSE,NOWTV.COM/BILLINGHELP,3.99,EDUC VISITS/HOLS/CAMPS/TOYS,"CABLE, SATELLITE, OTHER PAY TELEVISION, RADIO SVCS",,
19/07/2018,HILLSIDE,SAINSBURYS 0784,24.65,PURCHASE OF FOOD (RAW MATERIALS),"GROCERY STORES, SUPERMARKETS",,
19/07/2018,TARGETED INTERVENTION,SQUIRES GARDEN CENTRE,5.05,EDUC VISITS/HOLS/CAMPS/TOYS,LAWN AND GARDEN SUPPLY STORES,,
19/07/2018,TARGETED INTERVENTION,MIA 68 LTD,25.00,EDUC VISITS/HOLS/CAMPS/TOYS,BARBER AND BEAUTY SHOPS,,
19/07/2018,TARGETED INTERVENTION,"BOOTS,STAINES",9.99,EXAMINATION FEES,"DRUG STORES, PHARMACIES",,
19/07/2018,TARGETED INTERVENTION,SUPERDRUG STORES PLC,13.48,EXAMINATION FEES,"DRUG STORES, PHARMACIES",,
19/07/2018,FAIRCROFT COMMUNITY HOME,AMAZON EU,32.49,EQUIPMENT,DIRECT MARKETING-OTHER DIRECT MARKETERS/NOT ELSEW.,,
19/07/2018,FAIRCROFT COMMUNITY HOME,HOME BARGAINS BYFLEET,106.19,EQUIPMENT,HARDWARE STORES,,
19/07/2018,FAIRCROFT COMMUNITY HOME,TESCO STORE 2160,38.05,EQUIPMENT,"GROCERY STORES, SUPERMARKETS",,
19/07/2018,FAIRMOUNT HOUSE LEATHERHEAD,NWS-UK LTD,92.09,EQUIPMENT,INDUSTRIAL SUPPLIES NOT ELSEWHERE CLASSIFIED,,
19/07/2018,TARGETED INTERVENTION,TWO RIVERS CAR PK,2.20,MISCELLANEOUS STAFF TRAVEL,AUTOMOBILE PARKING LOTS AND GARAGES,,
19/07/2018,CS BUSINESS SUPPORT WEST,MILK&MORE,21.15,REFRESHMENT COSTS,DAIRY PRODUCTS STORES,,
19/07/2018,BURBANK COMMUNITY HOME,CO-OP GROUP FOOD,4.58,PURCHASE OF FOOD (RAW MATERIALS),"GROCERY STORES, SUPERMARKETS",,
19/07/2018,HOPE SERVICE - WEST,SAINSBURYS TO YOU 0686,68.59,PURCHASE OF FOOD (RAW MATERIALS),"GROCERY STORES, SUPERMARKETS",,
19/07/2018,HOPE SERVICE - WEST,SAINSBURYS TO YOU 0686,-4.55,PURCHASE OF FOOD (RAW MATERIALS),"GROCERY STORES, SUPERMARKETS",,
19/07/2018,FAMILIES ELMBRIDGE,AMAZON UK MARKETPLACE,40.95,EQUIPMENT,BOOK STORES,,
19/07/2018,ACL CENTRAL EXPENDITURE,AMAZON UK MARKETPLACE,62.37,EQUIPMENT,BOOK STORES,,
19/07/2018,ACL CENTRAL EXPENDITURE,WORKWEAR EXPRESS LIMIT,32.81,EQUIPMENT,ACCESSORY AND APPAREL STORES-MISCELLANEOUS,,
19/07/2018,CHEYNE WALK COMMUNITY HOME,BLUE ARROW GATWICK,28.00,HIRE OF VEHICLES,LIMOUSINES AND TAXICABS,,
19/07/2018,CHEYNE WALK COMMUNITY HOME,BLUE ARROW GATWICK,26.00,HIRE OF VEHICLES,LIMOUSINES AND TAXICABS,,
19/07/2018,NE CARE - LAC,GRO HM PASSPORT OFFICE,65.16,OTHER COMMUNITY CARE VOL,GOVERNMENT SERVICES-NOT ELSEWHERE CLASSIFIED,,
19/07/2018,NE CARE - CP & COURT LAC,PLANET EDUCATION,40.00,EDUC VISITS/HOLS/CAMPS/TOYS,SCHOOLS & EDUCATIONAL SVC-NOT ELSEWHERE CLASSIFIED,,
19/07/2018,DOWNLANDS COUNTRYSIDE PROJECT,SAINSBURYS SACAT 2325,2.00,EQUIPMENT,"GROCERY STORES, SUPERMARKETS",,
19/07/2018,EXTENDED HOPE,TESCO STORE 2590,88.46,PURCHASE OF FOOD (RAW MATERIALS),"GROCERY STORES, SUPERMARKETS",,
19/07/2018,ARUNDEL,ROYAL ALBERT HALL,26.48,EDUC VISITS/HOLS/CAMPS/TOYS,"THEATRICAL PRODUCERS(EXCL MOTION PIX),TICKET AGNCY",,
19/07/2018,FAIRCROFT COMMUNITY HOME,SAINSBURYS 0687,49.00,EQUIPMENT,"GROCERY STORES, SUPERMARKETS",,
19/07/2018,FAIRCROFT COMMUNITY HOME,SAINSBURYS 0687,8.10,PURCHASE OF FOOD (RAW MATERIALS),"GROCERY STORES, SUPERMARKETS",,
19/07/2018,WOODLANDS COMMUNITY HOME,SAINSBURYS SACAT 0686,31.95,PURCHASE OF FOOD (RAW MATERIALS),"GROCERY STORES, SUPERMARKETS",,
19/07/2018,WOODLANDS COMMUNITY HOME,WWW.ARGOS.CO.UK,248.92,EQUIPMENT,DISCOUNT STORES,,
19/07/2018,LEAVING CARE PACKAGES,UK TATTOO ACADEMY LTD,300.00,CURRICULUM CONSUMABLES,SCHOOLS & EDUCATIONAL SVC-NOT ELSEWHERE CLASSIFIED,,
19/07/2018,NW CARE - LAC,WWW.ROOM-B.CO.UK,"1,050.00",INDEPENDENT LIVING PLACEMENTS,PROFESSIONAL SERVICES-NOT ELSEWHERE CLASSIFIED,,
19/07/2018,HIGHWAYS INFORMATION TEAM,AMAZON EU,17.98,EQUIPMENT,DIRECT MARKETING-OTHER DIRECT MARKETERS/NOT ELSEW.,,
19/07/2018,ACL CENTRAL EXPENDITURE,HELLOPRINT,73.95,PUBLICITY,"QUICK COPY,REPRODUCTION AND BLUEPRINTING SERVICES",,
19/07/2018,ACL CENTRAL EXPENDITURE,AMAZON SVCS EU-UK AMAZ,8.97,PUBLICITY,BOOK STORES,,
19/07/2018,EQUIPMENT SCC BUDGET,FIRSTCHOICE CATERING S,23.99,EQUIPMENT,INDUSTRIAL SUPPLIES NOT ELSEWHERE CLASSIFIED,,
19/07/2018,FIRE SERVICES IT,AMAZON EU,63.63,COMPUTER HARDWARE,DIRECT MARKETING-OTHER DIRECT MARKETERS/NOT ELSEW.,,
19/07/2018,TRANSPORT,AMAZON UK MARKETPLACE,11.48,STATIONERY,BOOK STORES,,
19/07/2018,RBDM - GENERAL,AMAZON UK MARKETPLACE,17.29,EQUIPMENT,BOOK STORES,,
19/07/2018,COBHAM CHILDRENS CENTRE,TESCO STORE 2160,10.03,REFRESHMENT COSTS,"GROCERY STORES, SUPERMARKETS",,
19/07/2018,LOCAL ASSISTANCE SCHEME,WWW.JOHNLEWIS.COM,28.50,FURNITURE,DEPARTMENT STORES,,
19/07/2018,CHEYNE WALK COMMUNITY HOME,SAINSBURYS TO YOU 0026,220.40,PURCHASE OF FOOD (RAW MATERIALS),"GROCERY STORES, SUPERMARKETS",,
19/07/2018,RUTH HOUSE,AMAZON UK MARKETPLACE,47.94,EQUIPMENT,BOOK STORES,,
19/07/2018,RBDM - GENERAL,AMAZON UK MARKETPLACE,57.92,STATIONERY,BOOK STORES,,
19/07/2018,CENTRAL COMMUNICATIONS,ITUNES.COM/BILL,3.99,PUBLICITY,RECORD SHOPS,,
19/07/2018,CENTRAL COMMUNICATIONS,FACEBK Z7M6AHWZR2,481.98,PUBLICITY,ADVERTISING SERVICES,,
19/07/2018,CENTRAL COMMUNICATIONS,FACEBK 28M6AHWZR2,118.02,PUBLICITY,ADVERTISING SERVICES,,
20/07/2018,PE/CDT MAINTENANCE OVERHEADS,WWW.CONCEPT2.CO.UK,344.78,ITEMS PURCHASED FOR RE-SALE,SPORTING GOODS STORES,,
20/07/2018,SHELL UK LICENSING,WWW.CENTRALBEDFORDSHIR,384.00,FEES,GOVERNMENT SERVICES-NOT ELSEWHERE CLASSIFIED,,
20/07/2018,CHEYNE WALK COMMUNITY HOME,BT BILL PAYMENT 2,67.07,TELECOMMUNICATION CHARGES,TELECOMMUNICATION EQUIPMENT INCL TELEPHONE SALES,,
20/07/2018,CHEYNE WALK COMMUNITY HOME,BT BILL PAYMENT 2,92.00,TELECOMMUNICATION CHARGES,TELECOMMUNICATION EQUIPMENT INCL TELEPHONE SALES,,
20/07/2018,TS SERVICE MANAGEMENT,NORTON  AP1261139748,94.99,COMPUTER SOFTWARE,DIRECT MARKETING-CONTINUITY/SUBSCRIPTION MERCHANTS,,
20/07/2018,PROPERTY OPERATIONS TEAM,ROBERT DYAS HOLDNG LTD,6.49,PURCHASE OF BUILDING MATERIALS,HARDWARE STORES,,
20/07/2018,TRAINING F&R SER,TABLEAU SOFTWARE,"1,108.88",TRAINING EXPENSES EXTERNAL GENERAL,COMPUTER SOFTWARE STORES,,
20/07/2018,TRAINING F&R SER,TABLEAU SOFTWARE,"1,108.88",TRAINING EXPENSES EXTERNAL GENERAL,COMPUTER SOFTWARE STORES,,
20/07/2018,HILLSIDE,SHOE ZONE,14.99,"CLOTHING, UNIFORM AND LAUNDRY",SHOE STORES,,
20/07/2018,FAMILIES REIGATE AND BANSTREAD,TESCO STORES 2700,29.51,PURCHASE OF FOOD (RAW MATERIALS),"GROCERY STORES, SUPERMARKETS",,
20/07/2018,HILLSIDE,TESCO STORE 3149,13.90,EQUIPMENT,"GROCERY STORES, SUPERMARKETS",,
20/07/2018,HILLSIDE,TESCO STORE 3149,270.02,PURCHASE OF FOOD (RAW MATERIALS),"GROCERY STORES, SUPERMARKETS",,
20/07/2018,SECTOR MANAGER,FAYE (UK) LTD,296.60,ITEMS PURCHASED FOR RE-SALE,MEN'S AND WOMEN'S CLOTHING STORES,,
20/07/2018,ENSEMBLES & TOURS,SHEETMUSICPLUS.COM,108.81,CURRIC BOOKS,"MUSIC STORES-INSTRUMENTS, PIANOS, SHEET MUSIC",,
20/07/2018,ARUNDEL,TESCO STORES 5999,121.07,REFRESHMENT COSTS,"GROCERY STORES, SUPERMARKETS",,
20/07/2018,ARUNDEL,TESCO STORES 5999,2.65,REFRESHMENT COSTS,"GROCERY STORES, SUPERMARKETS",,
20/07/2018,PROJECT DELIVERY,AMAZON UK MARKETPLACE,34.99,COMPUTER SERVICES,BOOK STORES,,
20/07/2018,CHEYNE WALK COMMUNITY HOME,WWW.LITTLESHOPOFHORROR,20.99,EDUC VISITS/HOLS/CAMPS/TOYS,LAWN AND GARDEN SUPPLY STORES,,
20/07/2018,CENTRAL COMMUNICATIONS,GOOGLE  ADWS2060179426,500.00,PUBLICITY,DIRECT MARKETING-CONTINUITY/SUBSCRIPTION MERCHANTS,,
20/07/2018,CHEYNE WALK COMMUNITY HOME,WWW.ARGOS.CO.UK,4.19,EQUIPMENT,DISCOUNT STORES,,
20/07/2018,CENTRAL COMMUNICATIONS,ISSUU,22.97,PUBLICITY,"COMPUTERS, COMPUTER PERIPHERAL EQUIPMENT, SOFTWARE",,
20/07/2018,NW LOOKED AFTER TEAM,H TEL INTERNAT. ET TER,74.75,OTHER COMMUNITY CARE VOL,"LODGING-HOTELS,MOTELS,RESORTS-NOT CLASSIFIED",,
20/07/2018,SPEECH & LANGUAGE THERAPY,AMAZON UK MARKETPLACE,8.80,EDUC VISITS/HOLS/CAMPS/TOYS,BOOK STORES,,
20/07/2018,WORKPLACE COMMERCIAL TEAM,KD MEDIA PUBLISHIN,270.00,PUBLICITY,MISCELLANEOUS PUBLISHING AND PRINTING,,
20/07/2018,TRANSPORT,PAYPAL  BULLDOGAPPL,239.00,EQUIPMENT,HOUSEHOLD APPLIANCE STORES,,
20/07/2018,FAIRCROFT COMMUNITY HOME,AMAZON UK MARKETPLACE,3.09,BOOKS,BOOK STORES,,
20/07/2018,SE NIL RECOURSE TO PUBLIC FUNDS CARE,TRAVELODGE,278.80,INDEPENDENT LIVING PLACEMENTS,TRAVELODGE,,
20/07/2018,HOPE SERVICE - WEST,SAINSBURYS SACAT(4409),12.40,PURCHASE OF FOOD (RAW MATERIALS),"GROCERY STORES, SUPERMARKETS",,
20/07/2018,CHAIRMAN,ELSA BROWN FLOWER STYL,52.00,EQUIPMENT,FLORISTS,,
20/07/2018,READY FOR WORK YSS,NCS VUE CITB HS&E REV,21.00,EDUC VISITS/HOLS/CAMPS/TOYS,SCHOOLS & EDUCATIONAL SVC-NOT ELSEWHERE CLASSIFIED,,
20/07/2018,CHMHS RAP TEAM,SAINSBURYS TO YOU 0686,69.70,EDUC VISITS/HOLS/CAMPS/TOYS,"GROCERY STORES, SUPERMARKETS",,
20/07/2018,LOWER MOLE COUNTRYSIDE PROJECT,ERNEST DOE  SONS,18.20,EQUIPMENT,MISC/AUTO/AIRCRAFT/FARM EQUIP  NOT ELSEWHERE CLASS,,
20/07/2018,SHELL UK LICENSING,LONDON BOROUGH/GRE,216.00,FEES,COMPUTER NETWORK/INFORMATION SERVICES,,
20/07/2018,APPLEWOOD,ASDA GROCERIES ONLINE,250.23,PURCHASE OF FOOD (RAW MATERIALS),"GROCERY STORES, SUPERMARKETS",,
20/07/2018,APPLEWOOD,ASDA GROCERIES ONLINE,-1.98,PURCHASE OF FOOD (RAW MATERIALS),"GROCERY STORES, SUPERMARKETS",,
20/07/2018,SOLD DAY TO DAY OPERATIONS,AMAZON UK MARKETPLACE,11.94,EQUIPMENT,BOOK STORES,,
20/07/2018,SOLD ESTATES MANAGEMENT,SCREWFIX GUILDFORD,43.76,EQUIPMENT,"BUILDING MATERIALS, LUMBER STORES",,
20/07/2018,HOPE SERVICE - WEST,HOMEBASE LTD 050,41.99,CURRICULUM CONSUMABLES,"BUILDING MATERIALS, LUMBER STORES",,
20/07/2018,SOLD,AMAZON UK MARKETPLACE,27.55,EQUIPMENT,BOOK STORES,,
20/07/2018,HILLSIDE,SAINSBURYS 0675,23.20,PURCHASE OF FOOD (RAW MATERIALS),"GROCERY STORES, SUPERMARKETS",,
20/07/2018,HOPE SERVICE - WEST,SAINSBURYS LOC 6152,34.40,PURCHASE OF FOOD (RAW MATERIALS),"GROCERY STORES, SUPERMARKETS",,
20/07/2018,HOPE SERVICE - WEST,THE RICHMON FELLOW SHI,3.10,REFRESHMENT COSTS,LAWN AND GARDEN SUPPLY STORES,,
20/07/2018,LIBERTAS COMMUNITY HOME,OFFICE LONDON INTE,49.50,"CLOTHING, UNIFORM AND LAUNDRY",SHOE STORES,,
20/07/2018,STRATEGIC LEADERSHIP (CEO & ACEO),POUNDLAND,3.00,VENUE COSTS (INCLUDING HIRE OF ROOMS),DISCOUNT STORES,,
20/07/2018,STRATEGIC LEADERSHIP (CEO & ACEO),PARTY BUZ LTD,17.97,VENUE COSTS (INCLUDING HIRE OF ROOMS),"GIFT, CARD, NOVELTY AND SOUVENIR SHOPS",,
20/07/2018,TARGETED INTERVENTION,ALLSAINTS,2.30,EDUC VISITS/HOLS/CAMPS/TOYS,"EATING PLACES, RESTAURANTS",,
20/07/2018,ASYLUM SEEKERS 16-17,DVLA DRIVER ONLINE,34.00,NON-STAFF RELATED TRANSPORT COSTS,GOVERNMENT SERVICES-NOT ELSEWHERE CLASSIFIED,,
20/07/2018,ASYLUM SEEKERS 16-17,TFL OYST PHOTOCARD,10.00,NON-STAFF RELATED TRANSPORT COSTS,PASSENGER RAILWAYS,,
20/07/2018,EXTENDED HOPE,ARGOS LTD,17.99,CURRICULUM EQUIPMENT AND FURNITURE,DISCOUNT STORES,,
20/07/2018,FAMILIES RUNNYMEDE,TESCO STORES 2017,77.42,REFRESHMENT COSTS,"GROCERY STORES, SUPERMARKETS",,
20/07/2018,LOCAL ASSISTANCE SCHEME,WWW.CAMPINGWORLD.CO.UK,54.93,FURNITURE,TENT AND AWNING SHOPS,,
20/07/2018,LOCAL ASSISTANCE SCHEME,WWW.JOHNLEWIS.COM,299.00,FURNITURE,DEPARTMENT STORES,,
20/07/2018,LOCAL ASSISTANCE SCHEME,WWW.JOHNLEWIS.COM,57.00,FURNITURE,DEPARTMENT STORES,,
20/07/2018,LOCAL ASSISTANCE SCHEME,WWW.CAMPINGWORLD.CO.UK,-4.95,FURNITURE,TENT AND AWNING SHOPS,,
20/07/2018,SW CARE - CP & COURT LAC,WWW.ENERGY-KIDZ.CO.UK,845.00,INDEPENDENT LIVING PLACEMENTS,SCHOOLS & EDUCATIONAL SVC-NOT ELSEWHERE CLASSIFIED,,
20/07/2018,CHEYNE WALK COMMUNITY HOME,SAINSBURYS TO YOU 0026,137.45,PURCHASE OF FOOD (RAW MATERIALS),"GROCERY STORES, SUPERMARKETS",,
20/07/2018,BURBANK COMMUNITY HOME,FREEDOM LEISURE,14.50,EDUC VISITS/HOLS/CAMPS/TOYS,GOVERNMENT SERVICES-NOT ELSEWHERE CLASSIFIED,,
20/07/2018,BURBANK COMMUNITY HOME,FREEDOM LEISURE,3.00,EDUC VISITS/HOLS/CAMPS/TOYS,GOVERNMENT SERVICES-NOT ELSEWHERE CLASSIFIED,,
20/07/2018,BURBANK COMMUNITY HOME,FREEDOM LEISURE,4.50,EDUC VISITS/HOLS/CAMPS/TOYS,GOVERNMENT SERVICES-NOT ELSEWHERE CLASSIFIED,,
20/07/2018,HOPE SERVICE - WEST,AMAZON UK MARKETPLACE,11.30,CURRICULUM CONSUMABLES,BOOK STORES,,
20/07/2018,HOPE SERVICE - WEST,VIKING,23.35,CURRICULUM CONSUMABLES,STATIONERY/OFFICE SUPPLIES/PRINTING & WRITING PAP.,,
20/07/2018,HOPE SERVICE - WEST,SAINSBURYS LOC 4409,12.05,PURCHASE OF FOOD (RAW MATERIALS),"GROCERY STORES, SUPERMARKETS",,
20/07/2018,FAIRCROFT COMMUNITY HOME,AMAZON EU,8.37,BOOKS,DIRECT MARKETING-OTHER DIRECT MARKETERS/NOT ELSEW.,,
20/07/2018,FAIRCROFT COMMUNITY HOME,SPORTSDIRECT 234,40.99,"CLOTHING, UNIFORM AND LAUNDRY",SPORTING GOODS STORES,,
20/07/2018,WOODLANDS COMMUNITY HOME,MAVERICKS HAIRDRESSING,31.00,"CLOTHING, UNIFORM AND LAUNDRY",BARBER AND BEAUTY SHOPS,,
20/07/2018,WOODLANDS COMMUNITY HOME,BURGER KING GUILDFORD,15.82,PURCHASE OF FOOD (RAW MATERIALS),FAST FOOD RESTAURANTS,,
20/07/2018,WOODLANDS COMMUNITY HOME,TESCO STORES 3149,144.00,EQUIPMENT,"GROCERY STORES, SUPERMARKETS",,
20/07/2018,WOODLANDS COMMUNITY HOME,VUE BSL-ATM,42.16,EDUC VISITS/HOLS/CAMPS/TOYS,MOTION PICTURE THEATERS,,
20/07/2018,WOODLANDS COMMUNITY HOME,SPORTSDIRECT 234,55.96,EQUIPMENT,SPORTING GOODS STORES,,
20/07/2018,WOODLANDS COMMUNITY HOME,WWW.ARGOS.CO.UK,-3.95,EQUIPMENT,DISCOUNT STORES,,
20/07/2018,NW CARE - NON-LAC CP & COURT,NATIONAL EXPRESS LIMIT,64.00,NON-STAFF RELATED TRANSPORT COSTS,BUS LINES,,
20/07/2018,NW CARE - NON-LAC CP & COURT,NATIONAL EXPRESS LIMIT,63.00,NON-STAFF RELATED TRANSPORT COSTS,BUS LINES,,
20/07/2018,NW CARE - NON-LAC CP & COURT,NATIONAL EXPRESS LIMIT,66.10,NON-STAFF RELATED TRANSPORT COSTS,BUS LINES,,
20/07/2018,BURBANK COMMUNITY HOME,SUE RYDER 2095,13.00,EDUC VISITS/HOLS/CAMPS/TOYS,"ORGANIZATIONS, CHARITABLE AND SOCIAL SERVICES",,
20/07/2018,TARGETED INTERVENTION,COMMERCIAL SERVICES -,6.20,EDUC VISITS/HOLS/CAMPS/TOYS,"EATING PLACES, RESTAURANTS",,
20/07/2018,LIBERTAS COMMUNITY HOME,SAINSBURYS SACAT 0686,31.25,EQUIPMENT,"GROCERY STORES, SUPERMARKETS",,
20/07/2018,LIBERTAS COMMUNITY HOME,SAINSBURYS SACAT 0686,20.05,PURCHASE OF FOOD (RAW MATERIALS),"GROCERY STORES, SUPERMARKETS",,
20/07/2018,LIBERTAS COMMUNITY HOME,SAINSBURYS SACAT 0686,107.97,PURCHASE OF FOOD (RAW MATERIALS),"GROCERY STORES, SUPERMARKETS",,
20/07/2018,WOODLANDS COMMUNITY HOME,SAINSBURYS 0686,21.60,PURCHASE OF FOOD (RAW MATERIALS),"GROCERY STORES, SUPERMARKETS",,
20/07/2018,WOODLANDS COMMUNITY HOME,SAINSBURYS 0686,178.82,PURCHASE OF FOOD (RAW MATERIALS),"GROCERY STORES, SUPERMARKETS",,
20/07/2018,ACL CENTRAL EXPENDITURE,COOKSON PRECIOUS M,233.84,EQUIPMENT,"PRECIOUS STONES AND METALS, WATCHES AND JEWELRY",,
20/07/2018,ACCESS 2 EDUCATION SW NON-MEDICAL,SURREY CC CARD PAY,16.00,TRAINING EXPENSES EXTERNAL GENERAL,COMPUTER NETWORK/INFORMATION SERVICES,,
20/07/2018,ACCESS 2 EDUCATION SW NON-MEDICAL,SURREY CC CARD PAY,16.00,TRAINING EXPENSES EXTERNAL GENERAL,COMPUTER NETWORK/INFORMATION SERVICES,,
20/07/2018,CHEYNE WALK COMMUNITY HOME,BLUE ARROW GATWICK,12.50,HIRE OF VEHICLES,LIMOUSINES AND TAXICABS,,
20/07/2018,CHEYNE WALK COMMUNITY HOME,BLUE ARROW GATWICK,35.00,HIRE OF VEHICLES,LIMOUSINES AND TAXICABS,,
20/07/2018,WOODLANDS COMMUNITY HOME,SPORTSDIRECT 234,17.99,EDUC VISITS/HOLS/CAMPS/TOYS,SPORTING GOODS STORES,,
21/07/2018,WOODLANDS COMMUNITY HOME,AIRBNB,-268.00,EDUC VISITS/HOLS/CAMPS/TOYS,"LODGING-HOTELS,MOTELS,RESORTS-NOT CLASSIFIED",,
21/07/2018,CHEYNE WALK COMMUNITY HOME,WWW.ARGOS.CO.UK,51.93,EDUC VISITS/HOLS/CAMPS/TOYS,DISCOUNT STORES,,
21/07/2018,SPEECH & LANGUAGE THERAPY,AMAZON EU,24.99,EDUC VISITS/HOLS/CAMPS/TOYS,DIRECT MARKETING-OTHER DIRECT MARKETERS/NOT ELSEW.,,
21/07/2018,SPEECH & LANGUAGE THERAPY,AMAZON EU,11.48,EDUC VISITS/HOLS/CAMPS/TOYS,DIRECT MARKETING-OTHER DIRECT MARKETERS/NOT ELSEW.,,
21/07/2018,COUNTRYSIDE PARTNERSHIPS TEAM,SURVEYMONKEY,29.00,SUBSCRIPTIONS,"COMP PROGRAMING,DATA PRCSNG,INTGRTD SYS DSGN SRVS",,
21/07/2018,ROW VOLUNTEERS WEST                     ,POST OFFICE COUNTER,13.14,POSTAGE AND COURIER CHARGES,POSTAL SERVICES-GOVERNMENT ONLY,,
21/07/2018,EXTENDED HOPE,ARGOS LTD,8.99,CURRICULUM CONSUMABLES,DISCOUNT STORES,,
21/07/2018,EXTENDED HOPE,TESCO STORE 2590,9.04,PURCHASE OF FOOD (RAW MATERIALS),"GROCERY STORES, SUPERMARKETS",,
21/07/2018,HOLLAND CLOSE RESIDENTIAL HOME,TESCO-STORES 6647,97.24,PURCHASE OF FOOD (RAW MATERIALS),"GROCERY STORES, SUPERMARKETS",,
21/07/2018,LOCAL ASSISTANCE SCHEME,WWW.JOHNLEWIS.COM,58.00,FURNITURE,DEPARTMENT STORES,,
21/07/2018,FARNHAM LIBRARY,SOTHEBYS (UK),900.00,FEES,PROFESSIONAL SERVICES-NOT ELSEWHERE CLASSIFIED,,
21/07/2018,FAIRCROFT COMMUNITY HOME,MCDONALDS,19.07,REFRESHMENT COSTS,FAST FOOD RESTAURANTS,,
21/07/2018,FAIRCROFT COMMUNITY HOME,HARRY RAMSDENS,7.99,REFRESHMENT COSTS,"MISC FOOD STORE-CONVENIENCE,MRKT,SPLTY,VENDNG MACS",,
21/07/2018,FAIRCROFT COMMUNITY HOME,WELCOME BREAK STARBUCK,4.29,REFRESHMENT COSTS,"MISC FOOD STORE-CONVENIENCE,MRKT,SPLTY,VENDNG MACS",,
21/07/2018,FAIRCROFT COMMUNITY HOME,TESCO DELIVERY SAVER2,6.99,PURCHASE OF FOOD (RAW MATERIALS),DIRECT MARKETING-CONTINUITY/SUBSCRIPTION MERCHANTS,,
21/07/2018,FAIRCROFT COMMUNITY HOME,HOME BARGAINS BYFLEET,36.71,EQUIPMENT,HARDWARE STORES,,
21/07/2018,WOODLANDS COMMUNITY HOME,WWW.ARGOS.CO.UK,-244.97,EQUIPMENT,DISCOUNT STORES,,
21/07/2018,RUTH HOUSE,SAINSBURYS TO YOU 0686,173.75,PURCHASE OF FOOD (RAW MATERIALS),"GROCERY STORES, SUPERMARKETS",,
21/07/2018,RUTH HOUSE,SAINSBURYS TO YOU 0686,345.00,PURCHASE OF FOOD (RAW MATERIALS),"GROCERY STORES, SUPERMARKETS",,
21/07/2018,RUTH HOUSE,H&M,-20.99,"CLOTHING, UNIFORM AND LAUNDRY",MEN'S AND WOMEN'S CLOTHING STORES,,
21/07/2018,BURBANK COMMUNITY HOME,CHINA CHEF,39.10,REFRESHMENT COSTS,FAST FOOD RESTAURANTS,,
21/07/2018,WOODLANDS COMMUNITY HOME,AIRBNB,"1,671.75",EDUC VISITS/HOLS/CAMPS/TOYS,"LODGING-HOTELS,MOTELS,RESORTS-NOT CLASSIFIED",,
22/07/2018,IMT MODERN WORKER,BLS WEBHOSE,47.15,COMPUTER SERVICES,COMPUTER SOFTWARE STORES,,
22/07/2018,FAIRCROFT COMMUNITY HOME,PRIMARK,2.80,"CLOTHING, UNIFORM AND LAUNDRY",FAMILY CLOTHING STORES,,
22/07/2018,MASH,AMAZON UK MARKETPLACE,24.26,EQUIPMENT,BOOK STORES,,
22/07/2018,MASH,AMAZON UK MARKETPLACE,33.48,EQUIPMENT,BOOK STORES,,
22/07/2018,HAVEN GUILDFORD,SAINSBURYS SACAT 0828,3.60,REFRESHMENT COSTS,"GROCERY STORES, SUPERMARKETS",,
22/07/2018,CHEYNE WALK COMMUNITY HOME,BLUE ARROW GATWICK,37.50,HIRE OF VEHICLES,LIMOUSINES AND TAXICABS,,
22/07/2018,WOODLANDS COMMUNITY HOME,TOP SHOP/TOPMAN,22.05,"CLOTHING, UNIFORM AND LAUNDRY",MEN'S AND WOMEN'S CLOTHING STORES,,
22/07/2018,WOODLANDS COMMUNITY HOME,MCDONALDS,18.69,PURCHASE OF FOOD (RAW MATERIALS),"EATING PLACES, RESTAURANTS",,
22/07/2018,WOODLANDS COMMUNITY HOME,J D SPORTS  173,60.05,"CLOTHING, UNIFORM AND LAUNDRY",SPORTING GOODS STORES,,
22/07/2018,CHEYNE WALK COMMUNITY HOME,PAPERCHASE,30.55,EDUC VISITS/HOLS/CAMPS/TOYS,"GIFT, CARD, NOVELTY AND SOUVENIR SHOPS",,
22/07/2018,FAIRCROFT COMMUNITY HOME,BILLS WOKING,92.24,REFRESHMENT COSTS,"EATING PLACES, RESTAURANTS",,
22/07/2018,FAIRCROFT COMMUNITY HOME,3C_ WOKING BOROUGH COU,3.00,MISCELLANEOUS STAFF TRAVEL,AUTOMOBILE PARKING LOTS AND GARAGES,,
22/07/2018,FAIRCROFT COMMUNITY HOME,ATG TICKET WEB,32.00,EDUC VISITS/HOLS/CAMPS/TOYS,"THEATRICAL PRODUCERS(EXCL MOTION PIX),TICKET AGNCY",,
22/07/2018,SOLD DAY TO DAY OPERATIONS,B&Q DIRECT,87.00,EQUIPMENT,"BUILDING MATERIALS, LUMBER STORES",,
22/07/2018,SOLD CATERING,TESCO STORE 2590,28.45,PURCHASE OF FOOD (RAW MATERIALS),"GROCERY STORES, SUPERMARKETS",,
22/07/2018,S.D. EAST AREA MANAGEMENT TEAM,CO-OP GROUP 310451,35.35,REFRESHMENT COSTS,"GROCERY STORES, SUPERMARKETS",,
22/07/2018,SOLD,AMAZON UK MARKETPLACE,30.00,EQUIPMENT,BOOK STORES,,
22/07/2018,LIBERTAS COMMUNITY HOME,FREEDOM LEISURE,16.60,EDUC VISITS/HOLS/CAMPS/TOYS,GOVERNMENT SERVICES-NOT ELSEWHERE CLASSIFIED,,
22/07/2018,CORPORATE GROUP - LEGAL SERVICES,AMAZON PRIME,7.99,EQUIPMENT,DIRECT MARKETING-CONTINUITY/SUBSCRIPTION MERCHANTS,,
22/07/2018,WOODLANDS COMMUNITY HOME,SPORTSDIRECT 95,41.46,"CLOTHING, UNIFORM AND LAUNDRY",SPORTING GOODS STORES,,
22/07/2018,WOODLANDS COMMUNITY HOME,ARGOS LTD,80.99,EQUIPMENT,DISCOUNT STORES,,
22/07/2018,WOODLANDS COMMUNITY HOME,"THE ORACLE CAR PARK, R",6.00,NON-STAFF RELATED TRANSPORT COSTS,AUTOMOBILE PARKING LOTS AND GARAGES,,
22/07/2018,WOODLANDS COMMUNITY HOME,RIVER ISLAND 146,12.00,"CLOTHING, UNIFORM AND LAUNDRY",MEN'S AND WOMEN'S CLOTHING STORES,,
22/07/2018,WOODLANDS COMMUNITY HOME,TOP SHOP/TOPMAN,35.00,"CLOTHING, UNIFORM AND LAUNDRY",MEN'S AND WOMEN'S CLOTHING STORES,,
23/07/2018,VIRTUAL SCHOOL FOR LAC PUPIL PREMIUM,PEARSON ED LTD,21.49,BOOKS,SCHOOLS & EDUCATIONAL SVC-NOT ELSEWHERE CLASSIFIED,,
23/07/2018,BURBANK COMMUNITY HOME,AMAZON SVCS EU-UK AMAZ,11.99,EQUIPMENT,BOOK STORES,,
23/07/2018,ORBIS PROC E &I AND C&C,EMAP PUBLISHING LTD,56.39,SUBSCRIPTIONS,MISCELLANEOUS PUBLISHING AND PRINTING,,
23/07/2018,SW CARE - LAC,BRITISH A,218.76,CHILDREN ACT SEC 17 PAYMENTS,BRITISH A,,
23/07/2018,SHELL UK LICENSING,WAKEFIELD MDC INT,305.00,FEES,GOVERNMENT SERVICES-NOT ELSEWHERE CLASSIFIED,,
23/07/2018,HERITAGE PUBLIC SERVICE,W M MORRISONS,5.50,REFRESHMENT COSTS,"GROCERY STORES, SUPERMARKETS",,
23/07/2018,SOLD DAY TO DAY OPERATIONS,TESCO STORES 2560,10.50,CURRICULUM CONSUMABLES,"GROCERY STORES, SUPERMARKETS",,
23/07/2018,MALLOW CRESCENT,SAINSBURYS TO YOU 0652,14.90,PURCHASE OF FOOD (RAW MATERIALS),"GROCERY STORES, SUPERMARKETS",,
23/07/2018,MALLOW CRESCENT,SAINSBURYS TO YOU 0652,88.04,PURCHASE OF FOOD (RAW MATERIALS),"GROCERY STORES, SUPERMARKETS",,
23/07/2018,EXTENDED HOPE,AMAZON UK MARKETPLACE,11.98,CURRICULUM CONSUMABLES,BOOK STORES,,
23/07/2018,EXTENDED HOPE,TESCO STORE 2590,77.54,PURCHASE OF FOOD (RAW MATERIALS),"GROCERY STORES, SUPERMARKETS",,
23/07/2018,FAMILIES RUNNYMEDE,SAINSBURYS SACAT 0686,17.00,EQUIPMENT,"GROCERY STORES, SUPERMARKETS",,
23/07/2018,FAIRCROFT COMMUNITY HOME,AMAZON UK MARKETPLACE,16.48,3RD PARTY PAYMENTS PRIVATE INDIV,BOOK STORES,,
23/07/2018,PROPERTY OPERATIONS TEAM,B & Q 1018,14.84,PURCHASE OF BUILDING MATERIALS,"BUILDING MATERIALS, LUMBER STORES",,
23/07/2018,MALLOW CRESCENT,TESCO STORE 2590,70.23,PURCHASE OF FOOD (RAW MATERIALS),"GROCERY STORES, SUPERMARKETS",,
23/07/2018,KARIBU COMMUNITY HOME,WAITROSE 104,82.70,PURCHASE OF FOOD (RAW MATERIALS),"GROCERY STORES, SUPERMARKETS",,
23/07/2018,FAIRCROFT COMMUNITY HOME,FREEDOM LEISURE,26.40,EDUC VISITS/HOLS/CAMPS/TOYS,GOVERNMENT SERVICES-NOT ELSEWHERE CLASSIFIED,,
23/07/2018,FAIRCROFT COMMUNITY HOME,FREEDOM LEISURE,10.60,EDUC VISITS/HOLS/CAMPS/TOYS,GOVERNMENT SERVICES-NOT ELSEWHERE CLASSIFIED,,
23/07/2018,INVESTIGATIONS & ENFORCEMENT TEAM       ,AMAZON EU,16.90,"CLOTHING, UNIFORM AND LAUNDRY",DIRECT MARKETING-OTHER DIRECT MARKETERS/NOT ELSEW.,,
23/07/2018,LOCAL ASSISTANCE SCHEME,WWW.JOHNLEWIS.COM,45.95,FURNITURE,DEPARTMENT STORES,,
23/07/2018,INVESTIGATIONS & ENFORCEMENT TEAM       ,WWW.MERLINLAZER.COM,233.94,EQUIPMENT,ELECTRICAL PARTS AND EQUIPMENT,,
23/07/2018,ACCESS 2 EDUCATION SE NON-MEDICAL,SURREY CC CARD PAY,16.00,SUBSISTENCE AND CONFERENCE EXPENSES,COMPUTER NETWORK/INFORMATION SERVICES,,
23/07/2018,CHILDREN'S RIGHTS TEAM,TESCO STORES 6542,7.10,REFRESHMENT COSTS,"GROCERY STORES, SUPERMARKETS",,
23/07/2018,CHILDREN'S RIGHTS TEAM,LOVE2SHOP.CO.UK,256.45,CHILDREN ACT SEC 24 PAYMENTS,"ASSOCIATIONS-CIVIC, SOCIAL, AND FRATERNAL",,
23/07/2018,CHILDREN'S RIGHTS TEAM,WARWICK CASTLE,179.00,TRAINING USING EXTERNAL PROVIDERS,TOURIST ATTRACTIONS AND EXHIBITS,,
23/07/2018,MALLOW CRESCENT,CURRYS ONLINE,294.98,EQUIPMENT,ELECTRONIC SALES,,
23/07/2018,HOMELESSNESS PREVENTION PROJECT,NATIONAL EXPRESS LIMIT,47.20,TRANSPORT SOCIAL CARE-TAXI,BUS LINES,,
23/07/2018,SOLD,AMAZON UK MARKETPLACE,6.31,EQUIPMENT,BOOK STORES,,
23/07/2018,BURBANK COMMUNITY HOME,SAINSBURYS SACAT 0686,41.05,PURCHASE OF FOOD (RAW MATERIALS),"GROCERY STORES, SUPERMARKETS",,
23/07/2018,TRANSPORT,WWW.CROMWELL.CO.UK,291.49,EQUIPMENT,HARDWARE EQUIPMENT AND SUPPLIES,,
23/07/2018,"NW REF, ASS & INT SERVICE - HUB 1",TRAVELODGE,99.00,OTHER COMMUNITY CARE PRIV,TRAVELODGE,,
23/07/2018,PE/CDT MAINTENANCE OVERHEADS,SUK RETAIL LTD,19.94,STATIONERY,"OFFICE, SCHOOL SUPPLY, AND STATIONERY STORES",,
23/07/2018,PE/CDT MAINTENANCE OVERHEADS,MARGNOR FASTENERS,59.59,EQUIPMENT,MISCELLANEOUS AND SPECIALTY RETAIL STORES,,
23/07/2018,APPLEWOOD,AMAZON EU,13.30,STATIONERY,DIRECT MARKETING-OTHER DIRECT MARKETERS/NOT ELSEW.,,
23/07/2018,SOLD DAY TO DAY OPERATIONS,AMAZON UK MARKETPLACE,57.57,EQUIPMENT,BOOK STORES,,
23/07/2018,SOLD DAY TO DAY OPERATIONS,AMAZON UK MARKETPLACE,12.47,EQUIPMENT,BOOK STORES,,
23/07/2018,SOLD DAY TO DAY OPERATIONS,AMAZON UK MARKETPLACE,3.26,EQUIPMENT,BOOK STORES,,
23/07/2018,SOLD DAY TO DAY OPERATIONS,AMAZON UK MARKETPLACE,19.99,EQUIPMENT,BOOK STORES,,
23/07/2018,SOLD DAY TO DAY OPERATIONS,AMAZON UK MARKETPLACE,19.99,EQUIPMENT,BOOK STORES,,
23/07/2018,SOLD DAY TO DAY OPERATIONS,AMAZON UK MARKETPLACE,19.99,EQUIPMENT,BOOK STORES,,
23/07/2018,SOLD CATERING,AMAZON UK MARKETPLACE,19.99,EQUIPMENT,BOOK STORES,,
23/07/2018,SOLD ESTATES MANAGEMENT,GUILDFORD CALOR CENTRE,136.50,HEATING OIL & FUEL,HOUSEHOLD APPLIANCE STORES,,
23/07/2018,SOLD DAY TO DAY OPERATIONS,AMAZON UK MARKETPLACE,21.51,EQUIPMENT,BOOK STORES,,
23/07/2018,SOLD ESTATES MANAGEMENT,B & Q 1029,35.00,DAY TO DAY MAINTENANCE,"BUILDING MATERIALS, LUMBER STORES",,
23/07/2018,MALLOW CRESCENT DMHS 25-30,AO RETAIL LIMITED,429.00,EQUIPMENT,HOUSEHOLD APPLIANCE STORES,,
23/07/2018,FAIRCROFT COMMUNITY HOME,TESCO STORE 2812,278.22,PURCHASE OF FOOD (RAW MATERIALS),"GROCERY STORES, SUPERMARKETS",,
23/07/2018,FAIRMOUNT HOUSE LEATHERHEAD,WWW.FINERFILTERS.CO.UK,88.76,EQUIPMENT,AIR CONDITIONING AND REFRIGERATION REPAIR SHOPS,,
23/07/2018,CHMHS RAP TEAM,EB  BID WRITING THE BA,190.00,TRAINING EXPENSES EXTERNAL GENERAL,BUSINESS SERVICES-NOT ELSEWHERE CLASSIFIED,,
23/07/2018,PROPERTY OPERATIONS TEAM,SCREWFIX GUILDFORD,40.16,PURCHASE OF BUILDING MATERIALS,"BUILDING MATERIALS, LUMBER STORES",,
23/07/2018,PROPERTY OPERATIONS TEAM,SELCO BUILDERS,54.64,PURCHASE OF BUILDING MATERIALS,"BUILDING MATERIALS, LUMBER STORES",,
23/07/2018,EPSOM AND EWELL,HORACE SMITH LOCKSMITH,254.16,EQUIPMENT,HARDWARE STORES,,
23/07/2018,APPLEWOOD,AMAZON UK MARKETPLACE,14.46,EQUIPMENT,BOOK STORES,,
23/07/2018,LIBERTAS COMMUNITY HOME,3C_ CP PLUS - ROYAL SU,4.00,NON-STAFF RELATED TRANSPORT COSTS,AUTOMOBILE PARKING LOTS AND GARAGES,,
23/07/2018,HILLSIDE,SAINSBURYS 0675,6.55,PURCHASE OF FOOD (RAW MATERIALS),"GROCERY STORES, SUPERMARKETS",,
23/07/2018,HILLSIDE,SAINSBURYS 0675,45.34,PURCHASE OF FOOD (RAW MATERIALS),"GROCERY STORES, SUPERMARKETS",,
23/07/2018,NE FOSTERING CARE,WWW.BIGYELLOW.CO.UK,50.40,REMOVAL EXPENSES,"PUBLIC WAREHOUSING-FARM, REFRIG GOODS, HHG STORAGE",,
23/07/2018,NE FOSTERING CARE,WWW.BIGYELLOW.CO.UK,24.00,REMOVAL EXPENSES,"PUBLIC WAREHOUSING-FARM, REFRIG GOODS, HHG STORAGE",,
23/07/2018,LIBERTAS COMMUNITY HOME,SAINSBURYS SACAT 0652,29.00,PURCHASE OF FOOD (RAW MATERIALS),"GROCERY STORES, SUPERMARKETS",,
23/07/2018,LIBERTAS COMMUNITY HOME,SAINSBURYS SACAT 0652,4.75,EQUIPMENT,"GROCERY STORES, SUPERMARKETS",,
23/07/2018,LIBERTAS COMMUNITY HOME,SAINSBURYS SACAT 0652,132.10,PURCHASE OF FOOD (RAW MATERIALS),"GROCERY STORES, SUPERMARKETS",,
23/07/2018,MALLOW CRESCENT,SAINSBURYS TO YOU 0652,19.75,PURCHASE OF FOOD (RAW MATERIALS),"GROCERY STORES, SUPERMARKETS",,
23/07/2018,MALLOW CRESCENT,SAINSBURYS TO YOU 0652,108.05,PURCHASE OF FOOD (RAW MATERIALS),"GROCERY STORES, SUPERMARKETS",,
23/07/2018,COVEHAM,ODEON/BOOKIT,12.75,EDUC VISITS/HOLS/CAMPS/TOYS,MOTION PICTURE THEATERS,,
23/07/2018,MALLOW CRESCENT,TESCO STORE 2590,17.63,PURCHASE OF FOOD (RAW MATERIALS),"GROCERY STORES, SUPERMARKETS",,
23/07/2018,MALLOW CRESCENT,TESCO STORE 2590,109.20,PURCHASE OF FOOD (RAW MATERIALS),"GROCERY STORES, SUPERMARKETS",,
23/07/2018,DOWNLANDS COUNTRYSIDE PROJECT,SETON,69.02,"CLOTHING, UNIFORM AND LAUNDRY","DURABLE GOODS, NOT ELSEWHERE CLASSIFIED",,
23/07/2018,HOPE SERVICE - WEST,SAINSBURYS TO YOU 0686,137.00,PURCHASE OF FOOD (RAW MATERIALS),"GROCERY STORES, SUPERMARKETS",,
23/07/2018,TRAINING AND DEVELOPMENT,W M MORRISONS,40.95,REFRESHMENT COSTS,"GROCERY STORES, SUPERMARKETS",,
23/07/2018,CONSORT HOUSE REDHILL,MARKS&SPENCER PLC,79.50,"CLOTHING, UNIFORM AND LAUNDRY","GROCERY STORES, SUPERMARKETS",,
23/07/2018,CONSORT HOUSE REDHILL,SAVERS HEALTH & BEAUTY,5.34,CLEANING AND DOMESTIC SUPPLIES,"DRUG STORES, PHARMACIES",,
23/07/2018,CENTRAL COMMUNICATIONS,GOOGLE  ADWS2060179426,500.00,PUBLICITY,DIRECT MARKETING-CONTINUITY/SUBSCRIPTION MERCHANTS,,
23/07/2018,SPEECH & LANGUAGE THERAPY,AMZ AMAZON.CO.UK,-11.48,EDUC VISITS/HOLS/CAMPS/TOYS,DIRECT MARKETING-OTHER DIRECT MARKETERS/NOT ELSEW.,,
23/07/2018,SPEECH & LANGUAGE THERAPY,AMZ AMAZON.CO.UK,-24.99,EDUC VISITS/HOLS/CAMPS/TOYS,DIRECT MARKETING-OTHER DIRECT MARKETERS/NOT ELSEW.,,
24/07/2018,WOODLANDS COMMUNITY HOME,AUTO EUROPE 4412332,191.27,CAR ALLOWANCES,TRAVEL AGENCIES AND TOUR OPERATORS,,
24/07/2018,BURBANK COMMUNITY HOME,PRIMARK,4.20,MEDICAL EXPENSES,FAMILY CLOTHING STORES,,
24/07/2018,CLOSED LANDFILL,RS COMPONENTS,44.86,EQUIPMENT,ELECTRICAL PARTS AND EQUIPMENT,,
24/07/2018,LIBRARIES CENTRAL,PREMIER INN,150.00,VENUE COSTS (INCLUDING HIRE OF ROOMS),PREMIER INN,,
24/07/2018,PE/CDT MAINTENANCE OVERHEADS,MAINCO WIRE ROPES LTD,474.00,EQUIPMENT,HARDWARE EQUIPMENT AND SUPPLIES,,
24/07/2018,ORBIS TRAINING PROPERTY,TTS TRAINING SERVICES,594.00,TRAINING EXPENSES EXTERNAL GENERAL,SCHOOLS & EDUCATIONAL SVC-NOT ELSEWHERE CLASSIFIED,,
24/07/2018,HOPE SERVICE - WEST,AMAZON UK MARKETPLACE,2.11,CURRICULUM CONSUMABLES,BOOK STORES,,
24/07/2018,BURBANK COMMUNITY HOME,SAINSBURYS SACAT 0802,6.60,PURCHASE OF FOOD (RAW MATERIALS),"GROCERY STORES, SUPERMARKETS",,
24/07/2018,FAIRCROFT COMMUNITY HOME,TESCO STORE 2812,93.20,EQUIPMENT,"GROCERY STORES, SUPERMARKETS",,
24/07/2018,MISC EDCAT SUPPORT,WWW.PARAGON.NET.UK RT,8.63,COMPUTER SERVICES,DIRECT MARKETING-CONTINUITY/SUBSCRIPTION MERCHANTS,,
24/07/2018,SOLD ESTATES MANAGEMENT,B & Q 1029,3.69,DAY TO DAY MAINTENANCE,"BUILDING MATERIALS, LUMBER STORES",,
24/07/2018,BURBANK COMMUNITY HOME,AMAZON SVCS EU-UK AMAZ,40.47,EQUIPMENT,BOOK STORES,,
24/07/2018,BURBANK COMMUNITY HOME,AMAZON SVCS EU-UK AMAZ,28.99,EQUIPMENT,BOOK STORES,,
24/07/2018,COVEHAM,ODEON/BOOKIT,40.50,EDUC VISITS/HOLS/CAMPS/TOYS,MOTION PICTURE THEATERS,,
24/07/2018,QUADRANT COURT WOKING,SCREWFIX DIRECT,8.99,EQUIPMENT,"BUILDING MATERIALS, LUMBER STORES",,
24/07/2018,CONSERVATION,PAYPAL  FINDSRESEAR,8.50,BOOKS,"ORGANIZATIONS, MEMBERSHIP-NOT ELSEWHERE CLASSIFIED",,
24/07/2018,DEMOCRATIC SERVICES TEAM,AMAZON EU,19.92,COMPUTER CONSUMABLES,DIRECT MARKETING-OTHER DIRECT MARKETERS/NOT ELSEW.,,
24/07/2018,SW CARE - CP & COURT LAC,SURREY CC CARD PAY,22.00,OTHER COMMUNITY CARE VOL,COMPUTER NETWORK/INFORMATION SERVICES,,
24/07/2018,ASSET PLANNING - OPERATIONS,THAMES WATER,499.96,VEHICLE RUNNING COSTS,"EQUIPMENT RENTAL&LEASING SVS, FURNTURE/TOOL RENTAL",,
24/07/2018,IMT CRITICAL ENVIRONMENTS,AMAZON UK MARKETPLACE,20.17,CLEANING MATERIALS,BOOK STORES,,
24/07/2018,RUTH HOUSE,SAINSBURYS TO YOU 0686,20.80,PURCHASE OF FOOD (RAW MATERIALS),"GROCERY STORES, SUPERMARKETS",,
24/07/2018,RUTH HOUSE,SAINSBURYS TO YOU 0686,29.10,PURCHASE OF FOOD (RAW MATERIALS),"GROCERY STORES, SUPERMARKETS",,
24/07/2018,RUTH HOUSE,PAYPAL  CCMARK LTD,130.37,FURNITURE,VARIETY STORES,,
24/07/2018,RUTH HOUSE,WICKES,11.80,EQUIPMENT,HOME SUPPLY WAREHOUSE STORES,,
24/07/2018,RUTH HOUSE,ARGOS DIRECT,69.98,FURNITURE,DISCOUNT STORES,,
24/07/2018,RUTH HOUSE,ARGOS LTD,72.94,FURNITURE,DISCOUNT STORES,,
24/07/2018,RUTH HOUSE,WWW.ARGOS.CO.UK,73.93,FURNITURE,DISCOUNT STORES,,
24/07/2018,HILLSIDE,SAINSBURYS SACAT 0784,3.90,PURCHASE OF FOOD (RAW MATERIALS),"GROCERY STORES, SUPERMARKETS",,
24/07/2018,LEAVING CARE PACKAGES,WWW.ARGOS.CO.UK,169.99,EQUIPMENT,DISCOUNT STORES,,
24/07/2018,CS BUSINESS SUPPORT WEST,MILK&MORE,-7.05,REFRESHMENT COSTS,DAIRY PRODUCTS STORES,,
24/07/2018,SPEECH & LANGUAGE THERAPY,ARGOS BROOKWOOD IN,24.99,EDUC VISITS/HOLS/CAMPS/TOYS,DISCOUNT STORES,,
24/07/2018,SE CARE - LAC,WWW.KENT.GOV.UK,400.00,EDUCATION SEASON TICKETS,SCHOOLS & EDUCATIONAL SVC-NOT ELSEWHERE CLASSIFIED,,
24/07/2018,NE CARE - LAC,GRO HM PASSPORT OFFICE,23.40,OTHER COMMUNITY CARE VOL,GOVERNMENT SERVICES-NOT ELSEWHERE CLASSIFIED,,
24/07/2018,FAMILIES SPELTHORNE,TESCO STORE 2047,15.01,REFRESHMENT COSTS,"GROCERY STORES, SUPERMARKETS",,
24/07/2018,BURBANK COMMUNITY HOME,W M MORRISONS,41.71,REFRESHMENT COSTS,"GROCERY STORES, SUPERMARKETS",,
24/07/2018,ELMBRIDGE CMHRS CARE,HMCTS-SURREY125,75.00,FEES,FINES,,
24/07/2018,TARGETED INTERVENTION,TESCO STORE 2047,24.58,EDUC VISITS/HOLS/CAMPS/TOYS,"GROCERY STORES, SUPERMARKETS",,
24/07/2018,TARGETED INTERVENTION,TESCO STORE 2047,8.24,EDUC VISITS/HOLS/CAMPS/TOYS,"GROCERY STORES, SUPERMARKETS",,
24/07/2018,WOODLANDS COMMUNITY HOME,ENCORE TICKETS,104.00,EDUC VISITS/HOLS/CAMPS/TOYS,"THEATRICAL PRODUCERS(EXCL MOTION PIX),TICKET AGNCY",,
24/07/2018,SW CARE - CP & COURT LAC,SURREY CC CARD PAY,22.00,OTHER COMMUNITY CARE VOL,COMPUTER NETWORK/INFORMATION SERVICES,,
24/07/2018,HAVEN YTH CENTRE,CO-OP GROUP 310385,5.99,REFRESHMENT COSTS,"GROCERY STORES, SUPERMARKETS",,
24/07/2018,FAMILIES SURREY HEATH,CO-OP GROUP 350033,19.68,PURCHASE OF FOOD (RAW MATERIALS),"GROCERY STORES, SUPERMARKETS",,
24/07/2018,COVEHAM,SAINSBURYS TO YOU 0687,155.17,REFRESHMENT COSTS,"GROCERY STORES, SUPERMARKETS",,
24/07/2018,COVEHAM,SAINSBURYS TO YOU 0687,61.20,CLEANING AND DOMESTIC SUPPLIES,"GROCERY STORES, SUPERMARKETS",,
24/07/2018,NE CARE - CP & COURT LAC,TRAVELODGE,81.50,INDEPENDENT LIVING PLACEMENTS,TRAVELODGE,,
24/07/2018,CHEYNE WALK COMMUNITY HOME,TESCO STORES 2560,25.00,EQUIPMENT,"GROCERY STORES, SUPERMARKETS",,
24/07/2018,CHEYNE WALK COMMUNITY HOME,TESCO PAY AT PUMP 3874,76.72,NON-STAFF RELATED TRANSPORT COSTS,"FUEL DISPENSER, AUTOMATED",,
24/07/2018,FOSTERING SERVICE CENTRAL COSTS,MARKALLENGROUP.COM/MA-,57.60,TRAINING EXPENSES EXTERNAL GENERAL,BUSINESS SERVICES-NOT ELSEWHERE CLASSIFIED,,
24/07/2018,ORBIS TRAINING PROPERTY,RICS,376.80,TRAINING EXPENSES EXTERNAL GENERAL,"ORGANIZATIONS, MEMBERSHIP-NOT ELSEWHERE CLASSIFIED",,
24/07/2018,HEAD OF CHILDREN'S SERVICE,LIDL UK  LEATHERHEAD,28.38,REFRESHMENT COSTS,"GROCERY STORES, SUPERMARKETS",,
24/07/2018,PE/CDT MAINTENANCE OVERHEADS,STAFFORD IN,48.72,ITEMS PURCHASED FOR RE-SALE,ELECTRONIC SALES,,
24/07/2018,PE/CDT MAINTENANCE OVERHEADS,STAFFORD IN,321.08,EQUIPMENT,ELECTRONIC SALES,,
24/07/2018,TS SERVICE MANAGEMENT,AMAZON EU,43.58,EQUIPMENT,DIRECT MARKETING-OTHER DIRECT MARKETERS/NOT ELSEW.,,
24/07/2018,FAMILIES REIGATE AND BANSTREAD,CO-OP GROUP FOOD,7.24,REFRESHMENT COSTS,"GROCERY STORES, SUPERMARKETS",,
24/07/2018,FAIRCROFT COMMUNITY HOME,BROADWAY TRAVEL,94.00,EDUC VISITS/HOLS/CAMPS/TOYS,TRAVEL AGENCIES AND TOUR OPERATORS,,
24/07/2018,CHEYNE WALK COMMUNITY HOME,BLUE ARROW GATWICK,57.50,TRANSPORT SOCIAL CARE-TAXI,LIMOUSINES AND TAXICABS,,
24/07/2018,TRAINING AND DEVELOPMENT,W M MORRISONS,36.75,REFRESHMENT COSTS,"GROCERY STORES, SUPERMARKETS",,
24/07/2018,MALLOW CRESCENT,BYFLEET BEDS & FUR,249.00,FURNITURE,"EQUIP, FURNITURE, HOME FURNSHNGS STRS (EXCPT APPL)",,
24/07/2018,MALLOW CRESCENT DMHS 25-30,AO RETAIL LIMITED,-20.00,EQUIPMENT,HOUSEHOLD APPLIANCE STORES,,
24/07/2018,NW TEACHERS,PAYPAL  TWINKL LTD,53.88,SUBSCRIPTIONS,"ORGANIZATIONS, MEMBERSHIP-NOT ELSEWHERE CLASSIFIED",,
24/07/2018,HILLSIDE,ALDI 34 775,54.47,PURCHASE OF FOOD (RAW MATERIALS),"GROCERY STORES, SUPERMARKETS",,
24/07/2018,HOPE SERVICE - WEST,THE OLIVE TREE,13.05,REFRESHMENT COSTS,FAST FOOD RESTAURANTS,,
24/07/2018,FAMILIES SPELTHORNE,HIGHSPEEDTRAINING.CO.U,24.00,TRAINING EXPENSES EXTERNAL GENERAL,"SCHOOLS, BUSINESS AND SECRETARIAL",,
24/07/2018,CHEYNE WALK COMMUNITY HOME,WAITROSE 233,36.16,PURCHASE OF FOOD (RAW MATERIALS),"GROCERY STORES, SUPERMARKETS",,
24/07/2018,GUILDFORD LIBRARY,AMAZON EU,87.96,CLEANING AND DOMESTIC SUPPLIES,DIRECT MARKETING-OTHER DIRECT MARKETERS/NOT ELSEW.,,
24/07/2018,SCHOOL GAMES LOC 2015-16                ,AMAZON SVCS EU-UK AMAZ,26.70,EQUIPMENT,BOOK STORES,,
24/07/2018,BURBANK COMMUNITY HOME,3C_ WOKING BOROUGH COU,1.40,MISCELLANEOUS STAFF TRAVEL,AUTOMOBILE PARKING LOTS AND GARAGES,,
24/07/2018,BURBANK COMMUNITY HOME,HALFORDS 0421,5.00,EQUIPMENT,BICYCLE SHOPS-SALES AND SERVICE,,
25/07/2018,DITTONS LIBRARY,AMAZON SVCS EU-UK AMAZ,24.20,ITEMS PURCHASED FOR RE-SALE,BOOK STORES,,
25/07/2018,INVESTIGATIONS & ENFORCEMENT TEAM       ,WWW.ARCO.CO.UK,11.39,"CLOTHING, UNIFORM AND LAUNDRY",INDUSTRIAL SUPPLIES NOT ELSEWHERE CLASSIFIED,,
25/07/2018,EXTENDED HOPE,GUILDFORD BOROUGH CNCL,25.00,NON-STAFF RELATED TRANSPORT COSTS,GOVERNMENT SERVICES-NOT ELSEWHERE CLASSIFIED,,
25/07/2018,LIBERTAS COMMUNITY HOME,PRIMARK STORES 655,43.20,"CLOTHING, UNIFORM AND LAUNDRY",FAMILY CLOTHING STORES,,
25/07/2018,CHEYNE WALK COMMUNITY HOME,PRIMARK,19.50,EDUC VISITS/HOLS/CAMPS/TOYS,FAMILY CLOTHING STORES,,
25/07/2018,BURBANK COMMUNITY HOME,3C_ WOKING BOROUGH COU,1.40,EDUC VISITS/HOLS/CAMPS/TOYS,AUTOMOBILE PARKING LOTS AND GARAGES,,
25/07/2018,ROW AREA3 MV EPS ELM                    ,FIXINGS & POWERTOOL CE,24.53,EQUIPMENT,"BUILDING MATERIALS, LUMBER STORES",,
25/07/2018,CORPORATE GROUP - LEGAL SERVICES,AMAZON UK MARKETPLACE,18.90,EQUIPMENT,BOOK STORES,,
25/07/2018,TARGETED INTERVENTION,TESCO STORE 2047,16.80,EDUC VISITS/HOLS/CAMPS/TOYS,"GROCERY STORES, SUPERMARKETS",,
25/07/2018,WOODLANDS COMMUNITY HOME,SAINSBURYS SACAT 0686,3.00,"CLOTHING, UNIFORM AND LAUNDRY","GROCERY STORES, SUPERMARKETS",,
25/07/2018,WOODLANDS COMMUNITY HOME,ARGOS BROOKWOOD IN,174.98,EQUIPMENT,DISCOUNT STORES,,
25/07/2018,WOODLANDS COMMUNITY HOME,AUTO EUROPE,-191.27,NON-STAFF RELATED TRANSPORT COSTS,TRAVEL AGENCIES AND TOUR OPERATORS,,
25/07/2018,SW CARE - CP & COURT LAC,LEWISHAM COUNCIL,30.00,OTHER COMMUNITY CARE VOL,GOVERNMENT SERVICES-NOT ELSEWHERE CLASSIFIED,,
25/07/2018,ASSET PLANNING - OPERATIONS,WWW.MUDFORDS.CO.UK,386.40,EQUIPMENT,INDUSTRIAL SUPPLIES NOT ELSEWHERE CLASSIFIED,,
25/07/2018,RUTH HOUSE,PAYPAL  LUIGIS,36.60,EDUC VISITS/HOLS/CAMPS/TOYS,"MISC FOOD STORE-CONVENIENCE,MRKT,SPLTY,VENDNG MACS",,
25/07/2018,N REGIONAL STAFF,WWW.GREENTANGERINE.ORG,343.20,REFRESHMENT COSTS,"MISC FOOD STORE-CONVENIENCE,MRKT,SPLTY,VENDNG MACS",,
25/07/2018,N REGIONAL STAFF,SAFETY MEDIA SHOP,484.20,TRAINING EXPENSES EXTERNAL GENERAL,COMPUTER SOFTWARE STORES,,
25/07/2018,ARUNDEL,TESCO STORES 5999,127.36,REFRESHMENT COSTS,"GROCERY STORES, SUPERMARKETS",,
25/07/2018,FAIRCROFT COMMUNITY HOME,AMAZON UK MARKETPLACE,6.99,EQUIPMENT,BOOK STORES,,
25/07/2018,BURBANK COMMUNITY HOME,SAINSBURYS TO YOU 0686,287.22,PURCHASE OF FOOD (RAW MATERIALS),"GROCERY STORES, SUPERMARKETS",,
25/07/2018,BURBANK COMMUNITY HOME,SAINSBURYS TO YOU 0686,-3.00,PURCHASE OF FOOD (RAW MATERIALS),"GROCERY STORES, SUPERMARKETS",,
25/07/2018,SOLD CATERING,TESCO STORE 2590,20.78,PURCHASE OF FOOD (RAW MATERIALS),"GROCERY STORES, SUPERMARKETS",,
25/07/2018,REIGATE AND BANSTEAD LOCALITY TEAM,AO RETAIL LIMITED,284.00,EQUIPMENT,HOUSEHOLD APPLIANCE STORES,,
25/07/2018,ASSET PLANNING - OPERATIONS,WWW.CSKILLS.ORG,30.00,TRAINING EXPENSES EXTERNAL GENERAL,"SCHOOLS, TRADE AND VOCATIONAL",,
25/07/2018,NW EDUCATION PSYCHOLOGISTS,AMAZON UK MARKETPLACE,13.08,EQUIPMENT,BOOK STORES,,
25/07/2018,HILLSIDE,SAINSBURYS 0675,3.55,PURCHASE OF FOOD (RAW MATERIALS),"GROCERY STORES, SUPERMARKETS",,
25/07/2018,HILLSIDE,SAINSBURYS 0675,62.55,PURCHASE OF FOOD (RAW MATERIALS),"GROCERY STORES, SUPERMARKETS",,
25/07/2018,HOPE SERVICE - WEST,SAINSBURYS SACAT 0683,106.59,PURCHASE OF FOOD (RAW MATERIALS),"GROCERY STORES, SUPERMARKETS",,
25/07/2018,HOPE SERVICE - WEST,HANDLEYS CAFE,7.70,REFRESHMENT COSTS,"EATING PLACES, RESTAURANTS",,
25/07/2018,VIRTUAL SCHOOL FOR LAC PUPIL PREMIUM,OXFORDUNIVERSITYPR,19.50,BOOKS,BOOK STORES,,
25/07/2018,VIRTUAL SCHOOL FOR LAC PUPIL PREMIUM,OXFORDUNIVERSITYPR,27.49,BOOKS,BOOK STORES,,
25/07/2018,WOODLANDS COMMUNITY HOME,ARGOS RETAIL GROUP,26.97,EQUIPMENT,DISCOUNT STORES,,
25/07/2018,RUTH HOUSE,AMAZON UK MARKETPLACE,11.99,EDUC VISITS/HOLS/CAMPS/TOYS,BOOK STORES,,
25/07/2018,RUTH HOUSE,AMAZON UK MARKETPLACE,22.99,EDUC VISITS/HOLS/CAMPS/TOYS,BOOK STORES,,
25/07/2018,RUTH HOUSE,WICKES,8.00,EQUIPMENT,HOME SUPPLY WAREHOUSE STORES,,
25/07/2018,RUTH HOUSE,WWW.IWANTWALLPAPER,55.96,EQUIPMENT,"GLASS, PAINT, WALLPAPER STORES",,
25/07/2018,SE CARE - NON-LAC CP & COURT,SURREY CC CARD PAY,270.00,EDUC VISITS/HOLS/CAMPS/TOYS,COMPUTER NETWORK/INFORMATION SERVICES,,
25/07/2018,YSS YOUTH CENTRE IMPROVEMENTS,AMAZON EU,25.79,DAY TO DAY MAINTENANCE,DIRECT MARKETING-OTHER DIRECT MARKETERS/NOT ELSEW.,,
25/07/2018,ACL CENTRAL EXPENDITURE,AMAZON UK MARKETPLACE,27.07,EQUIPMENT,BOOK STORES,,
25/07/2018,CHEYNE WALK COMMUNITY HOME,SPECSAVERS,197.25,EQUIPMENT,"OPTICIANS,OPTICAL GOODS & EYEGLASSES",,
25/07/2018,FAIRCROFT COMMUNITY HOME,AMAZON UK MARKETPLACE,11.48,BOOKS,BOOK STORES,,
25/07/2018,SURREY SAFEGUARDING CHILDREN'S BOARD,WWW.PMGLTD.CO.UK,474.00,STAFF TRAINING,BUSINESS SERVICES-NOT ELSEWHERE CLASSIFIED,,
25/07/2018,WOODLANDS COMMUNITY HOME,WARWICK CASTLE,100.00,EDUC VISITS/HOLS/CAMPS/TOYS,TOURIST ATTRACTIONS AND EXHIBITS,,
25/07/2018,HOPE SERVICE - WEST,AMAZON UK MARKETPLACE,7.59,CURRICULUM CONSUMABLES,BOOK STORES,,
25/07/2018,FINANCIAL ASSESSMENTS AND BENEFITS TEAM,WWW.GOV.UK,10.00,FEES,PROFESSIONAL SERVICES-NOT ELSEWHERE CLASSIFIED,,
25/07/2018,TRANSPORT,REIGATE AUTO REFINISHI,120.00,VEHICLE REPAIRS AND MAINTENANCE,AUTOMOTIVE BODY REPAIR SHOPS,,
25/07/2018,SOLD DAY TO DAY OPERATIONS,DYOFIX,483.00,EQUIPMENT,COMPUTER SOFTWARE STORES,,
25/07/2018,BURBANK COMMUNITY HOME,BOOTS 2142,9.98,EQUIPMENT,"DRUG STORES, PHARMACIES",,
25/07/2018,BURBANK COMMUNITY HOME,BOOTS 2142,3.66,EQUIPMENT,"DRUG STORES, PHARMACIES",,
25/07/2018,BURBANK COMMUNITY HOME,BOOTS 5070,28.51,EQUIPMENT,"DRUG STORES, PHARMACIES",,
25/07/2018,BURBANK COMMUNITY HOME,SAINSBURYS SACAT 0802,2.00,REFRESHMENT COSTS,"GROCERY STORES, SUPERMARKETS",,
25/07/2018,TRAINING AND DEVELOPMENT,W M MORRISONS,41.50,REFRESHMENT COSTS,"GROCERY STORES, SUPERMARKETS",,
25/07/2018,TRANSPORT,XL DISPLAYS LTD,102.00,FURNITURE,"DURABLE GOODS, NOT ELSEWHERE CLASSIFIED",,
25/07/2018,TRANSPORT,MORPLAN LTD,58.74,"CLOTHING, UNIFORM AND LAUNDRY","OFFICE, SCHOOL SUPPLY, AND STATIONERY STORES",,
25/07/2018,PE/CDT MAINTENANCE OVERHEADS,WICKES,15.63,EQUIPMENT,"BUILDING MATERIALS, LUMBER STORES",,
25/07/2018,KARIBU COMMUNITY HOME,WEST CENTRAL,5.30,NON-STAFF RELATED TRANSPORT COSTS,"EATING PLACES, RESTAURANTS",,
25/07/2018,TRAINING AND DEVELOPMENT,FUTURE INNS CARDIFF,"1,520.00",TRAINING EXPENSES EXTERNAL GENERAL,"LODGING-HOTELS,MOTELS,RESORTS-NOT CLASSIFIED",,
25/07/2018,COMMUNITY ARCHAEOLOGIST PROJECT,HOBBYCRAFT,2.25,EQUIPMENT,"ARTIST SUPPLY STORES, CRAFT SHOPS",,
25/07/2018,FAMILIES GUILDFORD,CO-OP GROUP FOOD,3.73,STAFF TRAINING,"GROCERY STORES, SUPERMARKETS",,
25/07/2018,CHEYNE WALK COMMUNITY HOME,SUBWAY HORLEY,4.10,PURCHASE OF FOOD (RAW MATERIALS),"EATING PLACES, RESTAURANTS",,
25/07/2018,CHEYNE WALK COMMUNITY HOME,TESCO-STORES 6647,298.23,PURCHASE OF FOOD (RAW MATERIALS),"GROCERY STORES, SUPERMARKETS",,
25/07/2018,CHEYNE WALK COMMUNITY HOME,CINEWORLD CRA CP,41.90,EDUC VISITS/HOLS/CAMPS/TOYS,"THEATRICAL PRODUCERS(EXCL MOTION PIX),TICKET AGNCY",,
25/07/2018,INVESTIGATIONS & ENFORCEMENT TEAM       ,SMI INT GROUP LIMITED,18.61,"CLOTHING, UNIFORM AND LAUNDRY",MEN'S/WOMEN'S/CHILDREN'S UNIFORMS/COMMERCIAL CLOTH,,
25/07/2018,INVESTIGATIONS & ENFORCEMENT TEAM       ,SMI INT GROUP LIMITED,5.83,"CLOTHING, UNIFORM AND LAUNDRY",MEN'S/WOMEN'S/CHILDREN'S UNIFORMS/COMMERCIAL CLOTH,,
25/07/2018,RBDM - GENERAL,WWW.SHELVINGDIRECT.CO.,430.20,STATIONERY,OFFICE AND COMMERCIAL FURNITURE,,
25/07/2018,EXTENDED HOPE,POST OFFICE COUNTER,116.00,POSTAGE AND COURIER CHARGES,POSTAL SERVICES-GOVERNMENT ONLY,,
25/07/2018,HILLSIDE,SAINSBURYS 0784,5.10,PURCHASE OF FOOD (RAW MATERIALS),"GROCERY STORES, SUPERMARKETS",,
25/07/2018,SEND TRANSPORT COMMISSIONING,LOGMEIN GOTOMEETING,238.80,COMPUTER SOFTWARE,DIRECT MARKETING-CONTINUITY/SUBSCRIPTION MERCHANTS,,
25/07/2018,SOUTH WEST OUTREACH,SAINSBURYS TO YOU 0652,19.10,PURCHASE OF FOOD (RAW MATERIALS),"GROCERY STORES, SUPERMARKETS",,
25/07/2018,SOUTH WEST OUTREACH,SAINSBURYS TO YOU 0652,131.73,PURCHASE OF FOOD (RAW MATERIALS),"GROCERY STORES, SUPERMARKETS",,
25/07/2018,CONSORT HOUSE REDHILL,WILKO RETAIL LIMIT,12.50,DAY TO DAY MAINTENANCE,HOUSEHOLD APPLIANCE STORES,,
25/07/2018,CHEYNE WALK COMMUNITY HOME,PAPERCHASE PRODUCTS LT,21.50,EDUC VISITS/HOLS/CAMPS/TOYS,"GIFT, CARD, NOVELTY AND SOUVENIR SHOPS",,
25/07/2018,HOPE SERVICE - WEST,IZ  GAIL?S LIMITED,12.00,REFRESHMENT COSTS,"EATING PLACES, RESTAURANTS",,
25/07/2018,SPEECH & LANGUAGE THERAPY,AMAZON EU,11.48,EDUC VISITS/HOLS/CAMPS/TOYS,DIRECT MARKETING-OTHER DIRECT MARKETERS/NOT ELSEW.,,
25/07/2018,SHELL UK LICENSING,ST HELENS MBC,113.00,FEES,GOVERNMENT SERVICES-NOT ELSEWHERE CLASSIFIED,,
25/07/2018,SHELL UK LICENSING,TAMESIDE METROPOLITAN,113.00,FEES,GOVERNMENT SERVICES-NOT ELSEWHERE CLASSIFIED,,
25/07/2018,SHELL UK LICENSING,TAMESIDE METROPOLITAN,113.00,FEES,GOVERNMENT SERVICES-NOT ELSEWHERE CLASSIFIED,,
25/07/2018,SHELL UK LICENSING,SDC-INTERNET,339.00,FEES,GOVERNMENT SERVICES-NOT ELSEWHERE CLASSIFIED,,
26/07/2018,ORBIS TRAINING PROPERTY,RICS EVENTS LONDON,48.00,TRAINING EXPENSES EXTERNAL GENERAL,"ORGANIZATIONS, MEMBERSHIP-NOT ELSEWHERE CLASSIFIED",,
26/07/2018,NW CARE - LAC,HOLIDAY PAYMENT VRUK,"1,773.15",INDEPENDENT LIVING PLACEMENTS,TRAVEL AGENCIES AND TOUR OPERATORS,,
26/07/2018,NW CARE - NON-LAC CP & COURT,TRAVELODGE,155.00,INDEPENDENT LIVING PLACEMENTS,TRAVELODGE,,
26/07/2018,CORPORATE GROUP - LEGAL SERVICES,ELIOR@WEST SUSSEX COUN,14.34,REFRESHMENT COSTS,CATERERS,,
26/07/2018,FAMILIES TANDRIDGE,AMAZON EU,40.16,EQUIPMENT,DIRECT MARKETING-OTHER DIRECT MARKETERS/NOT ELSEW.,,
26/07/2018,WOODLANDS COMMUNITY HOME,TESCO STORES,3.49,REFRESHMENT COSTS,"GROCERY STORES, SUPERMARKETS",,
26/07/2018,WOODLANDS COMMUNITY HOME,THE LONDON EYE,229.00,EDUC VISITS/HOLS/CAMPS/TOYS,TOURIST ATTRACTIONS AND EXHIBITS,,
26/07/2018,SW CARE - CP & COURT LAC,HM PASSPORT,127.00,OTHER COMMUNITY CARE VOL,GOVERNMENT SERVICES-NOT ELSEWHERE CLASSIFIED,,
26/07/2018,VIRTUAL SCHOOL FOR LAC PUPIL PREMIUM,AMAZON EU,5.51,SPECIALIST EDUCATIONAL STATIONERY,DIRECT MARKETING-OTHER DIRECT MARKETERS/NOT ELSEW.,,
26/07/2018,VIRTUAL SCHOOL FOR LAC PUPIL PREMIUM,AMAZON EU,45.70,SPECIALIST EDUCATIONAL STATIONERY,DIRECT MARKETING-OTHER DIRECT MARKETERS/NOT ELSEW.,,
26/07/2018,BURBANK COMMUNITY HOME,3C_ WOKING BOROUGH COU,2.80,MISCELLANEOUS STAFF TRAVEL,AUTOMOBILE PARKING LOTS AND GARAGES,,
26/07/2018,BURBANK COMMUNITY HOME,FREEDOM LEISURE,20.90,EDUC VISITS/HOLS/CAMPS/TOYS,GOVERNMENT SERVICES-NOT ELSEWHERE CLASSIFIED,,
26/07/2018,BURBANK COMMUNITY HOME,MCDONALDS,4.70,REFRESHMENT COSTS,FAST FOOD RESTAURANTS,,
26/07/2018,CHILDREN WITH DISABILITIES TEAM WEST,WWW.CONNEVANS.COM,32.88,EQUIPMENT,MISCELLANEOUS AND SPECIALTY RETAIL STORES,,
26/07/2018,CHILDREN WITH DISABILITIES TEAM WEST,WWW.LINDY.CO.UK,47.98,EQUIPMENT,"COMP PROGRAMING,DATA PRCSNG,INTGRTD SYS DSGN SRVS",,
26/07/2018,PE/CDT MAINTENANCE OVERHEADS,TAURUS WASTE RECYCLING,431.00,TRADE REFUSE,"COMMERCIAL EQUIPMENT, NOT ELSEWHERE CLASSIFIED",,
26/07/2018,PE/CDT MAINTENANCE OVERHEADS,B & Q 1191,25.16,EQUIPMENT,"BUILDING MATERIALS, LUMBER STORES",,
26/07/2018,RUTH HOUSE,WWW.COSTCO.CO.UK,26.40,EDUC VISITS/HOLS/CAMPS/TOYS,"BUYING/SHOPPING CLUBS, SERVICES",,
